Publisher Label,Publisher URI,"Directorate code","Directorate","Service code","Service","Revenue or capital code","Revenue capital","Cost centre","Cost centre description","Bvsub Category","Bvsub description","Bvsum code","Bvsum description","Account code","Account description","Transaction No","Period","Transaction Date","Amount","Classification code","Classification description","Supplier ID","Supplier description","Company registration number","Company registration number Uri","VAT registration number"
"London Borough of Redbridge","http://opendatacommunities.org/doc/london-borough-council/redbridge","1BOTHEROPI&E","Other Operating Income & Expenditure","1CTRADSURDEF","Trading Account Surpluses & Deficits","REV","Revenue","R9256","Redbridge-i Development","01-EMPLOYEES","Employees","01A","Direct employee expenses","4","Agency Staff - Pay","3432177","201703",15/06/2016 00:00:00,1037.02,"31230","Employment & Recruitment Agencies","REDACTED DATA","ADECCO UK LIMITED","593232","http://opencorporates.com/companies/gb/593232","232347975"
"London Borough of Redbridge","http://opendatacommunities.org/doc/london-borough-council/redbridge","1BOTHEROPI&E","Other Operating Income & Expenditure","1CTRADSURDEF","Trading Account Surpluses & Deficits","REV","Revenue","R9256","Redbridge-i Development","01-EMPLOYEES","Employees","01A","Direct employee expenses","4","Agency Staff - Pay","3431237","201703",26/05/2016 00:00:00,2548.9,"31230","Employment & Recruitment Agencies","REDACTED DATA","ADECCO UK LIMITED","593232","http://opencorporates.com/companies/gb/593232","232347975"
"London Borough of Redbridge","http://opendatacommunities.org/doc/london-borough-council/redbridge","1BOTHEROPI&E","Other Operating Income & Expenditure","1CTRADSURDEF","Trading Account Surpluses & Deficits","REV","Revenue","R9256","Redbridge-i Development","01-EMPLOYEES","Employees","01A","Direct employee expenses","4","Agency Staff - Pay","3431237","201703",26/05/2016 00:00:00,772.1,"31230","Employment & Recruitment Agencies","REDACTED DATA","ADECCO UK LIMITED","593232","http://opencorporates.com/companies/gb/593232","232347975"
"London Borough of Redbridge","http://opendatacommunities.org/doc/london-borough-council/redbridge","1BOTHEROPI&E","Other Operating Income & Expenditure","1CTRADSURDEF","Trading Account Surpluses & Deficits","REV","Revenue","R9256","Redbridge-i Development","01-EMPLOYEES","Employees","01A","Direct employee expenses","4","Agency Staff - Pay","3430065","201703",31/05/2016 00:00:00,922.02,"31230","Employment & Recruitment Agencies","REDACTED DATA","ADECCO UK LIMITED","593232","http://opencorporates.com/companies/gb/593232","232347975"
"London Borough of Redbridge","http://opendatacommunities.org/doc/london-borough-council/redbridge","1BOTHEROPI&E","Other Operating Income & Expenditure","1CTRADSURDEF","Trading Account Surpluses & Deficits","REV","Revenue","R9256","Redbridge-i Development","01-EMPLOYEES","Employees","01A","Direct employee expenses","4","Agency Staff - Pay","3431762","201703",08/06/2016 00:00:00,617.68,"31230","Employment & Recruitment Agencies","REDACTED DATA","ADECCO UK LIMITED","593232","http://opencorporates.com/companies/gb/593232","232347975"
"London Borough of Redbridge","http://opendatacommunities.org/doc/london-borough-council/redbridge","1BOTHEROPI&E","Other Operating Income & Expenditure","1CTRADSURDEF","Trading Account Surpluses & Deficits","REV","Revenue","R9256","Redbridge-i Development","01-EMPLOYEES","Employees","01A","Direct employee expenses","4","Agency Staff - Pay","3430065","201703",31/05/2016 00:00:00,772.1,"31230","Employment & Recruitment Agencies","REDACTED DATA","ADECCO UK LIMITED","593232","http://opencorporates.com/companies/gb/593232","232347975"
"London Borough of Redbridge","http://opendatacommunities.org/doc/london-borough-council/redbridge","1BOTHEROPI&E","Other Operating Income & Expenditure","1CTRADSURDEF","Trading Account Surpluses & Deficits","REV","Revenue","R9256","Redbridge-i Development","01-EMPLOYEES","Employees","01A","Direct employee expenses","4","Agency Staff - Pay","3432177","201703",15/06/2016 00:00:00,2736.3,"31230","Employment & Recruitment Agencies","REDACTED DATA","ADECCO UK LIMITED","593232","http://opencorporates.com/companies/gb/593232","232347975"
"London Borough of Redbridge","http://opendatacommunities.org/doc/london-borough-council/redbridge","1BOTHEROPI&E","Other Operating Income & Expenditure","1CTRADSURDEF","Trading Account Surpluses & Deficits","REV","Revenue","R9256","Redbridge-i Development","01-EMPLOYEES","Employees","01A","Direct employee expenses","4","Agency Staff - Pay","3432177","201703",15/06/2016 00:00:00,1544.2,"31230","Employment & Recruitment Agencies","REDACTED DATA","ADECCO UK LIMITED","593232","http://opencorporates.com/companies/gb/593232","232347975"
"London Borough of Redbridge","http://opendatacommunities.org/doc/london-borough-council/redbridge","1BOTHEROPI&E","Other Operating Income & Expenditure","1CTRADSURDEF","Trading Account Surpluses & Deficits","REV","Revenue","R9256","Redbridge-i Development","01-EMPLOYEES","Employees","01A","Direct employee expenses","4","Agency Staff - Pay","3432177","201703",15/06/2016 00:00:00,1235.36,"31230","Employment & Recruitment Agencies","REDACTED DATA","ADECCO UK LIMITED","593232","http://opencorporates.com/companies/gb/593232","232347975"
"London Borough of Redbridge","http://opendatacommunities.org/doc/london-borough-council/redbridge","1BOTHEROPI&E","Other Operating Income & Expenditure","1CTRADSURDEF","Trading Account Surpluses & Deficits","REV","Revenue","R9256","Redbridge-i Development","01-EMPLOYEES","Employees","01A","Direct employee expenses","4","Agency Staff - Pay","3432177","201703",15/06/2016 00:00:00,-617.68,"31230","Employment & Recruitment Agencies","REDACTED DATA","ADECCO UK LIMITED","593232","http://opencorporates.com/companies/gb/593232","232347975"
"London Borough of Redbridge","http://opendatacommunities.org/doc/london-borough-council/redbridge","1BOTHEROPI&E","Other Operating Income & Expenditure","1CTRADSURDEF","Trading Account Surpluses & Deficits","REV","Revenue","R9256","Redbridge-i Development","01-EMPLOYEES","Employees","01A","Direct employee expenses","4","Agency Staff - Pay","3432177","201703",15/06/2016 00:00:00,0,"31230","Employment & Recruitment Agencies","REDACTED DATA","ADECCO UK LIMITED","593232","http://opencorporates.com/companies/gb/593232","232347975"
"London Borough of Redbridge","http://opendatacommunities.org/doc/london-borough-council/redbridge","1BOTHEROPI&E","Other Operating Income & Expenditure","1CTRADSURDEF","Trading Account Surpluses & Deficits","REV","Revenue","R9256","Redbridge-i Development","01-EMPLOYEES","Employees","01A","Direct employee expenses","4","Agency Staff - Pay","3431237","201703",26/05/2016 00:00:00,1923.85,"31230","Employment & Recruitment Agencies","REDACTED DATA","ADECCO UK LIMITED","593232","http://opencorporates.com/companies/gb/593232","232347975"
"London Borough of Redbridge","http://opendatacommunities.org/doc/london-borough-council/redbridge","1BOTHEROPI&E","Other Operating Income & Expenditure","1CTRADSURDEF","Trading Account Surpluses & Deficits","REV","Revenue","R9256","Redbridge-i Development","04-SUPPLIES","Supplies And Services","04F","Communications and computing","5853","Computer Software","60312320","201703",13/06/2016 00:00:00,11655,"84280","Web Site Design","REDACTED DATA","TWENTYSIX LTD","3178478","http://opencorporates.com/companies/gb/3178478","867739461"
"London Borough of Redbridge","http://opendatacommunities.org/doc/london-borough-council/redbridge","1BOTHEROPI&E","Other Operating Income & Expenditure","1CTRADSURDEF","Trading Account Surpluses & Deficits","REV","Revenue","R9258","Debtor System Replacement","04-SUPPLIES","Supplies And Services","04F","Communications and computing","5853","Computer Software","60312617","201703",17/06/2016 00:00:00,1378.94,"20703","Computer Systems and Software","REDACTED DATA","HIGHPOINT IMPLEMENTATION AND TRAINING SERVICES LTD","6561082","http://opencorporates.com/companies/gb/6561082","GB937044913"
"London Borough of Redbridge","http://opendatacommunities.org/doc/london-borough-council/redbridge","1BOTHEROPI&E","Other Operating Income & Expenditure","1CTRADSURDEF","Trading Account Surpluses & Deficits","REV","Revenue","R9258","Debtor System Replacement","04-SUPPLIES","Supplies And Services","04F","Communications and computing","5853","Computer Software","60311129","201703",31/05/2016 00:00:00,850,"35240","Financial Services","REDACTED DATA","PCF PRINT MANAGEMENT LTD","3305359","http://opencorporates.com/companies/gb/3305359","918465791"
"London Borough of Redbridge","http://opendatacommunities.org/doc/london-borough-council/redbridge","1BOTHEROPI&E","Other Operating Income & Expenditure","1CTRADSURDEF","Trading Account Surpluses & Deficits","REV","Revenue","R9258","Debtor System Replacement","04-SUPPLIES","Supplies And Services","04F","Communications and computing","5853","Computer Software","60311193","201703",03/06/2016 00:00:00,1238.99,"20703","Computer Systems and Software","REDACTED DATA","HIGHPOINT IMPLEMENTATION AND TRAINING SERVICES LTD","6561082","http://opencorporates.com/companies/gb/6561082","GB937044913"
"London Borough of Redbridge","http://opendatacommunities.org/doc/london-borough-council/redbridge","1BOTHEROPI&E","Other Operating Income & Expenditure","1CTRADSURDEF","Trading Account Surpluses & Deficits","REV","Revenue","R9258","Debtor System Replacement","04-SUPPLIES","Supplies And Services","04F","Communications and computing","5853","Computer Software","60311255","201703",31/05/2016 00:00:00,600,"20703","Computer Systems and Software","REDACTED DATA","HIGHPOINT IMPLEMENTATION AND TRAINING SERVICES LTD","6561082","http://opencorporates.com/companies/gb/6561082","GB937044913"
"London Borough of Redbridge","http://opendatacommunities.org/doc/london-borough-council/redbridge","1BOTHEROPI&E","Other Operating Income & Expenditure","1CTRADSURDEF","Trading Account Surpluses & Deficits","REV","Revenue","R9258","Debtor System Replacement","04-SUPPLIES","Supplies And Services","04F","Communications and computing","5853","Computer Software","60311952","201703",09/06/2016 00:00:00,2850,"20703","Computer Systems and Software","REDACTED DATA","NORTHGATE PUBLIC SERVICES (UK) LTD","968498","http://opencorporates.com/companies/gb/968498","202159745"
"London Borough of Redbridge","http://opendatacommunities.org/doc/london-borough-council/redbridge","1BOTHEROPI&E","Other Operating Income & Expenditure","1CTRADSURDEF","Trading Account Surpluses & Deficits","REV","Revenue","R9258","Debtor System Replacement","04-SUPPLIES","Supplies And Services","04F","Communications and computing","5853","Computer Software","60313062","201703",24/06/2016 00:00:00,713.79,"20703","Computer Systems and Software","REDACTED DATA","HIGHPOINT IMPLEMENTATION AND TRAINING SERVICES LTD","6561082","http://opencorporates.com/companies/gb/6561082","GB937044913"
"London Borough of Redbridge","http://opendatacommunities.org/doc/london-borough-council/redbridge","1BOTHEROPI&E","Other Operating Income & Expenditure","1CTRADSURDEF","Trading Account Surpluses & Deficits","REV","Revenue","R9259","Server Infrastructure","04-SUPPLIES","Supplies And Services","04F","Communications and computing","5851","Computer Equipment - Purchases","60310916","201703",27/05/2016 00:00:00,4650,"20690","Computer Support & Services","REDACTED DATA","ULTIMA BUSINESS SOLUTIONS","2521249","http://opencorporates.com/companies/gb/2521249","765340525"
"London Borough of Redbridge","http://opendatacommunities.org/doc/london-borough-council/redbridge","1BOTHEROPI&E","Other Operating Income & Expenditure","1CTRADSURDEF","Trading Account Surpluses & Deficits","REV","Revenue","R9259","Server Infrastructure","04-SUPPLIES","Supplies And Services","04F","Communications and computing","5851","Computer Equipment - Purchases","60313470","201703",30/06/2016 00:00:00,9400,"20690","Computer Support & Services","REDACTED DATA","ULTIMA BUSINESS SOLUTIONS","2521249","http://opencorporates.com/companies/gb/2521249","765340525"
"London Borough of Redbridge","http://opendatacommunities.org/doc/london-borough-council/redbridge","1BOTHEROPI&E","Other Operating Income & Expenditure","1CTRADSURDEF","Trading Account Surpluses & Deficits","REV","Revenue","R9263","Customer Access Strategy","01-EMPLOYEES","Employees","01A","Direct employee expenses","4","Agency Staff - Pay","3432177","201703",15/06/2016 00:00:00,1440.03,"31230","Employment & Recruitment Agencies","REDACTED DATA","ADECCO UK LIMITED","593232","http://opencorporates.com/companies/gb/593232","232347975"
"London Borough of Redbridge","http://opendatacommunities.org/doc/london-borough-council/redbridge","1BOTHEROPI&E","Other Operating Income & Expenditure","1CTRADSURDEF","Trading Account Surpluses & Deficits","REV","Revenue","R9263","Customer Access Strategy","01-EMPLOYEES","Employees","01A","Direct employee expenses","4","Agency Staff - Pay","3431237","201703",26/05/2016 00:00:00,2548.85,"31230","Employment & Recruitment Agencies","REDACTED DATA","ADECCO UK LIMITED","593232","http://opencorporates.com/companies/gb/593232","232347975"
"London Borough of Redbridge","http://opendatacommunities.org/doc/london-borough-council/redbridge","1BOTHEROPI&E","Other Operating Income & Expenditure","1CTRADSURDEF","Trading Account Surpluses & Deficits","REV","Revenue","R9263","Customer Access Strategy","01-EMPLOYEES","Employees","01A","Direct employee expenses","4","Agency Staff - Pay","3430065","201703",31/05/2016 00:00:00,2673.9,"31230","Employment & Recruitment Agencies","REDACTED DATA","ADECCO UK LIMITED","593232","http://opencorporates.com/companies/gb/593232","232347975"
"London Borough of Redbridge","http://opendatacommunities.org/doc/london-borough-council/redbridge","1BOTHEROPI&E","Other Operating Income & Expenditure","1CTRADSURDEF","Trading Account Surpluses & Deficits","REV","Revenue","R9263","Customer Access Strategy","01-EMPLOYEES","Employees","01A","Direct employee expenses","4","Agency Staff - Pay","3431237","201703",26/05/2016 00:00:00,2673.9,"31230","Employment & Recruitment Agencies","REDACTED DATA","ADECCO UK LIMITED","593232","http://opencorporates.com/companies/gb/593232","232347975"
"London Borough of Redbridge","http://opendatacommunities.org/doc/london-borough-council/redbridge","1BOTHEROPI&E","Other Operating Income & Expenditure","1CTRADSURDEF","Trading Account Surpluses & Deficits","REV","Revenue","R9263","Customer Access Strategy","01-EMPLOYEES","Employees","01A","Direct employee expenses","4","Agency Staff - Pay","3432177","201703",15/06/2016 00:00:00,2544.2,"31230","Employment & Recruitment Agencies","REDACTED DATA","ADECCO UK LIMITED","593232","http://opencorporates.com/companies/gb/593232","232347975"
"London Borough of Redbridge","http://opendatacommunities.org/doc/london-borough-council/redbridge","1BOTHEROPI&E","Other Operating Income & Expenditure","1CTRADSURDEF","Trading Account Surpluses & Deficits","REV","Revenue","R9263","Customer Access Strategy","01-EMPLOYEES","Employees","01A","Direct employee expenses","4","Agency Staff - Pay","3432177","201703",15/06/2016 00:00:00,1780.94,"31230","Employment & Recruitment Agencies","REDACTED DATA","ADECCO UK LIMITED","593232","http://opencorporates.com/companies/gb/593232","232347975"
"London Borough of Redbridge","http://opendatacommunities.org/doc/london-borough-council/redbridge","1BOTHEROPI&E","Other Operating Income & Expenditure","1CTRADSURDEF","Trading Account Surpluses & Deficits","REV","Revenue","R9263","Customer Access Strategy","01-EMPLOYEES","Employees","01A","Direct employee expenses","4","Agency Staff - Pay","3432177","201703",15/06/2016 00:00:00,-1017.68,"31230","Employment & Recruitment Agencies","REDACTED DATA","ADECCO UK LIMITED","593232","http://opencorporates.com/companies/gb/593232","232347975"
"London Borough of Redbridge","http://opendatacommunities.org/doc/london-borough-council/redbridge","1BOTHEROPI&E","Other Operating Income & Expenditure","1CTRADSURDEF","Trading Account Surpluses & Deficits","REV","Revenue","R9263","Customer Access Strategy","01-EMPLOYEES","Employees","01A","Direct employee expenses","4","Agency Staff - Pay","3431762","201703",08/06/2016 00:00:00,1037.02,"31230","Employment & Recruitment Agencies","REDACTED DATA","ADECCO UK LIMITED","593232","http://opencorporates.com/companies/gb/593232","232347975"
"London Borough of Redbridge","http://opendatacommunities.org/doc/london-borough-council/redbridge","1BOTHEROPI&E","Other Operating Income & Expenditure","1CTRADSURDEF","Trading Account Surpluses & Deficits","REV","Revenue","R9263","Customer Access Strategy","01-EMPLOYEES","Employees","01A","Direct employee expenses","4","Agency Staff - Pay","3431237","201703",26/05/2016 00:00:00,2923.85,"31230","Employment & Recruitment Agencies","REDACTED DATA","ADECCO UK LIMITED","593232","http://opencorporates.com/companies/gb/593232","232347975"
"London Borough of Redbridge","http://opendatacommunities.org/doc/london-borough-council/redbridge","1BOTHEROPI&E","Other Operating Income & Expenditure","1CTRADSURDEF","Trading Account Surpluses & Deficits","REV","Revenue","R9263","Customer Access Strategy","01-EMPLOYEES","Employees","01A","Direct employee expenses","4","Agency Staff - Pay","3431762","201703",08/06/2016 00:00:00,0,"31230","Employment & Recruitment Agencies","REDACTED DATA","ADECCO UK LIMITED","593232","http://opencorporates.com/companies/gb/593232","232347975"
"London Borough of Redbridge","http://opendatacommunities.org/doc/london-borough-council/redbridge","1BOTHEROPI&E","Other Operating Income & Expenditure","1CTRADSURDEF","Trading Account Surpluses & Deficits","REV","Revenue","R9263","Customer Access Strategy","01-EMPLOYEES","Employees","01A","Direct employee expenses","4","Agency Staff - Pay","3431237","201703",26/05/2016 00:00:00,1296.28,"31230","Employment & Recruitment Agencies","REDACTED DATA","ADECCO UK LIMITED","593232","http://opencorporates.com/companies/gb/593232","232347975"
"London Borough of Redbridge","http://opendatacommunities.org/doc/london-borough-council/redbridge","1BOTHEROPI&E","Other Operating Income & Expenditure","1CTRADSURDEF","Trading Account Surpluses & Deficits","REV","Revenue","R9263","Customer Access Strategy","01-EMPLOYEES","Employees","01A","Direct employee expenses","4","Agency Staff - Pay","3430065","201703",31/05/2016 00:00:00,2923.85,"31230","Employment & Recruitment Agencies","REDACTED DATA","ADECCO UK LIMITED","593232","http://opencorporates.com/companies/gb/593232","232347975"
"London Borough of Redbridge","http://opendatacommunities.org/doc/london-borough-council/redbridge","1BOTHEROPI&E","Other Operating Income & Expenditure","1CTRADSURDEF","Trading Account Surpluses & Deficits","REV","Revenue","R9263","Customer Access Strategy","01-EMPLOYEES","Employees","01A","Direct employee expenses","4","Agency Staff - Pay","3431762","201703",08/06/2016 00:00:00,1017.68,"31230","Employment & Recruitment Agencies","REDACTED DATA","ADECCO UK LIMITED","593232","http://opencorporates.com/companies/gb/593232","232347975"
"London Borough of Redbridge","http://opendatacommunities.org/doc/london-borough-council/redbridge","1BOTHEROPI&E","Other Operating Income & Expenditure","1CTRADSURDEF","Trading Account Surpluses & Deficits","REV","Revenue","R9263","Customer Access Strategy","01-EMPLOYEES","Employees","01A","Direct employee expenses","4","Agency Staff - Pay","3430065","201703",31/05/2016 00:00:00,1272.1,"31230","Employment & Recruitment Agencies","REDACTED DATA","ADECCO UK LIMITED","593232","http://opencorporates.com/companies/gb/593232","232347975"
"London Borough of Redbridge","http://opendatacommunities.org/doc/london-borough-council/redbridge","1BOTHEROPI&E","Other Operating Income & Expenditure","1CTRADSURDEF","Trading Account Surpluses & Deficits","REV","Revenue","R9263","Customer Access Strategy","01-EMPLOYEES","Employees","01A","Direct employee expenses","4","Agency Staff - Pay","3432177","201703",15/06/2016 00:00:00,-2533.8,"31230","Employment & Recruitment Agencies","REDACTED DATA","ADECCO UK LIMITED","593232","http://opencorporates.com/companies/gb/593232","232347975"
"London Borough of Redbridge","http://opendatacommunities.org/doc/london-borough-council/redbridge","1BOTHEROPI&E","Other Operating Income & Expenditure","1CTRADSURDEF","Trading Account Surpluses & Deficits","REV","Revenue","R9263","Customer Access Strategy","01-EMPLOYEES","Employees","01A","Direct employee expenses","4","Agency Staff - Pay","3432177","201703",15/06/2016 00:00:00,2173.85,"31230","Employment & Recruitment Agencies","REDACTED DATA","ADECCO UK LIMITED","593232","http://opencorporates.com/companies/gb/593232","232347975"
"London Borough of Redbridge","http://opendatacommunities.org/doc/london-borough-council/redbridge","1BOTHEROPI&E","Other Operating Income & Expenditure","1CTRADSURDEF","Trading Account Surpluses & Deficits","REV","Revenue","R9263","Customer Access Strategy","01-EMPLOYEES","Employees","01A","Direct employee expenses","4","Agency Staff - Pay","3431762","201703",08/06/2016 00:00:00,2039.08,"31230","Employment & Recruitment Agencies","REDACTED DATA","ADECCO UK LIMITED","593232","http://opencorporates.com/companies/gb/593232","232347975"
"London Borough of Redbridge","http://opendatacommunities.org/doc/london-borough-council/redbridge","1BOTHEROPI&E","Other Operating Income & Expenditure","1CTRADSURDEF","Trading Account Surpluses & Deficits","REV","Revenue","R9263","Customer Access Strategy","01-EMPLOYEES","Employees","01A","Direct employee expenses","4","Agency Staff - Pay","3431237","201703",26/05/2016 00:00:00,1272.1,"31230","Employment & Recruitment Agencies","REDACTED DATA","ADECCO UK LIMITED","593232","http://opencorporates.com/companies/gb/593232","232347975"
"London Borough of Redbridge","http://opendatacommunities.org/doc/london-borough-council/redbridge","1BOTHEROPI&E","Other Operating Income & Expenditure","1CTRADSURDEF","Trading Account Surpluses & Deficits","REV","Revenue","R9263","Customer Access Strategy","01-EMPLOYEES","Employees","01A","Direct employee expenses","4","Agency Staff - Pay","3432177","201703",15/06/2016 00:00:00,2548.85,"31230","Employment & Recruitment Agencies","REDACTED DATA","ADECCO UK LIMITED","593232","http://opencorporates.com/companies/gb/593232","232347975"
"London Borough of Redbridge","http://opendatacommunities.org/doc/london-borough-council/redbridge","1BOTHEROPI&E","Other Operating Income & Expenditure","1CTRADSURDEF","Trading Account Surpluses & Deficits","REV","Revenue","R9263","Customer Access Strategy","01-EMPLOYEES","Employees","01A","Direct employee expenses","4","Agency Staff - Pay","3432177","201703",15/06/2016 00:00:00,1296.28,"31230","Employment & Recruitment Agencies","REDACTED DATA","ADECCO UK LIMITED","593232","http://opencorporates.com/companies/gb/593232","232347975"
"London Borough of Redbridge","http://opendatacommunities.org/doc/london-borough-council/redbridge","1BOTHEROPI&E","Other Operating Income & Expenditure","1CTRADSURDEF","Trading Account Surpluses & Deficits","REV","Revenue","R9263","Customer Access Strategy","01-EMPLOYEES","Employees","01A","Direct employee expenses","4","Agency Staff - Pay","3431762","201703",08/06/2016 00:00:00,0,"31230","Employment & Recruitment Agencies","REDACTED DATA","ADECCO UK LIMITED","593232","http://opencorporates.com/companies/gb/593232","232347975"
"London Borough of Redbridge","http://opendatacommunities.org/doc/london-borough-council/redbridge","1BOTHEROPI&E","Other Operating Income & Expenditure","1CTRADSURDEF","Trading Account Surpluses & Deficits","REV","Revenue","R9263","Customer Access Strategy","01-EMPLOYEES","Employees","01A","Direct employee expenses","4","Agency Staff - Pay","3431762","201703",08/06/2016 00:00:00,0,"31230","Employment & Recruitment Agencies","REDACTED DATA","ADECCO UK LIMITED","593232","http://opencorporates.com/companies/gb/593232","232347975"
"London Borough of Redbridge","http://opendatacommunities.org/doc/london-borough-council/redbridge","1BCENTRALPUB","Central Services to the Public","1CEMERGPLAN","Emergency Planning","REV","Revenue","R9361","Local Land Charges","04-SUPPLIES","Supplies And Services","04B","Catering","5602","Refreshments","80021761","201703",25/05/2016 00:00:00,15,"84070","Water Suppliers - Bottled","REDACTED DATA","EDEN SPRINGS (UK) LTD (NATURE SPRING)","4063744","http://opencorporates.com/companies/gb/4063744","232160411"
"London Borough of Redbridge","http://opendatacommunities.org/doc/london-borough-council/redbridge","1BCENTRALPUB","Central Services to the Public","1CLOCALTAXCO","Local Tax Collection","REV","Revenue","R5760","Local Tax Collection","01-EMPLOYEES","Employees","01A","Direct employee expenses","4","Agency Staff - Pay","3430065","201703",31/05/2016 00:00:00,474.48,"31230","Employment & Recruitment Agencies","REDACTED DATA","ADECCO UK LIMITED","593232","http://opencorporates.com/companies/gb/593232","232347975"
"London Borough of Redbridge","http://opendatacommunities.org/doc/london-borough-council/redbridge","1BCENTRALPUB","Central Services to the Public","1CLOCALTAXCO","Local Tax Collection","REV","Revenue","R5760","Local Tax Collection","01-EMPLOYEES","Employees","01A","Direct employee expenses","4","Agency Staff - Pay","3432177","201703",15/06/2016 00:00:00,855.36,"31230","Employment & Recruitment Agencies","REDACTED DATA","ADECCO UK LIMITED","593232","http://opencorporates.com/companies/gb/593232","232347975"
"London Borough of Redbridge","http://opendatacommunities.org/doc/london-borough-council/redbridge","1BCENTRALPUB","Central Services to the Public","1CLOCALTAXCO","Local Tax Collection","REV","Revenue","R5760","Local Tax Collection","01-EMPLOYEES","Employees","01A","Direct employee expenses","4","Agency Staff - Pay","3431237","201703",26/05/2016 00:00:00,264.45,"31230","Employment & Recruitment Agencies","REDACTED DATA","ADECCO UK LIMITED","593232","http://opencorporates.com/companies/gb/593232","232347975"
"London Borough of Redbridge","http://opendatacommunities.org/doc/london-borough-council/redbridge","1BCENTRALPUB","Central Services to the Public","1CLOCALTAXCO","Local Tax Collection","REV","Revenue","R5760","Local Tax Collection","01-EMPLOYEES","Employees","01A","Direct employee expenses","4","Agency Staff - Pay","3430065","201703",31/05/2016 00:00:00,855.36,"31230","Employment & Recruitment Agencies","REDACTED DATA","ADECCO UK LIMITED","593232","http://opencorporates.com/companies/gb/593232","232347975"
"London Borough of Redbridge","http://opendatacommunities.org/doc/london-borough-council/redbridge","1BCENTRALPUB","Central Services to the Public","1CLOCALTAXCO","Local Tax Collection","REV","Revenue","R5760","Local Tax Collection","01-EMPLOYEES","Employees","01A","Direct employee expenses","4","Agency Staff - Pay","3432177","201703",15/06/2016 00:00:00,634.23,"31230","Employment & Recruitment Agencies","REDACTED DATA","ADECCO UK LIMITED","593232","http://opencorporates.com/companies/gb/593232","232347975"
"London Borough of Redbridge","http://opendatacommunities.org/doc/london-borough-council/redbridge","1BCENTRALPUB","Central Services to the Public","1CLOCALTAXCO","Local Tax Collection","REV","Revenue","R5760","Local Tax Collection","01-EMPLOYEES","Employees","01A","Direct employee expenses","4","Agency Staff - Pay","3431762","201703",08/06/2016 00:00:00,564.09,"31230","Employment & Recruitment Agencies","REDACTED DATA","ADECCO UK LIMITED","593232","http://opencorporates.com/companies/gb/593232","232347975"
"London Borough of Redbridge","http://opendatacommunities.org/doc/london-borough-council/redbridge","1BCENTRALPUB","Central Services to the Public","1CLOCALTAXCO","Local Tax Collection","REV","Revenue","R5760","Local Tax Collection","01-EMPLOYEES","Employees","01A","Direct employee expenses","4","Agency Staff - Pay","3432177","201703",15/06/2016 00:00:00,338.63,"31230","Employment & Recruitment Agencies","REDACTED DATA","ADECCO UK LIMITED","593232","http://opencorporates.com/companies/gb/593232","232347975"
"London Borough of Redbridge","http://opendatacommunities.org/doc/london-borough-council/redbridge","1BCENTRALPUB","Central Services to the Public","1CLOCALTAXCO","Local Tax Collection","REV","Revenue","R5760","Local Tax Collection","01-EMPLOYEES","Employees","01A","Direct employee expenses","4","Agency Staff - Pay","3431762","201703",08/06/2016 00:00:00,193.5,"31230","Employment & Recruitment Agencies","REDACTED DATA","ADECCO UK LIMITED","593232","http://opencorporates.com/companies/gb/593232","232347975"
"London Borough of Redbridge","http://opendatacommunities.org/doc/london-borough-council/redbridge","1BCENTRALPUB","Central Services to the Public","1CLOCALTAXCO","Local Tax Collection","REV","Revenue","R5760","Local Tax Collection","01-EMPLOYEES","Employees","01A","Direct employee expenses","4","Agency Staff - Pay","3430066","201703",27/05/2016 00:00:00,1.7,"31230","Employment & Recruitment Agencies","REDACTED DATA","ADECCO UK LIMITED","593232","http://opencorporates.com/companies/gb/593232","232347975"
"London Borough of Redbridge","http://opendatacommunities.org/doc/london-borough-council/redbridge","1BCENTRALPUB","Central Services to the Public","1CLOCALTAXCO","Local Tax Collection","REV","Revenue","R5760","Local Tax Collection","01-EMPLOYEES","Employees","01A","Direct employee expenses","4","Agency Staff - Pay","3430066","201703",27/05/2016 00:00:00,2.26,"31230","Employment & Recruitment Agencies","REDACTED DATA","ADECCO UK LIMITED","593232","http://opencorporates.com/companies/gb/593232","232347975"
"London Borough of Redbridge","http://opendatacommunities.org/doc/london-borough-council/redbridge","1BOTHEROPI&E","Other Operating Income & Expenditure","1CTRADSURDEF","Trading Account Surpluses & Deficits","REV","Revenue","R9263","Customer Access Strategy","01-EMPLOYEES","Employees","01A","Direct employee expenses","4","Agency Staff - Pay","3431762","201703",08/06/2016 00:00:00,0,"31230","Employment & Recruitment Agencies","REDACTED DATA","ADECCO UK LIMITED","593232","http://opencorporates.com/companies/gb/593232","232347975"
"London Borough of Redbridge","http://opendatacommunities.org/doc/london-borough-council/redbridge","1BOTHEROPI&E","Other Operating Income & Expenditure","1CTRADSURDEF","Trading Account Surpluses & Deficits","REV","Revenue","R9263","Customer Access Strategy","01-EMPLOYEES","Employees","01A","Direct employee expenses","4","Agency Staff - Pay","3431237","201703",26/05/2016 00:00:00,2300,"31230","Employment & Recruitment Agencies","REDACTED DATA","ADECCO UK LIMITED","593232","http://opencorporates.com/companies/gb/593232","232347975"
"London Borough of Redbridge","http://opendatacommunities.org/doc/london-borough-council/redbridge","1BOTHEROPI&E","Other Operating Income & Expenditure","1CTRADSURDEF","Trading Account Surpluses & Deficits","REV","Revenue","R9263","Customer Access Strategy","01-EMPLOYEES","Employees","01A","Direct employee expenses","4","Agency Staff - Pay","3432177","201703",15/06/2016 00:00:00,2923.85,"31230","Employment & Recruitment Agencies","REDACTED DATA","ADECCO UK LIMITED","593232","http://opencorporates.com/companies/gb/593232","232347975"
"London Borough of Redbridge","http://opendatacommunities.org/doc/london-borough-council/redbridge","1BOTHEROPI&E","Other Operating Income & Expenditure","1CTRADSURDEF","Trading Account Surpluses & Deficits","REV","Revenue","R9263","Customer Access Strategy","01-EMPLOYEES","Employees","01A","Direct employee expenses","4","Agency Staff - Pay","3430065","201703",31/05/2016 00:00:00,1296.28,"31230","Employment & Recruitment Agencies","REDACTED DATA","ADECCO UK LIMITED","593232","http://opencorporates.com/companies/gb/593232","232347975"
"London Borough of Redbridge","http://opendatacommunities.org/doc/london-borough-council/redbridge","1BOTHEROPI&E","Other Operating Income & Expenditure","1CTRADSURDEF","Trading Account Surpluses & Deficits","REV","Revenue","R9263","Customer Access Strategy","01-EMPLOYEES","Employees","01A","Direct employee expenses","4","Agency Staff - Pay","3431762","201703",08/06/2016 00:00:00,0,"31230","Employment & Recruitment Agencies","REDACTED DATA","ADECCO UK LIMITED","593232","http://opencorporates.com/companies/gb/593232","232347975"
"London Borough of Redbridge","http://opendatacommunities.org/doc/london-borough-council/redbridge","1BOTHEROPI&E","Other Operating Income & Expenditure","1CTRADSURDEF","Trading Account Surpluses & Deficits","REV","Revenue","R9263","Customer Access Strategy","01-EMPLOYEES","Employees","01A","Direct employee expenses","4","Agency Staff - Pay","3431762","201703",08/06/2016 00:00:00,0,"31230","Employment & Recruitment Agencies","REDACTED DATA","ADECCO UK LIMITED","593232","http://opencorporates.com/companies/gb/593232","232347975"
"London Borough of Redbridge","http://opendatacommunities.org/doc/london-borough-council/redbridge","1BOTHEROPI&E","Other Operating Income & Expenditure","1CTRADSURDEF","Trading Account Surpluses & Deficits","REV","Revenue","R9263","Customer Access Strategy","01-EMPLOYEES","Employees","01A","Direct employee expenses","4","Agency Staff - Pay","3431762","201703",08/06/2016 00:00:00,0,"31230","Employment & Recruitment Agencies","REDACTED DATA","ADECCO UK LIMITED","593232","http://opencorporates.com/companies/gb/593232","232347975"
"London Borough of Redbridge","http://opendatacommunities.org/doc/london-borough-council/redbridge","1BOTHEROPI&E","Other Operating Income & Expenditure","1CTRADSURDEF","Trading Account Surpluses & Deficits","REV","Revenue","R9263","Customer Access Strategy","01-EMPLOYEES","Employees","01A","Direct employee expenses","4","Agency Staff - Pay","3431762","201703",08/06/2016 00:00:00,2339.08,"31230","Employment & Recruitment Agencies","REDACTED DATA","ADECCO UK LIMITED","593232","http://opencorporates.com/companies/gb/593232","232347975"
"London Borough of Redbridge","http://opendatacommunities.org/doc/london-borough-council/redbridge","1BOTHEROPI&E","Other Operating Income & Expenditure","1CTRADSURDEF","Trading Account Surpluses & Deficits","REV","Revenue","R9263","Customer Access Strategy","01-EMPLOYEES","Employees","01A","Direct employee expenses","4","Agency Staff - Pay","3431762","201703",08/06/2016 00:00:00,0,"31230","Employment & Recruitment Agencies","REDACTED DATA","ADECCO UK LIMITED","593232","http://opencorporates.com/companies/gb/593232","232347975"
"London Borough of Redbridge","http://opendatacommunities.org/doc/london-borough-council/redbridge","1BOTHEROPI&E","Other Operating Income & Expenditure","1CTRADSURDEF","Trading Account Surpluses & Deficits","REV","Revenue","R9263","Customer Access Strategy","01-EMPLOYEES","Employees","01A","Direct employee expenses","4","Agency Staff - Pay","3431762","201703",08/06/2016 00:00:00,0,"31230","Employment & Recruitment Agencies","REDACTED DATA","ADECCO UK LIMITED","593232","http://opencorporates.com/companies/gb/593232","232347975"
"London Borough of Redbridge","http://opendatacommunities.org/doc/london-borough-council/redbridge","1BOTHEROPI&E","Other Operating Income & Expenditure","1CTRADSURDEF","Trading Account Surpluses & Deficits","REV","Revenue","R9263","Customer Access Strategy","01-EMPLOYEES","Employees","01A","Direct employee expenses","4","Agency Staff - Pay","3431762","201703",08/06/2016 00:00:00,0,"31230","Employment & Recruitment Agencies","REDACTED DATA","ADECCO UK LIMITED","593232","http://opencorporates.com/companies/gb/593232","232347975"
"London Borough of Redbridge","http://opendatacommunities.org/doc/london-borough-council/redbridge","1BOTHEROPI&E","Other Operating Income & Expenditure","1CTRADSURDEF","Trading Account Surpluses & Deficits","REV","Revenue","R9263","Customer Access Strategy","01-EMPLOYEES","Employees","01A","Direct employee expenses","4","Agency Staff - Pay","3431762","201703",08/06/2016 00:00:00,1152.02,"31230","Employment & Recruitment Agencies","REDACTED DATA","ADECCO UK LIMITED","593232","http://opencorporates.com/companies/gb/593232","232347975"
"London Borough of Redbridge","http://opendatacommunities.org/doc/london-borough-council/redbridge","1BOTHEROPI&E","Other Operating Income & Expenditure","1CTRADSURDEF","Trading Account Surpluses & Deficits","REV","Revenue","R9264","Unified Communications","04-SUPPLIES","Supplies And Services","04H","Grants and subscriptions","5954","Professional Fees","60310704","201703",27/05/2016 00:00:00,6150,"76490","Telecommunication Consultants","REDACTED DATA","BRAND TECHNOLOGY SERVICES LTD","9519865","http://opencorporates.com/companies/gb/9519865","210995020"
"London Borough of Redbridge","http://opendatacommunities.org/doc/london-borough-council/redbridge","1BOTHEROPI&E","Other Operating Income & Expenditure","1CTRADSURDEF","Trading Account Surpluses & Deficits","REV","Revenue","R9284","Data Storage","04-SUPPLIES","Supplies And Services","04F","Communications and computing","5851","Computer Equipment - Purchases","60313433","201703",27/06/2016 00:00:00,1075,"20690","Computer Support & Services","REDACTED DATA","ANS GROUP PLC","3176761","http://opencorporates.com/companies/gb/3176761","628731622"
"London Borough of Redbridge","http://opendatacommunities.org/doc/london-borough-council/redbridge","1BOTHEROPI&E","Other Operating Income & Expenditure","1CTRADSURDEF","Trading Account Surpluses & Deficits","REV","Revenue","R9351","Litigation Team","01-EMPLOYEES","Employees","01A","Direct employee expenses","4","Agency Staff - Pay","3431762","201703",08/06/2016 00:00:00,911.4,"31230","Employment & Recruitment Agencies","REDACTED DATA","ADECCO UK LIMITED","593232","http://opencorporates.com/companies/gb/593232","232347975"
"London Borough of Redbridge","http://opendatacommunities.org/doc/london-borough-council/redbridge","1BOTHEROPI&E","Other Operating Income & Expenditure","1CTRADSURDEF","Trading Account Surpluses & Deficits","REV","Revenue","R9351","Litigation Team","01-EMPLOYEES","Employees","01A","Direct employee expenses","4","Agency Staff - Pay","3432177","201703",15/06/2016 00:00:00,729.12,"31230","Employment & Recruitment Agencies","REDACTED DATA","ADECCO UK LIMITED","593232","http://opencorporates.com/companies/gb/593232","232347975"
"London Borough of Redbridge","http://opendatacommunities.org/doc/london-borough-council/redbridge","1BOTHEROPI&E","Other Operating Income & Expenditure","1CTRADSURDEF","Trading Account Surpluses & Deficits","REV","Revenue","R9351","Litigation Team","01-EMPLOYEES","Employees","01A","Direct employee expenses","4","Agency Staff - Pay","3432177","201703",15/06/2016 00:00:00,729.12,"31230","Employment & Recruitment Agencies","REDACTED DATA","ADECCO UK LIMITED","593232","http://opencorporates.com/companies/gb/593232","232347975"
"London Borough of Redbridge","http://opendatacommunities.org/doc/london-borough-council/redbridge","1BOTHEROPI&E","Other Operating Income & Expenditure","1CTRADSURDEF","Trading Account Surpluses & Deficits","REV","Revenue","R9351","Litigation Team","01-EMPLOYEES","Employees","01A","Direct employee expenses","4","Agency Staff - Pay","3430065","201703",31/05/2016 00:00:00,885.36,"31230","Employment & Recruitment Agencies","REDACTED DATA","ADECCO UK LIMITED","593232","http://opencorporates.com/companies/gb/593232","232347975"
"London Borough of Redbridge","http://opendatacommunities.org/doc/london-borough-council/redbridge","1BOTHEROPI&E","Other Operating Income & Expenditure","1CTRADSURDEF","Trading Account Surpluses & Deficits","REV","Revenue","R9351","Litigation Team","01-EMPLOYEES","Employees","01A","Direct employee expenses","4","Agency Staff - Pay","3431237","201703",26/05/2016 00:00:00,546.84,"31230","Employment & Recruitment Agencies","REDACTED DATA","ADECCO UK LIMITED","593232","http://opencorporates.com/companies/gb/593232","232347975"
"London Borough of Redbridge","http://opendatacommunities.org/doc/london-borough-council/redbridge","1BOTHEROPI&E","Other Operating Income & Expenditure","1CTRADSURDEF","Trading Account Surpluses & Deficits","REV","Revenue","R9352","Legal Supplies & Services","01-EMPLOYEES","Employees","01B","Indirect employee expenses","2403","External Training","60310902","201703",26/05/2016 00:00:00,198,"6700","Barristers","REDACTED DATA","GRAYS INN  SQUARE CHAMBERS LTD","1511340","http://opencorporates.com/companies/gb/1511340","354246557"
"London Borough of Redbridge","http://opendatacommunities.org/doc/london-borough-council/redbridge","1BOTHEROPI&E","Other Operating Income & Expenditure","1CTRADSURDEF","Trading Account Surpluses & Deficits","REV","Revenue","R9352","Legal Supplies & Services","04-SUPPLIES","Supplies And Services","04B","Catering","5602","Refreshments","80021740","201703",25/05/2016 00:00:00,66.88,"84070","Water Suppliers - Bottled","REDACTED DATA","EDEN SPRINGS (UK) LTD (NATURE SPRING)","4063744","http://opencorporates.com/companies/gb/4063744","232160411"
"London Borough of Redbridge","http://opendatacommunities.org/doc/london-borough-council/redbridge","1BOTHEROPI&E","Other Operating Income & Expenditure","1CTRADSURDEF","Trading Account Surpluses & Deficits","REV","Revenue","R9352","Legal Supplies & Services","04-SUPPLIES","Supplies And Services","04D","Printing, stationery and general office expenses","5700","Books","60311156","201703",01/05/2016 00:00:00,27029.99,"45170","Information Services","REDACTED DATA","THOMSON REUTER ( PROFESSIONAL)LTD T/A SWEET & MAXW","1679046","http://opencorporates.com/companies/gb/1679046","900548743"
"London Borough of Redbridge","http://opendatacommunities.org/doc/london-borough-council/redbridge","1BOTHEROPI&E","Other Operating Income & Expenditure","1CTRADSURDEF","Trading Account Surpluses & Deficits","REV","Revenue","R9352","Legal Supplies & Services","04-SUPPLIES","Supplies And Services","04D","Printing, stationery and general office expenses","5710","Stationery","3435018","201703",09/06/2016 00:00:00,1.06,"53770","Office Stationery Supplies","REDACTED DATA","OFFICE DEPOT UK LTD (EX-GUILBERT UK)","2654682","http://opencorporates.com/companies/gb/2654682","673478594"
"London Borough of Redbridge","http://opendatacommunities.org/doc/london-borough-council/redbridge","1BOTHEROPI&E","Other Operating Income & Expenditure","1CTRADSURDEF","Trading Account Surpluses & Deficits","REV","Revenue","R9352","Legal Supplies & Services","04-SUPPLIES","Supplies And Services","04D","Printing, stationery and general office expenses","5710","Stationery","3435018","201703",09/06/2016 00:00:00,1.06,"53770","Office Stationery Supplies","REDACTED DATA","OFFICE DEPOT UK LTD (EX-GUILBERT UK)","2654682","http://opencorporates.com/companies/gb/2654682","673478594"
"London Borough of Redbridge","http://opendatacommunities.org/doc/london-borough-council/redbridge","1BOTHEROPI&E","Other Operating Income & Expenditure","1CTRADSURDEF","Trading Account Surpluses & Deficits","REV","Revenue","R9352","Legal Supplies & Services","04-SUPPLIES","Supplies And Services","04D","Printing, stationery and general office expenses","5710","Stationery","3435018","201703",09/06/2016 00:00:00,1.77,"53770","Office Stationery Supplies","REDACTED DATA","OFFICE DEPOT UK LTD (EX-GUILBERT UK)","2654682","http://opencorporates.com/companies/gb/2654682","673478594"
"London Borough of Redbridge","http://opendatacommunities.org/doc/london-borough-council/redbridge","1BOTHEROPI&E","Other Operating Income & Expenditure","1CTRADSURDEF","Trading Account Surpluses & Deficits","REV","Revenue","R9352","Legal Supplies & Services","04-SUPPLIES","Supplies And Services","04D","Printing, stationery and general office expenses","5710","Stationery","3435018","201703",09/06/2016 00:00:00,0.05,"53770","Office Stationery Supplies","REDACTED DATA","OFFICE DEPOT UK LTD (EX-GUILBERT UK)","2654682","http://opencorporates.com/companies/gb/2654682","673478594"
"London Borough of Redbridge","http://opendatacommunities.org/doc/london-borough-council/redbridge","1BOTHEROPI&E","Other Operating Income & Expenditure","1CTRADSURDEF","Trading Account Surpluses & Deficits","REV","Revenue","R9352","Legal Supplies & Services","04-SUPPLIES","Supplies And Services","04D","Printing, stationery and general office expenses","5710","Stationery","3435018","201703",09/06/2016 00:00:00,0.55,"53770","Office Stationery Supplies","REDACTED DATA","OFFICE DEPOT UK LTD (EX-GUILBERT UK)","2654682","http://opencorporates.com/companies/gb/2654682","673478594"
"London Borough of Redbridge","http://opendatacommunities.org/doc/london-borough-council/redbridge","1BOTHEROPI&E","Other Operating Income & Expenditure","1CTRADSURDEF","Trading Account Surpluses & Deficits","REV","Revenue","R9352","Legal Supplies & Services","04-SUPPLIES","Supplies And Services","04D","Printing, stationery and general office expenses","5710","Stationery","3435018","201703",09/06/2016 00:00:00,2.77,"53770","Office Stationery Supplies","REDACTED DATA","OFFICE DEPOT UK LTD (EX-GUILBERT UK)","2654682","http://opencorporates.com/companies/gb/2654682","673478594"
"London Borough of Redbridge","http://opendatacommunities.org/doc/london-borough-council/redbridge","1BOTHEROPI&E","Other Operating Income & Expenditure","1CTRADSURDEF","Trading Account Surpluses & Deficits","REV","Revenue","R9352","Legal Supplies & Services","04-SUPPLIES","Supplies And Services","04D","Printing, stationery and general office expenses","5710","Stationery","3435018","201703",09/06/2016 00:00:00,5,"53770","Office Stationery Supplies","REDACTED DATA","OFFICE DEPOT UK LTD (EX-GUILBERT UK)","2654682","http://opencorporates.com/companies/gb/2654682","673478594"
"London Borough of Redbridge","http://opendatacommunities.org/doc/london-borough-council/redbridge","1BOTHEROPI&E","Other Operating Income & Expenditure","1CTRADSURDEF","Trading Account Surpluses & Deficits","REV","Revenue","R9352","Legal Supplies & Services","04-SUPPLIES","Supplies And Services","04D","Printing, stationery and general office expenses","5710","Stationery","3435018","201703",30/06/2016 00:00:00,0.55,"53770","Office Stationery Supplies","REDACTED DATA","OFFICE DEPOT UK LTD (EX-GUILBERT UK)","2654682","http://opencorporates.com/companies/gb/2654682","673478594"
"London Borough of Redbridge","http://opendatacommunities.org/doc/london-borough-council/redbridge","1BOTHEROPI&E","Other Operating Income & Expenditure","1CTRADSURDEF","Trading Account Surpluses & Deficits","REV","Revenue","R9352","Legal Supplies & Services","04-SUPPLIES","Supplies And Services","04D","Printing, stationery and general office expenses","5710","Stationery","3435018","201703",09/06/2016 00:00:00,16.46,"53770","Office Stationery Supplies","REDACTED DATA","OFFICE DEPOT UK LTD (EX-GUILBERT UK)","2654682","http://opencorporates.com/companies/gb/2654682","673478594"
"London Borough of Redbridge","http://opendatacommunities.org/doc/london-borough-council/redbridge","1BOTHEROPI&E","Other Operating Income & Expenditure","1CTRADSURDEF","Trading Account Surpluses & Deficits","REV","Revenue","R9352","Legal Supplies & Services","04-SUPPLIES","Supplies And Services","04D","Printing, stationery and general office expenses","5710","Stationery","3435018","201703",09/06/2016 00:00:00,20.94,"53770","Office Stationery Supplies","REDACTED DATA","OFFICE DEPOT UK LTD (EX-GUILBERT UK)","2654682","http://opencorporates.com/companies/gb/2654682","673478594"
"London Borough of Redbridge","http://opendatacommunities.org/doc/london-borough-council/redbridge","1BOTHEROPI&E","Other Operating Income & Expenditure","1CTRADSURDEF","Trading Account Surpluses & Deficits","REV","Revenue","R9352","Legal Supplies & Services","04-SUPPLIES","Supplies And Services","04D","Printing, stationery and general office expenses","5710","Stationery","3435018","201703",09/06/2016 00:00:00,10.99,"53770","Office Stationery Supplies","REDACTED DATA","OFFICE DEPOT UK LTD (EX-GUILBERT UK)","2654682","http://opencorporates.com/companies/gb/2654682","673478594"
"London Borough of Redbridge","http://opendatacommunities.org/doc/london-borough-council/redbridge","1BOTHEROPI&E","Other Operating Income & Expenditure","1CTRADSURDEF","Trading Account Surpluses & Deficits","REV","Revenue","R9352","Legal Supplies & Services","04-SUPPLIES","Supplies And Services","04D","Printing, stationery and general office expenses","5710","Stationery","3435018","201703",09/06/2016 00:00:00,10.99,"53770","Office Stationery Supplies","REDACTED DATA","OFFICE DEPOT UK LTD (EX-GUILBERT UK)","2654682","http://opencorporates.com/companies/gb/2654682","673478594"
"London Borough of Redbridge","http://opendatacommunities.org/doc/london-borough-council/redbridge","1BOTHEROPI&E","Other Operating Income & Expenditure","1CTRADSURDEF","Trading Account Surpluses & Deficits","REV","Revenue","R9352","Legal Supplies & Services","04-SUPPLIES","Supplies And Services","04D","Printing, stationery and general office expenses","5710","Stationery","3435018","201703",09/06/2016 00:00:00,9,"53770","Office Stationery Supplies","REDACTED DATA","OFFICE DEPOT UK LTD (EX-GUILBERT UK)","2654682","http://opencorporates.com/companies/gb/2654682","673478594"
"London Borough of Redbridge","http://opendatacommunities.org/doc/london-borough-council/redbridge","1BOTHEROPI&E","Other Operating Income & Expenditure","1CTRADSURDEF","Trading Account Surpluses & Deficits","REV","Revenue","R9352","Legal Supplies & Services","04-SUPPLIES","Supplies And Services","04D","Printing, stationery and general office expenses","5710","Stationery","3435018","201703",09/06/2016 00:00:00,0.76,"53770","Office Stationery Supplies","REDACTED DATA","OFFICE DEPOT UK LTD (EX-GUILBERT UK)","2654682","http://opencorporates.com/companies/gb/2654682","673478594"
"London Borough of Redbridge","http://opendatacommunities.org/doc/london-borough-council/redbridge","1BOTHEROPI&E","Other Operating Income & Expenditure","1CTRADSURDEF","Trading Account Surpluses & Deficits","REV","Revenue","R9352","Legal Supplies & Services","04-SUPPLIES","Supplies And Services","04D","Printing, stationery and general office expenses","5710","Stationery","3435018","201703",09/06/2016 00:00:00,2.22,"53770","Office Stationery Supplies","REDACTED DATA","OFFICE DEPOT UK LTD (EX-GUILBERT UK)","2654682","http://opencorporates.com/companies/gb/2654682","673478594"
"London Borough of Redbridge","http://opendatacommunities.org/doc/london-borough-council/redbridge","1BOTHEROPI&E","Other Operating Income & Expenditure","1CTRADSURDEF","Trading Account Surpluses & Deficits","REV","Revenue","R9352","Legal Supplies & Services","04-SUPPLIES","Supplies And Services","04D","Printing, stationery and general office expenses","5710","Stationery","3435018","201703",30/06/2016 00:00:00,17.4,"53770","Office Stationery Supplies","REDACTED DATA","OFFICE DEPOT UK LTD (EX-GUILBERT UK)","2654682","http://opencorporates.com/companies/gb/2654682","673478594"
"London Borough of Redbridge","http://opendatacommunities.org/doc/london-borough-council/redbridge","1BOTHEROPI&E","Other Operating Income & Expenditure","1CTRADSURDEF","Trading Account Surpluses & Deficits","REV","Revenue","R9352","Legal Supplies & Services","04-SUPPLIES","Supplies And Services","04D","Printing, stationery and general office expenses","5710","Stationery","3435018","201703",30/06/2016 00:00:00,29.2,"53770","Office Stationery Supplies","REDACTED DATA","OFFICE DEPOT UK LTD (EX-GUILBERT UK)","2654682","http://opencorporates.com/companies/gb/2654682","673478594"
"London Borough of Redbridge","http://opendatacommunities.org/doc/london-borough-council/redbridge","1BOTHEROPI&E","Other Operating Income & Expenditure","1CTRADSURDEF","Trading Account Surpluses & Deficits","REV","Revenue","R9352","Legal Supplies & Services","04-SUPPLIES","Supplies And Services","04D","Printing, stationery and general office expenses","5710","Stationery","3435018","201703",30/06/2016 00:00:00,22.22,"53770","Office Stationery Supplies","REDACTED DATA","OFFICE DEPOT UK LTD (EX-GUILBERT UK)","2654682","http://opencorporates.com/companies/gb/2654682","673478594"
"London Borough of Redbridge","http://opendatacommunities.org/doc/london-borough-council/redbridge","1BOTHEROPI&E","Other Operating Income & Expenditure","1CTRADSURDEF","Trading Account Surpluses & Deficits","REV","Revenue","R9352","Legal Supplies & Services","04-SUPPLIES","Supplies And Services","04D","Printing, stationery and general office expenses","5710","Stationery","3435018","201703",30/06/2016 00:00:00,2,"53770","Office Stationery Supplies","REDACTED DATA","OFFICE DEPOT UK LTD (EX-GUILBERT UK)","2654682","http://opencorporates.com/companies/gb/2654682","673478594"
"London Borough of Redbridge","http://opendatacommunities.org/doc/london-borough-council/redbridge","1BOTHEROPI&E","Other Operating Income & Expenditure","1CTRADSURDEF","Trading Account Surpluses & Deficits","REV","Revenue","R9352","Legal Supplies & Services","04-SUPPLIES","Supplies And Services","04D","Printing, stationery and general office expenses","5710","Stationery","3435018","201703",30/06/2016 00:00:00,7.8,"53770","Office Stationery Supplies","REDACTED DATA","OFFICE DEPOT UK LTD (EX-GUILBERT UK)","2654682","http://opencorporates.com/companies/gb/2654682","673478594"
"London Borough of Redbridge","http://opendatacommunities.org/doc/london-borough-council/redbridge","1BOTHEROPI&E","Other Operating Income & Expenditure","1CTRADSURDEF","Trading Account Surpluses & Deficits","REV","Revenue","R9352","Legal Supplies & Services","04-SUPPLIES","Supplies And Services","04D","Printing, stationery and general office expenses","5710","Stationery","3435018","201703",30/06/2016 00:00:00,10,"53770","Office Stationery Supplies","REDACTED DATA","OFFICE DEPOT UK LTD (EX-GUILBERT UK)","2654682","http://opencorporates.com/companies/gb/2654682","673478594"
"London Borough of Redbridge","http://opendatacommunities.org/doc/london-borough-council/redbridge","1BOTHEROPI&E","Other Operating Income & Expenditure","1CTRADSURDEF","Trading Account Surpluses & Deficits","REV","Revenue","R9352","Legal Supplies & Services","04-SUPPLIES","Supplies And Services","04D","Printing, stationery and general office expenses","5710","Stationery","3435018","201703",09/06/2016 00:00:00,4.75,"53770","Office Stationery Supplies","REDACTED DATA","OFFICE DEPOT UK LTD (EX-GUILBERT UK)","2654682","http://opencorporates.com/companies/gb/2654682","673478594"
"London Borough of Redbridge","http://opendatacommunities.org/doc/london-borough-council/redbridge","1BOTHEROPI&E","Other Operating Income & Expenditure","1CTRADSURDEF","Trading Account Surpluses & Deficits","REV","Revenue","R9352","Legal Supplies & Services","04-SUPPLIES","Supplies And Services","04D","Printing, stationery and general office expenses","5710","Stationery","3435018","201703",09/06/2016 00:00:00,18.42,"53770","Office Stationery Supplies","REDACTED DATA","OFFICE DEPOT UK LTD (EX-GUILBERT UK)","2654682","http://opencorporates.com/companies/gb/2654682","673478594"
"London Borough of Redbridge","http://opendatacommunities.org/doc/london-borough-council/redbridge","1BOTHEROPI&E","Other Operating Income & Expenditure","1CTRADSURDEF","Trading Account Surpluses & Deficits","REV","Revenue","R9352","Legal Supplies & Services","04-SUPPLIES","Supplies And Services","04D","Printing, stationery and general office expenses","5710","Stationery","3435018","201703",09/06/2016 00:00:00,11.6,"53770","Office Stationery Supplies","REDACTED DATA","OFFICE DEPOT UK LTD (EX-GUILBERT UK)","2654682","http://opencorporates.com/companies/gb/2654682","673478594"
"London Borough of Redbridge","http://opendatacommunities.org/doc/london-borough-council/redbridge","1BOTHEROPI&E","Other Operating Income & Expenditure","1CTRADSURDEF","Trading Account Surpluses & Deficits","REV","Revenue","R9352","Legal Supplies & Services","04-SUPPLIES","Supplies And Services","04D","Printing, stationery and general office expenses","5710","Stationery","3435018","201703",30/06/2016 00:00:00,242.01,"53770","Office Stationery Supplies","REDACTED DATA","OFFICE DEPOT UK LTD (EX-GUILBERT UK)","2654682","http://opencorporates.com/companies/gb/2654682","673478594"
"London Borough of Redbridge","http://opendatacommunities.org/doc/london-borough-council/redbridge","1BOTHEROPI&E","Other Operating Income & Expenditure","1CTRADSURDEF","Trading Account Surpluses & Deficits","REV","Revenue","R9352","Legal Supplies & Services","04-SUPPLIES","Supplies And Services","04D","Printing, stationery and general office expenses","5710","Stationery","3435018","201703",09/06/2016 00:00:00,201.61,"53770","Office Stationery Supplies","REDACTED DATA","OFFICE DEPOT UK LTD (EX-GUILBERT UK)","2654682","http://opencorporates.com/companies/gb/2654682","673478594"
"London Borough of Redbridge","http://opendatacommunities.org/doc/london-borough-council/redbridge","1BOTHEROPI&E","Other Operating Income & Expenditure","1CTRADSURDEF","Trading Account Surpluses & Deficits","REV","Revenue","R9352","Legal Supplies & Services","04-SUPPLIES","Supplies And Services","04D","Printing, stationery and general office expenses","5710","Stationery","3435018","201703",09/06/2016 00:00:00,1.1,"53770","Office Stationery Supplies","REDACTED DATA","OFFICE DEPOT UK LTD (EX-GUILBERT UK)","2654682","http://opencorporates.com/companies/gb/2654682","673478594"
"London Borough of Redbridge","http://opendatacommunities.org/doc/london-borough-council/redbridge","1BOTHEROPI&E","Other Operating Income & Expenditure","1CTRADSURDEF","Trading Account Surpluses & Deficits","REV","Revenue","R9352","Legal Supplies & Services","04-SUPPLIES","Supplies And Services","04D","Printing, stationery and general office expenses","5710","Stationery","3435018","201703",09/06/2016 00:00:00,0.91,"53770","Office Stationery Supplies","REDACTED DATA","OFFICE DEPOT UK LTD (EX-GUILBERT UK)","2654682","http://opencorporates.com/companies/gb/2654682","673478594"
"London Borough of Redbridge","http://opendatacommunities.org/doc/london-borough-council/redbridge","1BOTHEROPI&E","Other Operating Income & Expenditure","1CTRADSURDEF","Trading Account Surpluses & Deficits","REV","Revenue","R9352","Legal Supplies & Services","04-SUPPLIES","Supplies And Services","04D","Printing, stationery and general office expenses","5710","Stationery","3435018","201703",09/06/2016 00:00:00,9.96,"53770","Office Stationery Supplies","REDACTED DATA","OFFICE DEPOT UK LTD (EX-GUILBERT UK)","2654682","http://opencorporates.com/companies/gb/2654682","673478594"
"London Borough of Redbridge","http://opendatacommunities.org/doc/london-borough-council/redbridge","1BOTHEROPI&E","Other Operating Income & Expenditure","1CTRADSURDEF","Trading Account Surpluses & Deficits","REV","Revenue","R9352","Legal Supplies & Services","04-SUPPLIES","Supplies And Services","04D","Printing, stationery and general office expenses","5710","Stationery","3435018","201703",09/06/2016 00:00:00,1.15,"53770","Office Stationery Supplies","REDACTED DATA","OFFICE DEPOT UK LTD (EX-GUILBERT UK)","2654682","http://opencorporates.com/companies/gb/2654682","673478594"
"London Borough of Redbridge","http://opendatacommunities.org/doc/london-borough-council/redbridge","1BOTHEROPI&E","Other Operating Income & Expenditure","1CTRADSURDEF","Trading Account Surpluses & Deficits","REV","Revenue","R9352","Legal Supplies & Services","04-SUPPLIES","Supplies And Services","04D","Printing, stationery and general office expenses","5710","Stationery","3435018","201703",09/06/2016 00:00:00,16.8,"53770","Office Stationery Supplies","REDACTED DATA","OFFICE DEPOT UK LTD (EX-GUILBERT UK)","2654682","http://opencorporates.com/companies/gb/2654682","673478594"
"London Borough of Redbridge","http://opendatacommunities.org/doc/london-borough-council/redbridge","1BOTHEROPI&E","Other Operating Income & Expenditure","1CTRADSURDEF","Trading Account Surpluses & Deficits","REV","Revenue","R9352","Legal Supplies & Services","04-SUPPLIES","Supplies And Services","04D","Printing, stationery and general office expenses","5710","Stationery","3435018","201703",09/06/2016 00:00:00,10.99,"53770","Office Stationery Supplies","REDACTED DATA","OFFICE DEPOT UK LTD (EX-GUILBERT UK)","2654682","http://opencorporates.com/companies/gb/2654682","673478594"
"London Borough of Redbridge","http://opendatacommunities.org/doc/london-borough-council/redbridge","1BOTHEROPI&E","Other Operating Income & Expenditure","1CTRADSURDEF","Trading Account Surpluses & Deficits","REV","Revenue","R9352","Legal Supplies & Services","04-SUPPLIES","Supplies And Services","04D","Printing, stationery and general office expenses","5710","Stationery","3435018","201703",09/06/2016 00:00:00,29.2,"53770","Office Stationery Supplies","REDACTED DATA","OFFICE DEPOT UK LTD (EX-GUILBERT UK)","2654682","http://opencorporates.com/companies/gb/2654682","673478594"
"London Borough of Redbridge","http://opendatacommunities.org/doc/london-borough-council/redbridge","1BOTHEROPI&E","Other Operating Income & Expenditure","1CTRADSURDEF","Trading Account Surpluses & Deficits","REV","Revenue","R9352","Legal Supplies & Services","04-SUPPLIES","Supplies And Services","04D","Printing, stationery and general office expenses","5710","Stationery","3435018","201703",09/06/2016 00:00:00,22.22,"53770","Office Stationery Supplies","REDACTED DATA","OFFICE DEPOT UK LTD (EX-GUILBERT UK)","2654682","http://opencorporates.com/companies/gb/2654682","673478594"
"London Borough of Redbridge","http://opendatacommunities.org/doc/london-borough-council/redbridge","1BOTHEROPI&E","Other Operating Income & Expenditure","1CTRADSURDEF","Trading Account Surpluses & Deficits","REV","Revenue","R9352","Legal Supplies & Services","04-SUPPLIES","Supplies And Services","04D","Printing, stationery and general office expenses","5710","Stationery","3435018","201703",09/06/2016 00:00:00,5.5,"53770","Office Stationery Supplies","REDACTED DATA","OFFICE DEPOT UK LTD (EX-GUILBERT UK)","2654682","http://opencorporates.com/companies/gb/2654682","673478594"
"London Borough of Redbridge","http://opendatacommunities.org/doc/london-borough-council/redbridge","1BOTHEROPI&E","Other Operating Income & Expenditure","1CTRADSURDEF","Trading Account Surpluses & Deficits","REV","Revenue","R9352","Legal Supplies & Services","04-SUPPLIES","Supplies And Services","04D","Printing, stationery and general office expenses","5710","Stationery","3435018","201703",09/06/2016 00:00:00,1,"53770","Office Stationery Supplies","REDACTED DATA","OFFICE DEPOT UK LTD (EX-GUILBERT UK)","2654682","http://opencorporates.com/companies/gb/2654682","673478594"
"London Borough of Redbridge","http://opendatacommunities.org/doc/london-borough-council/redbridge","1BOTHEROPI&E","Other Operating Income & Expenditure","1CTRADSURDEF","Trading Account Surpluses & Deficits","REV","Revenue","R9352","Legal Supplies & Services","04-SUPPLIES","Supplies And Services","04D","Printing, stationery and general office expenses","5710","Stationery","3435018","201703",09/06/2016 00:00:00,3.9,"53770","Office Stationery Supplies","REDACTED DATA","OFFICE DEPOT UK LTD (EX-GUILBERT UK)","2654682","http://opencorporates.com/companies/gb/2654682","673478594"
"London Borough of Redbridge","http://opendatacommunities.org/doc/london-borough-council/redbridge","1BOTHEROPI&E","Other Operating Income & Expenditure","1CTRADSURDEF","Trading Account Surpluses & Deficits","REV","Revenue","R9352","Legal Supplies & Services","04-SUPPLIES","Supplies And Services","04D","Printing, stationery and general office expenses","5710","Stationery","3435018","201703",30/06/2016 00:00:00,2.77,"53770","Office Stationery Supplies","REDACTED DATA","OFFICE DEPOT UK LTD (EX-GUILBERT UK)","2654682","http://opencorporates.com/companies/gb/2654682","673478594"
"London Borough of Redbridge","http://opendatacommunities.org/doc/london-borough-council/redbridge","1BOTHEROPI&E","Other Operating Income & Expenditure","1CTRADSURDEF","Trading Account Surpluses & Deficits","REV","Revenue","R9352","Legal Supplies & Services","04-SUPPLIES","Supplies And Services","04F","Communications and computing","5858","Phones","3431718","201703",03/04/2016 00:00:00,12.5,"51500","Mobile Phones - Personal Numbers","REDACTED DATA","ORANGE PERSONAL COMMUNICATIONS SERVICES LIMITED","2178917","http://opencorporates.com/companies/gb/2178917","771592016"
"London Borough of Redbridge","http://opendatacommunities.org/doc/london-borough-council/redbridge","1BOTHEROPI&E","Other Operating Income & Expenditure","1CTRADSURDEF","Trading Account Surpluses & Deficits","REV","Revenue","R9352","Legal Supplies & Services","04-SUPPLIES","Supplies And Services","04F","Communications and computing","5858","Phones","3431725","201703",03/05/2016 00:00:00,12.5,"51500","Mobile Phones - Personal Numbers","REDACTED DATA","ORANGE PERSONAL COMMUNICATIONS SERVICES LIMITED","2178917","http://opencorporates.com/companies/gb/2178917","771592016"
"London Borough of Redbridge","http://opendatacommunities.org/doc/london-borough-council/redbridge","1BOTHEROPI&E","Other Operating Income & Expenditure","1CTRADSURDEF","Trading Account Surpluses & Deficits","REV","Revenue","R9353","Advisory Team","01-EMPLOYEES","Employees","01A","Direct employee expenses","4","Agency Staff - Pay","3431237","201703",26/05/2016 00:00:00,729.44,"31230","Employment & Recruitment Agencies","REDACTED DATA","ADECCO UK LIMITED","593232","http://opencorporates.com/companies/gb/593232","232347975"
"London Borough of Redbridge","http://opendatacommunities.org/doc/london-borough-council/redbridge","1BOTHEROPI&E","Other Operating Income & Expenditure","1CTRADSURDEF","Trading Account Surpluses & Deficits","REV","Revenue","R9353","Advisory Team","01-EMPLOYEES","Employees","01A","Direct employee expenses","4","Agency Staff - Pay","3430065","201703",31/05/2016 00:00:00,1332.38,"31230","Employment & Recruitment Agencies","REDACTED DATA","ADECCO UK LIMITED","593232","http://opencorporates.com/companies/gb/593232","232347975"
"London Borough of Redbridge","http://opendatacommunities.org/doc/london-borough-council/redbridge","1BOTHEROPI&E","Other Operating Income & Expenditure","1CTRADSURDEF","Trading Account Surpluses & Deficits","REV","Revenue","R9353","Advisory Team","01-EMPLOYEES","Employees","01A","Direct employee expenses","4","Agency Staff - Pay","3431237","201703",26/05/2016 00:00:00,1081.44,"31230","Employment & Recruitment Agencies","REDACTED DATA","ADECCO UK LIMITED","593232","http://opencorporates.com/companies/gb/593232","232347975"
"London Borough of Redbridge","http://opendatacommunities.org/doc/london-borough-council/redbridge","1BOTHEROPI&E","Other Operating Income & Expenditure","1CTRADSURDEF","Trading Account Surpluses & Deficits","REV","Revenue","R9353","Advisory Team","01-EMPLOYEES","Employees","01A","Direct employee expenses","4","Agency Staff - Pay","3431237","201703",26/05/2016 00:00:00,1081.44,"31230","Employment & Recruitment Agencies","REDACTED DATA","ADECCO UK LIMITED","593232","http://opencorporates.com/companies/gb/593232","232347975"
"London Borough of Redbridge","http://opendatacommunities.org/doc/london-borough-council/redbridge","1BOTHEROPI&E","Other Operating Income & Expenditure","1CTRADSURDEF","Trading Account Surpluses & Deficits","REV","Revenue","R9353","Advisory Team","01-EMPLOYEES","Employees","01A","Direct employee expenses","4","Agency Staff - Pay","3431237","201703",26/05/2016 00:00:00,740.74,"31230","Employment & Recruitment Agencies","REDACTED DATA","ADECCO UK LIMITED","593232","http://opencorporates.com/companies/gb/593232","232347975"
"London Borough of Redbridge","http://opendatacommunities.org/doc/london-borough-council/redbridge","1BOTHEROPI&E","Other Operating Income & Expenditure","1CTRADSURDEF","Trading Account Surpluses & Deficits","REV","Revenue","R9353","Advisory Team","01-EMPLOYEES","Employees","01A","Direct employee expenses","4","Agency Staff - Pay","3431762","201703",08/06/2016 00:00:00,668.39,"31230","Employment & Recruitment Agencies","REDACTED DATA","ADECCO UK LIMITED","593232","http://opencorporates.com/companies/gb/593232","232347975"
"London Borough of Redbridge","http://opendatacommunities.org/doc/london-borough-council/redbridge","1BOTHEROPI&E","Other Operating Income & Expenditure","1CTRADSURDEF","Trading Account Surpluses & Deficits","REV","Revenue","R9353","Advisory Team","01-EMPLOYEES","Employees","01A","Direct employee expenses","4","Agency Staff - Pay","3431762","201703",08/06/2016 00:00:00,976.3,"31230","Employment & Recruitment Agencies","REDACTED DATA","ADECCO UK LIMITED","593232","http://opencorporates.com/companies/gb/593232","232347975"
"London Borough of Redbridge","http://opendatacommunities.org/doc/london-borough-council/redbridge","1BOTHEROPI&E","Other Operating Income & Expenditure","1CTRADSURDEF","Trading Account Surpluses & Deficits","REV","Revenue","R9353","Advisory Team","01-EMPLOYEES","Employees","01A","Direct employee expenses","4","Agency Staff - Pay","3431237","201703",26/05/2016 00:00:00,617.12,"31230","Employment & Recruitment Agencies","REDACTED DATA","ADECCO UK LIMITED","593232","http://opencorporates.com/companies/gb/593232","232347975"
"London Borough of Redbridge","http://opendatacommunities.org/doc/london-borough-council/redbridge","1BOTHEROPI&E","Other Operating Income & Expenditure","1CTRADSURDEF","Trading Account Surpluses & Deficits","REV","Revenue","R9353","Advisory Team","01-EMPLOYEES","Employees","01A","Direct employee expenses","4","Agency Staff - Pay","3432177","201703",15/06/2016 00:00:00,1074.78,"31230","Employment & Recruitment Agencies","REDACTED DATA","ADECCO UK LIMITED","593232","http://opencorporates.com/companies/gb/593232","232347975"
"London Borough of Redbridge","http://opendatacommunities.org/doc/london-borough-council/redbridge","1BOTHEROPI&E","Other Operating Income & Expenditure","1CTRADSURDEF","Trading Account Surpluses & Deficits","REV","Revenue","R9353","Advisory Team","01-EMPLOYEES","Employees","01A","Direct employee expenses","4","Agency Staff - Pay","3431762","201703",08/06/2016 00:00:00,1001,"31230","Employment & Recruitment Agencies","REDACTED DATA","ADECCO UK LIMITED","593232","http://opencorporates.com/companies/gb/593232","232347975"
"London Borough of Redbridge","http://opendatacommunities.org/doc/london-borough-council/redbridge","1BOTHEROPI&E","Other Operating Income & Expenditure","1CTRADSURDEF","Trading Account Surpluses & Deficits","REV","Revenue","R9353","Advisory Team","01-EMPLOYEES","Employees","01A","Direct employee expenses","4","Agency Staff - Pay","3430066","201703",27/05/2016 00:00:00,6.64,"31230","Employment & Recruitment Agencies","REDACTED DATA","ADECCO UK LIMITED","593232","http://opencorporates.com/companies/gb/593232","232347975"
"London Borough of Redbridge","http://opendatacommunities.org/doc/london-borough-council/redbridge","1BOTHEROPI&E","Other Operating Income & Expenditure","1CTRADSURDEF","Trading Account Surpluses & Deficits","REV","Revenue","R9353","Advisory Team","01-EMPLOYEES","Employees","01A","Direct employee expenses","4","Agency Staff - Pay","3430066","201703",27/05/2016 00:00:00,7.03,"31230","Employment & Recruitment Agencies","REDACTED DATA","ADECCO UK LIMITED","593232","http://opencorporates.com/companies/gb/593232","232347975"
"London Borough of Redbridge","http://opendatacommunities.org/doc/london-borough-council/redbridge","1BOTHEROPI&E","Other Operating Income & Expenditure","1CTRADSURDEF","Trading Account Surpluses & Deficits","REV","Revenue","R9353","Advisory Team","01-EMPLOYEES","Employees","01A","Direct employee expenses","4","Agency Staff - Pay","3431237","201703",26/05/2016 00:00:00,870.49,"31230","Employment & Recruitment Agencies","REDACTED DATA","ADECCO UK LIMITED","593232","http://opencorporates.com/companies/gb/593232","232347975"
"London Borough of Redbridge","http://opendatacommunities.org/doc/london-borough-council/redbridge","1BOTHEROPI&E","Other Operating Income & Expenditure","1CTRADSURDEF","Trading Account Surpluses & Deficits","REV","Revenue","R9353","Advisory Team","01-EMPLOYEES","Employees","01A","Direct employee expenses","4","Agency Staff - Pay","3431237","201703",26/05/2016 00:00:00,1003.72,"31230","Employment & Recruitment Agencies","REDACTED DATA","ADECCO UK LIMITED","593232","http://opencorporates.com/companies/gb/593232","232347975"
"London Borough of Redbridge","http://opendatacommunities.org/doc/london-borough-council/redbridge","1BOTHEROPI&E","Other Operating Income & Expenditure","1CTRADSURDEF","Trading Account Surpluses & Deficits","REV","Revenue","R9353","Advisory Team","01-EMPLOYEES","Employees","01A","Direct employee expenses","4","Agency Staff - Pay","3430066","201703",27/05/2016 00:00:00,6.71,"31230","Employment & Recruitment Agencies","REDACTED DATA","ADECCO UK LIMITED","593232","http://opencorporates.com/companies/gb/593232","232347975"
"London Borough of Redbridge","http://opendatacommunities.org/doc/london-borough-council/redbridge","1BOTHEROPI&E","Other Operating Income & Expenditure","1CTRADSURDEF","Trading Account Surpluses & Deficits","REV","Revenue","R9353","Advisory Team","01-EMPLOYEES","Employees","01A","Direct employee expenses","4","Agency Staff - Pay","3431762","201703",08/06/2016 00:00:00,776,"31230","Employment & Recruitment Agencies","REDACTED DATA","ADECCO UK LIMITED","593232","http://opencorporates.com/companies/gb/593232","232347975"
"London Borough of Redbridge","http://opendatacommunities.org/doc/london-borough-council/redbridge","1BOTHEROPI&E","Other Operating Income & Expenditure","1CTRADSURDEF","Trading Account Surpluses & Deficits","REV","Revenue","R9353","Advisory Team","01-EMPLOYEES","Employees","01A","Direct employee expenses","4","Agency Staff - Pay","3431762","201703",08/06/2016 00:00:00,814.8,"31230","Employment & Recruitment Agencies","REDACTED DATA","ADECCO UK LIMITED","593232","http://opencorporates.com/companies/gb/593232","232347975"
"London Borough of Redbridge","http://opendatacommunities.org/doc/london-borough-council/redbridge","1BOTHEROPI&E","Other Operating Income & Expenditure","1CTRADSURDEF","Trading Account Surpluses & Deficits","REV","Revenue","R9353","Advisory Team","01-EMPLOYEES","Employees","01A","Direct employee expenses","4","Agency Staff - Pay","3431762","201703",08/06/2016 00:00:00,906.02,"31230","Employment & Recruitment Agencies","REDACTED DATA","ADECCO UK LIMITED","593232","http://opencorporates.com/companies/gb/593232","232347975"
"London Borough of Redbridge","http://opendatacommunities.org/doc/london-borough-council/redbridge","1BOTHEROPI&E","Other Operating Income & Expenditure","1CTRADSURDEF","Trading Account Surpluses & Deficits","REV","Revenue","R9353","Advisory Team","01-EMPLOYEES","Employees","01A","Direct employee expenses","4","Agency Staff - Pay","3431762","201703",08/06/2016 00:00:00,595.08,"31230","Employment & Recruitment Agencies","REDACTED DATA","ADECCO UK LIMITED","593232","http://opencorporates.com/companies/gb/593232","232347975"
"London Borough of Redbridge","http://opendatacommunities.org/doc/london-borough-council/redbridge","1BOTHEROPI&E","Other Operating Income & Expenditure","1CTRADSURDEF","Trading Account Surpluses & Deficits","REV","Revenue","R9353","Advisory Team","01-EMPLOYEES","Employees","01A","Direct employee expenses","4","Agency Staff - Pay","3431762","201703",08/06/2016 00:00:00,617.12,"31230","Employment & Recruitment Agencies","REDACTED DATA","ADECCO UK LIMITED","593232","http://opencorporates.com/companies/gb/593232","232347975"
"London Borough of Redbridge","http://opendatacommunities.org/doc/london-borough-council/redbridge","1BOTHEROPI&E","Other Operating Income & Expenditure","1CTRADSURDEF","Trading Account Surpluses & Deficits","REV","Revenue","R9353","Advisory Team","01-EMPLOYEES","Employees","01A","Direct employee expenses","4","Agency Staff - Pay","3431762","201703",08/06/2016 00:00:00,1021.02,"31230","Employment & Recruitment Agencies","REDACTED DATA","ADECCO UK LIMITED","593232","http://opencorporates.com/companies/gb/593232","232347975"
"London Borough of Redbridge","http://opendatacommunities.org/doc/london-borough-council/redbridge","1BOTHEROPI&E","Other Operating Income & Expenditure","1CTRADSURDEF","Trading Account Surpluses & Deficits","REV","Revenue","R9353","Advisory Team","01-EMPLOYEES","Employees","01A","Direct employee expenses","4","Agency Staff - Pay","3431237","201703",26/05/2016 00:00:00,698.4,"31230","Employment & Recruitment Agencies","REDACTED DATA","ADECCO UK LIMITED","593232","http://opencorporates.com/companies/gb/593232","232347975"
"London Borough of Redbridge","http://opendatacommunities.org/doc/london-borough-council/redbridge","1BOTHEROPI&E","Other Operating Income & Expenditure","1CTRADSURDEF","Trading Account Surpluses & Deficits","REV","Revenue","R9353","Advisory Team","01-EMPLOYEES","Employees","01A","Direct employee expenses","4","Agency Staff - Pay","3430066","201703",27/05/2016 00:00:00,0.94,"31230","Employment & Recruitment Agencies","REDACTED DATA","ADECCO UK LIMITED","593232","http://opencorporates.com/companies/gb/593232","232347975"
"London Borough of Redbridge","http://opendatacommunities.org/doc/london-borough-council/redbridge","1BOTHEROPI&E","Other Operating Income & Expenditure","1CTRADSURDEF","Trading Account Surpluses & Deficits","REV","Revenue","R9353","Advisory Team","01-EMPLOYEES","Employees","01A","Direct employee expenses","4","Agency Staff - Pay","3430066","201703",27/05/2016 00:00:00,26.04,"31230","Employment & Recruitment Agencies","REDACTED DATA","ADECCO UK LIMITED","593232","http://opencorporates.com/companies/gb/593232","232347975"
"London Borough of Redbridge","http://opendatacommunities.org/doc/london-borough-council/redbridge","1BOTHEROPI&E","Other Operating Income & Expenditure","1CTRADSURDEF","Trading Account Surpluses & Deficits","REV","Revenue","R9354","Legal Disbursements","04-SUPPLIES","Supplies And Services","04H","Grants and subscriptions","5954","Professional Fees","60311515","201703",20/04/2016 00:00:00,360,"6700","Barristers","REDACTED DATA","STEPHEN EVANS","",,"626021183"
"London Borough of Redbridge","http://opendatacommunities.org/doc/london-borough-council/redbridge","1BOTHEROPI&E","Other Operating Income & Expenditure","1CTRADSURDEF","Trading Account Surpluses & Deficits","REV","Revenue","R9354","Legal Disbursements","04-SUPPLIES","Supplies And Services","04H","Grants and subscriptions","5954","Professional Fees","60311514","201703",21/03/2016 00:00:00,250,"6700","Barristers","REDACTED DATA","BEN SEIFERT","6609487764","http://opencorporates.com/companies/gb/6609487764","129701417"
"London Borough of Redbridge","http://opendatacommunities.org/doc/london-borough-council/redbridge","1BOTHEROPI&E","Other Operating Income & Expenditure","1CTRADSURDEF","Trading Account Surpluses & Deficits","REV","Revenue","R9354","Legal Disbursements","04-SUPPLIES","Supplies And Services","04H","Grants and subscriptions","5954","Professional Fees","60311513","201703",05/04/2016 00:00:00,350,"6700","Barristers","REDACTED DATA","REBECCA PENFOLD","4076253833","http://opencorporates.com/companies/gb/4076253833","171065723"
"London Borough of Redbridge","http://opendatacommunities.org/doc/london-borough-council/redbridge","1BOTHEROPI&E","Other Operating Income & Expenditure","1CTRADSURDEF","Trading Account Surpluses & Deficits","REV","Revenue","R9354","Legal Disbursements","04-SUPPLIES","Supplies And Services","04H","Grants and subscriptions","5954","Professional Fees","60311512","201703",18/04/2016 00:00:00,1250,"6700","Barristers","REDACTED DATA","PAUL STEVENSON","9295667323","http://opencorporates.com/companies/gb/9295667323","939183001"
"London Borough of Redbridge","http://opendatacommunities.org/doc/london-borough-council/redbridge","1BOTHEROPI&E","Other Operating Income & Expenditure","1CTRADSURDEF","Trading Account Surpluses & Deficits","REV","Revenue","R9354","Legal Disbursements","04-SUPPLIES","Supplies And Services","04H","Grants and subscriptions","5954","Professional Fees","60310444","201703",25/05/2016 00:00:00,1100,"6700","Barristers","REDACTED DATA","CLIVE SHELDON","4007031419","http://opencorporates.com/companies/gb/4007031419","653553921"
"London Borough of Redbridge","http://opendatacommunities.org/doc/london-borough-council/redbridge","1BOTHEROPI&E","Other Operating Income & Expenditure","1CTRADSURDEF","Trading Account Surpluses & Deficits","REV","Revenue","R9354","Legal Disbursements","04-SUPPLIES","Supplies And Services","04H","Grants and subscriptions","5954","Professional Fees","60311556","201703",06/06/2016 00:00:00,2350,"6700","Barristers","REDACTED DATA","JOSEPHINE HENDERSON","1301262664","http://opencorporates.com/companies/gb/1301262664","628148921"
"London Borough of Redbridge","http://opendatacommunities.org/doc/london-borough-council/redbridge","1BOTHEROPI&E","Other Operating Income & Expenditure","1CTRADSURDEF","Trading Account Surpluses & Deficits","REV","Revenue","R9354","Legal Disbursements","04-SUPPLIES","Supplies And Services","04H","Grants and subscriptions","5954","Professional Fees","60312267","201703",24/05/2016 00:00:00,1400,"6700","Barristers","REDACTED DATA","LEO DAVIDSON","2705596887","http://opencorporates.com/companies/gb/2705596887","221072069"
"London Borough of Redbridge","http://opendatacommunities.org/doc/london-borough-council/redbridge","1BOTHEROPI&E","Other Operating Income & Expenditure","1CTRADSURDEF","Trading Account Surpluses & Deficits","REV","Revenue","R9354","Legal Disbursements","04-SUPPLIES","Supplies And Services","04H","Grants and subscriptions","5954","Professional Fees","60312268","201703",09/05/2016 00:00:00,2000,"6700","Barristers","REDACTED DATA","DAVID GRAHAM","1435497258","http://opencorporates.com/companies/gb/1435497258","126272919"
"London Borough of Redbridge","http://opendatacommunities.org/doc/london-borough-council/redbridge","1BOTHEROPI&E","Other Operating Income & Expenditure","1CTRADSURDEF","Trading Account Surpluses & Deficits","REV","Revenue","R9460","Human Resources misc","01-EMPLOYEES","Employees","01A","Direct employee expenses","4","Agency Staff - Pay","3430066","201703",27/05/2016 00:00:00,3.66,"31230","Employment & Recruitment Agencies","REDACTED DATA","ADECCO UK LIMITED","593232","http://opencorporates.com/companies/gb/593232","232347975"
"London Borough of Redbridge","http://opendatacommunities.org/doc/london-borough-council/redbridge","1BOTHEROPI&E","Other Operating Income & Expenditure","1CTRADSURDEF","Trading Account Surpluses & Deficits","REV","Revenue","R9460","Human Resources misc","01-EMPLOYEES","Employees","01A","Direct employee expenses","4","Agency Staff - Pay","3430066","201703",27/05/2016 00:00:00,5.26,"31230","Employment & Recruitment Agencies","REDACTED DATA","ADECCO UK LIMITED","593232","http://opencorporates.com/companies/gb/593232","232347975"
"London Borough of Redbridge","http://opendatacommunities.org/doc/london-borough-council/redbridge","1BOTHEROPI&E","Other Operating Income & Expenditure","1CTRADSURDEF","Trading Account Surpluses & Deficits","REV","Revenue","R9460","Human Resources misc","01-EMPLOYEES","Employees","01A","Direct employee expenses","4","Agency Staff - Pay","3431237","201703",26/05/2016 00:00:00,992.16,"31230","Employment & Recruitment Agencies","REDACTED DATA","ADECCO UK LIMITED","593232","http://opencorporates.com/companies/gb/593232","232347975"
"London Borough of Redbridge","http://opendatacommunities.org/doc/london-borough-council/redbridge","1BOTHEROPI&E","Other Operating Income & Expenditure","1CTRADSURDEF","Trading Account Surpluses & Deficits","REV","Revenue","R9460","Human Resources misc","01-EMPLOYEES","Employees","01A","Direct employee expenses","4","Agency Staff - Pay","3431762","201703",08/06/2016 00:00:00,432.39,"31230","Employment & Recruitment Agencies","REDACTED DATA","ADECCO UK LIMITED","593232","http://opencorporates.com/companies/gb/593232","232347975"
"London Borough of Redbridge","http://opendatacommunities.org/doc/london-borough-council/redbridge","1BOTHEROPI&E","Other Operating Income & Expenditure","1CTRADSURDEF","Trading Account Surpluses & Deficits","REV","Revenue","R9460","Human Resources misc","01-EMPLOYEES","Employees","01A","Direct employee expenses","4","Agency Staff - Pay","60312130","201703",13/06/2016 00:00:00,1068.75,"53280","Nursing Agencies","REDACTED DATA","JUST RECRUIT GROUP LTD","7222010","http://opencorporates.com/companies/gb/7222010","998933630"
"London Borough of Redbridge","http://opendatacommunities.org/doc/london-borough-council/redbridge","1BOTHEROPI&E","Other Operating Income & Expenditure","1CTRADSURDEF","Trading Account Surpluses & Deficits","REV","Revenue","R9460","Human Resources misc","01-EMPLOYEES","Employees","01A","Direct employee expenses","4","Agency Staff - Pay","3431237","201703",26/05/2016 00:00:00,592.52,"31230","Employment & Recruitment Agencies","REDACTED DATA","ADECCO UK LIMITED","593232","http://opencorporates.com/companies/gb/593232","232347975"
"London Borough of Redbridge","http://opendatacommunities.org/doc/london-borough-council/redbridge","1BOTHEROPI&E","Other Operating Income & Expenditure","1CTRADSURDEF","Trading Account Surpluses & Deficits","REV","Revenue","R9460","Human Resources misc","01-EMPLOYEES","Employees","01A","Direct employee expenses","4","Agency Staff - Pay","3432177","201703",15/06/2016 00:00:00,668.88,"31230","Employment & Recruitment Agencies","REDACTED DATA","ADECCO UK LIMITED","593232","http://opencorporates.com/companies/gb/593232","232347975"
"London Borough of Redbridge","http://opendatacommunities.org/doc/london-borough-council/redbridge","1BOTHEROPI&E","Other Operating Income & Expenditure","1CTRADSURDEF","Trading Account Surpluses & Deficits","REV","Revenue","R9460","Human Resources misc","01-EMPLOYEES","Employees","01A","Direct employee expenses","4","Agency Staff - Pay","3431237","201703",26/05/2016 00:00:00,383.45,"31230","Employment & Recruitment Agencies","REDACTED DATA","ADECCO UK LIMITED","593232","http://opencorporates.com/companies/gb/593232","232347975"
"London Borough of Redbridge","http://opendatacommunities.org/doc/london-borough-council/redbridge","1BOTHEROPI&E","Other Operating Income & Expenditure","1CTRADSURDEF","Trading Account Surpluses & Deficits","REV","Revenue","R9460","Human Resources misc","01-EMPLOYEES","Employees","01A","Direct employee expenses","4","Agency Staff - Pay","3430065","201703",31/05/2016 00:00:00,641.52,"31230","Employment & Recruitment Agencies","REDACTED DATA","ADECCO UK LIMITED","593232","http://opencorporates.com/companies/gb/593232","232347975"
"London Borough of Redbridge","http://opendatacommunities.org/doc/london-borough-council/redbridge","1BOTHEROPI&E","Other Operating Income & Expenditure","1CTRADSURDEF","Trading Account Surpluses & Deficits","REV","Revenue","R9460","Human Resources misc","01-EMPLOYEES","Employees","01A","Direct employee expenses","4","Agency Staff - Pay","3431762","201703",08/06/2016 00:00:00,511.27,"31230","Employment & Recruitment Agencies","REDACTED DATA","ADECCO UK LIMITED","593232","http://opencorporates.com/companies/gb/593232","232347975"
"London Borough of Redbridge","http://opendatacommunities.org/doc/london-borough-council/redbridge","1BOTHEROPI&E","Other Operating Income & Expenditure","1CTRADSURDEF","Trading Account Surpluses & Deficits","REV","Revenue","R9460","Human Resources misc","01-EMPLOYEES","Employees","01A","Direct employee expenses","4","Agency Staff - Pay","60313194","201703",21/06/2016 00:00:00,1102.93,"31230","Employment & Recruitment Agencies","REDACTED DATA","ALLEN LANE LIMITED","5115229","http://opencorporates.com/companies/gb/5115229","835970985"
"London Borough of Redbridge","http://opendatacommunities.org/doc/london-borough-council/redbridge","1BOTHEROPI&E","Other Operating Income & Expenditure","1CTRADSURDEF","Trading Account Surpluses & Deficits","REV","Revenue","R9460","Human Resources misc","01-EMPLOYEES","Employees","01A","Direct employee expenses","4","Agency Staff - Pay","60311698","201703",08/06/2016 00:00:00,2647.03,"31230","Employment & Recruitment Agencies","REDACTED DATA","ALLEN LANE LIMITED","5115229","http://opencorporates.com/companies/gb/5115229","835970985"
"London Borough of Redbridge","http://opendatacommunities.org/doc/london-borough-council/redbridge","1BOTHEROPI&E","Other Operating Income & Expenditure","1CTRADSURDEF","Trading Account Surpluses & Deficits","REV","Revenue","R9460","Human Resources misc","01-EMPLOYEES","Employees","01A","Direct employee expenses","4","Agency Staff - Pay","3431237","201703",26/05/2016 00:00:00,617.18,"31230","Employment & Recruitment Agencies","REDACTED DATA","ADECCO UK LIMITED","593232","http://opencorporates.com/companies/gb/593232","232347975"
"London Borough of Redbridge","http://opendatacommunities.org/doc/london-borough-council/redbridge","1BOTHEROPI&E","Other Operating Income & Expenditure","1CTRADSURDEF","Trading Account Surpluses & Deficits","REV","Revenue","R9460","Human Resources misc","01-EMPLOYEES","Employees","01A","Direct employee expenses","4","Agency Staff - Pay","3430065","201703",31/05/2016 00:00:00,723.6,"31230","Employment & Recruitment Agencies","REDACTED DATA","ADECCO UK LIMITED","593232","http://opencorporates.com/companies/gb/593232","232347975"
"London Borough of Redbridge","http://opendatacommunities.org/doc/london-borough-council/redbridge","1BOTHEROPI&E","Other Operating Income & Expenditure","1CTRADSURDEF","Trading Account Surpluses & Deficits","REV","Revenue","R9460","Human Resources misc","01-EMPLOYEES","Employees","01A","Direct employee expenses","4","Agency Staff - Pay","3432177","201703",15/06/2016 00:00:00,536.76,"31230","Employment & Recruitment Agencies","REDACTED DATA","ADECCO UK LIMITED","593232","http://opencorporates.com/companies/gb/593232","232347975"
"London Borough of Redbridge","http://opendatacommunities.org/doc/london-borough-council/redbridge","1BOTHEROPI&E","Other Operating Income & Expenditure","1CTRADSURDEF","Trading Account Surpluses & Deficits","REV","Revenue","R9460","Human Resources misc","01-EMPLOYEES","Employees","01A","Direct employee expenses","4","Agency Staff - Pay","3430065","201703",31/05/2016 00:00:00,634.68,"31230","Employment & Recruitment Agencies","REDACTED DATA","ADECCO UK LIMITED","593232","http://opencorporates.com/companies/gb/593232","232347975"
"London Borough of Redbridge","http://opendatacommunities.org/doc/london-borough-council/redbridge","1BOTHEROPI&E","Other Operating Income & Expenditure","1CTRADSURDEF","Trading Account Surpluses & Deficits","REV","Revenue","R9460","Human Resources misc","01-EMPLOYEES","Employees","01A","Direct employee expenses","4","Agency Staff - Pay","3431237","201703",26/05/2016 00:00:00,536.76,"31230","Employment & Recruitment Agencies","REDACTED DATA","ADECCO UK LIMITED","593232","http://opencorporates.com/companies/gb/593232","232347975"
"London Borough of Redbridge","http://opendatacommunities.org/doc/london-borough-council/redbridge","1BOTHEROPI&E","Other Operating Income & Expenditure","1CTRADSURDEF","Trading Account Surpluses & Deficits","REV","Revenue","R9460","Human Resources misc","01-EMPLOYEES","Employees","01A","Direct employee expenses","4","Agency Staff - Pay","3431237","201703",26/05/2016 00:00:00,434.7,"31230","Employment & Recruitment Agencies","REDACTED DATA","ADECCO UK LIMITED","593232","http://opencorporates.com/companies/gb/593232","232347975"
"London Borough of Redbridge","http://opendatacommunities.org/doc/london-borough-council/redbridge","1BOTHEROPI&E","Other Operating Income & Expenditure","1CTRADSURDEF","Trading Account Surpluses & Deficits","REV","Revenue","R9460","Human Resources misc","01-EMPLOYEES","Employees","01A","Direct employee expenses","4","Agency Staff - Pay","3431762","201703",08/06/2016 00:00:00,353.97,"31230","Employment & Recruitment Agencies","REDACTED DATA","ADECCO UK LIMITED","593232","http://opencorporates.com/companies/gb/593232","232347975"
"London Borough of Redbridge","http://opendatacommunities.org/doc/london-borough-council/redbridge","1BOTHEROPI&E","Other Operating Income & Expenditure","1CTRADSURDEF","Trading Account Surpluses & Deficits","REV","Revenue","R9460","Human Resources misc","01-EMPLOYEES","Employees","01A","Direct employee expenses","4","Agency Staff - Pay","3431237","201703",26/05/2016 00:00:00,981.36,"31230","Employment & Recruitment Agencies","REDACTED DATA","ADECCO UK LIMITED","593232","http://opencorporates.com/companies/gb/593232","232347975"
"London Borough of Redbridge","http://opendatacommunities.org/doc/london-borough-council/redbridge","1BOTHEROPI&E","Other Operating Income & Expenditure","1CTRADSURDEF","Trading Account Surpluses & Deficits","REV","Revenue","R9460","Human Resources misc","01-EMPLOYEES","Employees","01A","Direct employee expenses","4","Agency Staff - Pay","3432177","201703",15/06/2016 00:00:00,992.16,"31230","Employment & Recruitment Agencies","REDACTED DATA","ADECCO UK LIMITED","593232","http://opencorporates.com/companies/gb/593232","232347975"
"London Borough of Redbridge","http://opendatacommunities.org/doc/london-borough-council/redbridge","1BOTHEROPI&E","Other Operating Income & Expenditure","1CTRADSURDEF","Trading Account Surpluses & Deficits","REV","Revenue","R9460","Human Resources misc","01-EMPLOYEES","Employees","01A","Direct employee expenses","4","Agency Staff - Pay","3432177","201703",15/06/2016 00:00:00,793.95,"31230","Employment & Recruitment Agencies","REDACTED DATA","ADECCO UK LIMITED","593232","http://opencorporates.com/companies/gb/593232","232347975"
"London Borough of Redbridge","http://opendatacommunities.org/doc/london-borough-council/redbridge","1BOTHEROPI&E","Other Operating Income & Expenditure","1CTRADSURDEF","Trading Account Surpluses & Deficits","REV","Revenue","R9460","Human Resources misc","01-EMPLOYEES","Employees","01A","Direct employee expenses","4","Agency Staff - Pay","3431762","201703",08/06/2016 00:00:00,648.23,"31230","Employment & Recruitment Agencies","REDACTED DATA","ADECCO UK LIMITED","593232","http://opencorporates.com/companies/gb/593232","232347975"
"London Borough of Redbridge","http://opendatacommunities.org/doc/london-borough-council/redbridge","1BOTHEROPI&E","Other Operating Income & Expenditure","1CTRADSURDEF","Trading Account Surpluses & Deficits","REV","Revenue","R9460","Human Resources misc","01-EMPLOYEES","Employees","01A","Direct employee expenses","4","Agency Staff - Pay","3432177","201703",15/06/2016 00:00:00,872.32,"31230","Employment & Recruitment Agencies","REDACTED DATA","ADECCO UK LIMITED","593232","http://opencorporates.com/companies/gb/593232","232347975"
"London Borough of Redbridge","http://opendatacommunities.org/doc/london-borough-council/redbridge","1BOTHEROPI&E","Other Operating Income & Expenditure","1CTRADSURDEF","Trading Account Surpluses & Deficits","REV","Revenue","R9460","Human Resources misc","01-EMPLOYEES","Employees","01A","Direct employee expenses","4","Agency Staff - Pay","3430065","201703",31/05/2016 00:00:00,668.88,"31230","Employment & Recruitment Agencies","REDACTED DATA","ADECCO UK LIMITED","593232","http://opencorporates.com/companies/gb/593232","232347975"
"London Borough of Redbridge","http://opendatacommunities.org/doc/london-borough-council/redbridge","1BOTHEROPI&E","Other Operating Income & Expenditure","1CTRADSURDEF","Trading Account Surpluses & Deficits","REV","Revenue","R9460","Human Resources misc","01-EMPLOYEES","Employees","01A","Direct employee expenses","4","Agency Staff - Pay","60312330","201703",15/06/2016 00:00:00,1102.93,"31230","Employment & Recruitment Agencies","REDACTED DATA","ALLEN LANE LIMITED","5115229","http://opencorporates.com/companies/gb/5115229","835970985"
"London Borough of Redbridge","http://opendatacommunities.org/doc/london-borough-council/redbridge","1BOTHEROPI&E","Other Operating Income & Expenditure","1CTRADSURDEF","Trading Account Surpluses & Deficits","REV","Revenue","R9460","Human Resources misc","01-EMPLOYEES","Employees","01A","Direct employee expenses","4","Agency Staff - Pay","3432177","201703",15/06/2016 00:00:00,992.16,"31230","Employment & Recruitment Agencies","REDACTED DATA","ADECCO UK LIMITED","593232","http://opencorporates.com/companies/gb/593232","232347975"
"London Borough of Redbridge","http://opendatacommunities.org/doc/london-borough-council/redbridge","1BOTHEROPI&E","Other Operating Income & Expenditure","1CTRADSURDEF","Trading Account Surpluses & Deficits","REV","Revenue","R9460","Human Resources misc","01-EMPLOYEES","Employees","01A","Direct employee expenses","4","Agency Staff - Pay","3432177","201703",15/06/2016 00:00:00,617.18,"31230","Employment & Recruitment Agencies","REDACTED DATA","ADECCO UK LIMITED","593232","http://opencorporates.com/companies/gb/593232","232347975"
"London Borough of Redbridge","http://opendatacommunities.org/doc/london-borough-council/redbridge","1BOTHEROPI&E","Other Operating Income & Expenditure","1CTRADSURDEF","Trading Account Surpluses & Deficits","REV","Revenue","R9460","Human Resources misc","01-EMPLOYEES","Employees","01A","Direct employee expenses","4","Agency Staff - Pay","3430066","201703",27/05/2016 00:00:00,2.82,"31230","Employment & Recruitment Agencies","REDACTED DATA","ADECCO UK LIMITED","593232","http://opencorporates.com/companies/gb/593232","232347975"
"London Borough of Redbridge","http://opendatacommunities.org/doc/london-borough-council/redbridge","1BOTHEROPI&E","Other Operating Income & Expenditure","1CTRADSURDEF","Trading Account Surpluses & Deficits","REV","Revenue","R9460","Human Resources misc","01-EMPLOYEES","Employees","01A","Direct employee expenses","4","Agency Staff - Pay","3430066","201703",27/05/2016 00:00:00,1.52,"31230","Employment & Recruitment Agencies","REDACTED DATA","ADECCO UK LIMITED","593232","http://opencorporates.com/companies/gb/593232","232347975"
"London Borough of Redbridge","http://opendatacommunities.org/doc/london-borough-council/redbridge","1BOTHEROPI&E","Other Operating Income & Expenditure","1CTRADSURDEF","Trading Account Surpluses & Deficits","REV","Revenue","R9460","Human Resources misc","01-EMPLOYEES","Employees","01A","Direct employee expenses","4","Agency Staff - Pay","3432177","201703",15/06/2016 00:00:00,986.45,"31230","Employment & Recruitment Agencies","REDACTED DATA","ADECCO UK LIMITED","593232","http://opencorporates.com/companies/gb/593232","232347975"
"London Borough of Redbridge","http://opendatacommunities.org/doc/london-borough-council/redbridge","1BOTHEROPI&E","Other Operating Income & Expenditure","1CTRADSURDEF","Trading Account Surpluses & Deficits","REV","Revenue","R9460","Human Resources misc","01-EMPLOYEES","Employees","01A","Direct employee expenses","4","Agency Staff - Pay","3432177","201703",15/06/2016 00:00:00,0,"31230","Employment & Recruitment Agencies","REDACTED DATA","ADECCO UK LIMITED","593232","http://opencorporates.com/companies/gb/593232","232347975"
"London Borough of Redbridge","http://opendatacommunities.org/doc/london-borough-council/redbridge","1BOTHEROPI&E","Other Operating Income & Expenditure","1CTRADSURDEF","Trading Account Surpluses & Deficits","REV","Revenue","R9460","Human Resources misc","01-EMPLOYEES","Employees","01A","Direct employee expenses","4","Agency Staff - Pay","3432177","201703",15/06/2016 00:00:00,677.16,"31230","Employment & Recruitment Agencies","REDACTED DATA","ADECCO UK LIMITED","593232","http://opencorporates.com/companies/gb/593232","232347975"
"London Borough of Redbridge","http://opendatacommunities.org/doc/london-borough-council/redbridge","1BOTHEROPI&E","Other Operating Income & Expenditure","1CTRADSURDEF","Trading Account Surpluses & Deficits","REV","Revenue","R9460","Human Resources misc","01-EMPLOYEES","Employees","01A","Direct employee expenses","4","Agency Staff - Pay","3431762","201703",08/06/2016 00:00:00,872.32,"31230","Employment & Recruitment Agencies","REDACTED DATA","ADECCO UK LIMITED","593232","http://opencorporates.com/companies/gb/593232","232347975"
"London Borough of Redbridge","http://opendatacommunities.org/doc/london-borough-council/redbridge","1BOTHEROPI&E","Other Operating Income & Expenditure","1CTRADSURDEF","Trading Account Surpluses & Deficits","REV","Revenue","R9460","Human Resources misc","01-EMPLOYEES","Employees","01A","Direct employee expenses","4","Agency Staff - Pay","3431762","201703",08/06/2016 00:00:00,981.36,"31230","Employment & Recruitment Agencies","REDACTED DATA","ADECCO UK LIMITED","593232","http://opencorporates.com/companies/gb/593232","232347975"
"London Borough of Redbridge","http://opendatacommunities.org/doc/london-borough-council/redbridge","1BOTHEROPI&E","Other Operating Income & Expenditure","1CTRADSURDEF","Trading Account Surpluses & Deficits","REV","Revenue","R9460","Human Resources misc","01-EMPLOYEES","Employees","01A","Direct employee expenses","4","Agency Staff - Pay","3432177","201703",15/06/2016 00:00:00,634.68,"31230","Employment & Recruitment Agencies","REDACTED DATA","ADECCO UK LIMITED","593232","http://opencorporates.com/companies/gb/593232","232347975"
"London Borough of Redbridge","http://opendatacommunities.org/doc/london-borough-council/redbridge","1BOTHEROPI&E","Other Operating Income & Expenditure","1CTRADSURDEF","Trading Account Surpluses & Deficits","REV","Revenue","R9460","Human Resources misc","01-EMPLOYEES","Employees","01A","Direct employee expenses","4","Agency Staff - Pay","3430065","201703",31/05/2016 00:00:00,261.82,"31230","Employment & Recruitment Agencies","REDACTED DATA","ADECCO UK LIMITED","593232","http://opencorporates.com/companies/gb/593232","232347975"
"London Borough of Redbridge","http://opendatacommunities.org/doc/london-borough-council/redbridge","1BOTHEROPI&E","Other Operating Income & Expenditure","1CTRADSURDEF","Trading Account Surpluses & Deficits","REV","Revenue","R9460","Human Resources misc","01-EMPLOYEES","Employees","01A","Direct employee expenses","4","Agency Staff - Pay","60312967","201703",22/06/2016 00:00:00,562.5,"53280","Nursing Agencies","REDACTED DATA","JUST RECRUIT GROUP LTD","7222010","http://opencorporates.com/companies/gb/7222010","998933630"
"London Borough of Redbridge","http://opendatacommunities.org/doc/london-borough-council/redbridge","1BOTHEROPI&E","Other Operating Income & Expenditure","1CTRADSURDEF","Trading Account Surpluses & Deficits","REV","Revenue","R9460","Human Resources misc","01-EMPLOYEES","Employees","01A","Direct employee expenses","4","Agency Staff - Pay","3430066","201703",27/05/2016 00:00:00,3.66,"31230","Employment & Recruitment Agencies","REDACTED DATA","ADECCO UK LIMITED","593232","http://opencorporates.com/companies/gb/593232","232347975"
"London Borough of Redbridge","http://opendatacommunities.org/doc/london-borough-council/redbridge","1BOTHEROPI&E","Other Operating Income & Expenditure","1CTRADSURDEF","Trading Account Surpluses & Deficits","REV","Revenue","R9460","Human Resources misc","01-EMPLOYEES","Employees","01A","Direct employee expenses","4","Agency Staff - Pay","3431237","201703",26/05/2016 00:00:00,383.45,"31230","Employment & Recruitment Agencies","REDACTED DATA","ADECCO UK LIMITED","593232","http://opencorporates.com/companies/gb/593232","232347975"
"London Borough of Redbridge","http://opendatacommunities.org/doc/london-borough-council/redbridge","1BOTHEROPI&E","Other Operating Income & Expenditure","1CTRADSURDEF","Trading Account Surpluses & Deficits","REV","Revenue","R9460","Human Resources misc","01-EMPLOYEES","Employees","01A","Direct employee expenses","4","Agency Staff - Pay","3432177","201703",15/06/2016 00:00:00,634.68,"31230","Employment & Recruitment Agencies","REDACTED DATA","ADECCO UK LIMITED","593232","http://opencorporates.com/companies/gb/593232","232347975"
"London Borough of Redbridge","http://opendatacommunities.org/doc/london-borough-council/redbridge","1BOTHEROPI&E","Other Operating Income & Expenditure","1CTRADSURDEF","Trading Account Surpluses & Deficits","REV","Revenue","R9460","Human Resources misc","01-EMPLOYEES","Employees","01A","Direct employee expenses","4","Agency Staff - Pay","3431237","201703",26/05/2016 00:00:00,773.85,"31230","Employment & Recruitment Agencies","REDACTED DATA","ADECCO UK LIMITED","593232","http://opencorporates.com/companies/gb/593232","232347975"
"London Borough of Redbridge","http://opendatacommunities.org/doc/london-borough-council/redbridge","1BOTHEROPI&E","Other Operating Income & Expenditure","1CTRADSURDEF","Trading Account Surpluses & Deficits","REV","Revenue","R9460","Human Resources misc","01-EMPLOYEES","Employees","01A","Direct employee expenses","4","Agency Staff - Pay","3431237","201703",26/05/2016 00:00:00,1096.05,"31230","Employment & Recruitment Agencies","REDACTED DATA","ADECCO UK LIMITED","593232","http://opencorporates.com/companies/gb/593232","232347975"
"London Borough of Redbridge","http://opendatacommunities.org/doc/london-borough-council/redbridge","1BOTHEROPI&E","Other Operating Income & Expenditure","1CTRADSURDEF","Trading Account Surpluses & Deficits","REV","Revenue","R9460","Human Resources misc","01-EMPLOYEES","Employees","01A","Direct employee expenses","4","Agency Staff - Pay","3431762","201703",08/06/2016 00:00:00,617.18,"31230","Employment & Recruitment Agencies","REDACTED DATA","ADECCO UK LIMITED","593232","http://opencorporates.com/companies/gb/593232","232347975"
"London Borough of Redbridge","http://opendatacommunities.org/doc/london-borough-council/redbridge","1BOTHEROPI&E","Other Operating Income & Expenditure","1CTRADSURDEF","Trading Account Surpluses & Deficits","REV","Revenue","R9460","Human Resources misc","01-EMPLOYEES","Employees","01A","Direct employee expenses","4","Agency Staff - Pay","3431762","201703",08/06/2016 00:00:00,668.88,"31230","Employment & Recruitment Agencies","REDACTED DATA","ADECCO UK LIMITED","593232","http://opencorporates.com/companies/gb/593232","232347975"
"London Borough of Redbridge","http://opendatacommunities.org/doc/london-borough-council/redbridge","1BOTHEROPI&E","Other Operating Income & Expenditure","1CTRADSURDEF","Trading Account Surpluses & Deficits","REV","Revenue","R9460","Human Resources misc","01-EMPLOYEES","Employees","01A","Direct employee expenses","4","Agency Staff - Pay","3431762","201703",08/06/2016 00:00:00,516.78,"31230","Employment & Recruitment Agencies","REDACTED DATA","ADECCO UK LIMITED","593232","http://opencorporates.com/companies/gb/593232","232347975"
"London Borough of Redbridge","http://opendatacommunities.org/doc/london-borough-council/redbridge","1BOTHEROPI&E","Other Operating Income & Expenditure","1CTRADSURDEF","Trading Account Surpluses & Deficits","REV","Revenue","R9460","Human Resources misc","01-EMPLOYEES","Employees","01A","Direct employee expenses","4","Agency Staff - Pay","3431762","201703",08/06/2016 00:00:00,511.27,"31230","Employment & Recruitment Agencies","REDACTED DATA","ADECCO UK LIMITED","593232","http://opencorporates.com/companies/gb/593232","232347975"
"London Borough of Redbridge","http://opendatacommunities.org/doc/london-borough-council/redbridge","1BOTHEROPI&E","Other Operating Income & Expenditure","1CTRADSURDEF","Trading Account Surpluses & Deficits","REV","Revenue","R9460","Human Resources misc","01-EMPLOYEES","Employees","01A","Direct employee expenses","4","Agency Staff - Pay","3431237","201703",26/05/2016 00:00:00,668.88,"31230","Employment & Recruitment Agencies","REDACTED DATA","ADECCO UK LIMITED","593232","http://opencorporates.com/companies/gb/593232","232347975"
"London Borough of Redbridge","http://opendatacommunities.org/doc/london-borough-council/redbridge","1BOTHEROPI&E","Other Operating Income & Expenditure","1CTRADSURDEF","Trading Account Surpluses & Deficits","REV","Revenue","R9460","Human Resources misc","01-EMPLOYEES","Employees","01A","Direct employee expenses","4","Agency Staff - Pay","3432177","201703",15/06/2016 00:00:00,434.7,"31230","Employment & Recruitment Agencies","REDACTED DATA","ADECCO UK LIMITED","593232","http://opencorporates.com/companies/gb/593232","232347975"
"London Borough of Redbridge","http://opendatacommunities.org/doc/london-borough-council/redbridge","1BOTHEROPI&E","Other Operating Income & Expenditure","1CTRADSURDEF","Trading Account Surpluses & Deficits","REV","Revenue","R9460","Human Resources misc","01-EMPLOYEES","Employees","01A","Direct employee expenses","4","Agency Staff - Pay","3430065","201703",31/05/2016 00:00:00,617.18,"31230","Employment & Recruitment Agencies","REDACTED DATA","ADECCO UK LIMITED","593232","http://opencorporates.com/companies/gb/593232","232347975"
"London Borough of Redbridge","http://opendatacommunities.org/doc/london-borough-council/redbridge","1BOTHEROPI&E","Other Operating Income & Expenditure","1CTRADSURDEF","Trading Account Surpluses & Deficits","REV","Revenue","R9460","Human Resources misc","01-EMPLOYEES","Employees","01A","Direct employee expenses","4","Agency Staff - Pay","60313519","201703",28/06/2016 00:00:00,562.5,"53280","Nursing Agencies","REDACTED DATA","JUST RECRUIT GROUP LTD","7222010","http://opencorporates.com/companies/gb/7222010","998933630"
"London Borough of Redbridge","http://opendatacommunities.org/doc/london-borough-council/redbridge","1BOTHEROPI&E","Other Operating Income & Expenditure","1CTRADSURDEF","Trading Account Surpluses & Deficits","REV","Revenue","R9460","Human Resources misc","01-EMPLOYEES","Employees","01A","Direct employee expenses","4","Agency Staff - Pay","3430065","201703",31/05/2016 00:00:00,634.68,"31230","Employment & Recruitment Agencies","REDACTED DATA","ADECCO UK LIMITED","593232","http://opencorporates.com/companies/gb/593232","232347975"
"London Borough of Redbridge","http://opendatacommunities.org/doc/london-borough-council/redbridge","1BOTHEROPI&E","Other Operating Income & Expenditure","1CTRADSURDEF","Trading Account Surpluses & Deficits","REV","Revenue","R9460","Human Resources misc","01-EMPLOYEES","Employees","01A","Direct employee expenses","4","Agency Staff - Pay","3430065","201703",31/05/2016 00:00:00,395.12,"31230","Employment & Recruitment Agencies","REDACTED DATA","ADECCO UK LIMITED","593232","http://opencorporates.com/companies/gb/593232","232347975"
"London Borough of Redbridge","http://opendatacommunities.org/doc/london-borough-council/redbridge","1BOTHEROPI&E","Other Operating Income & Expenditure","1CTRADSURDEF","Trading Account Surpluses & Deficits","REV","Revenue","R9460","Human Resources misc","01-EMPLOYEES","Employees","01A","Direct employee expenses","4","Agency Staff - Pay","3430065","201703",31/05/2016 00:00:00,1096.05,"31230","Employment & Recruitment Agencies","REDACTED DATA","ADECCO UK LIMITED","593232","http://opencorporates.com/companies/gb/593232","232347975"
"London Borough of Redbridge","http://opendatacommunities.org/doc/london-borough-council/redbridge","1BOTHEROPI&E","Other Operating Income & Expenditure","1CTRADSURDEF","Trading Account Surpluses & Deficits","REV","Revenue","R9460","Human Resources misc","01-EMPLOYEES","Employees","01A","Direct employee expenses","4","Agency Staff - Pay","3430066","201703",27/05/2016 00:00:00,5.26,"31230","Employment & Recruitment Agencies","REDACTED DATA","ADECCO UK LIMITED","593232","http://opencorporates.com/companies/gb/593232","232347975"
"London Borough of Redbridge","http://opendatacommunities.org/doc/london-borough-council/redbridge","1BOTHEROPI&E","Other Operating Income & Expenditure","1CTRADSURDEF","Trading Account Surpluses & Deficits","REV","Revenue","R9460","Human Resources misc","01-EMPLOYEES","Employees","01A","Direct employee expenses","4","Agency Staff - Pay","3430065","201703",31/05/2016 00:00:00,428.49,"31230","Employment & Recruitment Agencies","REDACTED DATA","ADECCO UK LIMITED","593232","http://opencorporates.com/companies/gb/593232","232347975"
"London Borough of Redbridge","http://opendatacommunities.org/doc/london-borough-council/redbridge","1BOTHEROPI&E","Other Operating Income & Expenditure","1CTRADSURDEF","Trading Account Surpluses & Deficits","REV","Revenue","R9460","Human Resources misc","01-EMPLOYEES","Employees","01B","Indirect employee expenses","2415","Private Health Payments","70086394","201703",28/04/2016 00:00:00,569,"53385","Occupational Therapists","REDACTED DATA","BUPA WELLNESS","631336","http://opencorporates.com/companies/gb/631336","239731641"
"London Borough of Redbridge","http://opendatacommunities.org/doc/london-borough-council/redbridge","1BOTHEROPI&E","Other Operating Income & Expenditure","1CTRADSURDEF","Trading Account Surpluses & Deficits","REV","Revenue","R9460","Human Resources misc","04-SUPPLIES","Supplies And Services","04D","Printing, stationery and general office expenses","5710","Stationery","3435018","201703",15/06/2016 00:00:00,1.65,"53770","Office Stationery Supplies","REDACTED DATA","OFFICE DEPOT UK LTD (EX-GUILBERT UK)","2654682","http://opencorporates.com/companies/gb/2654682","673478594"
"London Borough of Redbridge","http://opendatacommunities.org/doc/london-borough-council/redbridge","1BOTHEROPI&E","Other Operating Income & Expenditure","1CTRADSURDEF","Trading Account Surpluses & Deficits","REV","Revenue","R9460","Human Resources misc","04-SUPPLIES","Supplies And Services","04D","Printing, stationery and general office expenses","5710","Stationery","3435018","201703",03/06/2016 00:00:00,16.8,"53770","Office Stationery Supplies","REDACTED DATA","OFFICE DEPOT UK LTD (EX-GUILBERT UK)","2654682","http://opencorporates.com/companies/gb/2654682","673478594"
"London Borough of Redbridge","http://opendatacommunities.org/doc/london-borough-council/redbridge","1BOTHEROPI&E","Other Operating Income & Expenditure","1CTRADSURDEF","Trading Account Surpluses & Deficits","REV","Revenue","R9460","Human Resources misc","04-SUPPLIES","Supplies And Services","04D","Printing, stationery and general office expenses","5710","Stationery","60313567","201703",28/06/2016 00:00:00,36.12,"65740","Rubber Stamps","REDACTED DATA","STAMPS DIRECT LTD","1259048","http://opencorporates.com/companies/gb/1259048","283504263"
"London Borough of Redbridge","http://opendatacommunities.org/doc/london-borough-council/redbridge","1BOTHEROPI&E","Other Operating Income & Expenditure","1CTRADSURDEF","Trading Account Surpluses & Deficits","REV","Revenue","R9460","Human Resources misc","04-SUPPLIES","Supplies And Services","04D","Printing, stationery and general office expenses","5710","Stationery","3435018","201703",02/06/2016 00:00:00,0.3,"53770","Office Stationery Supplies","REDACTED DATA","OFFICE DEPOT UK LTD (EX-GUILBERT UK)","2654682","http://opencorporates.com/companies/gb/2654682","673478594"
"London Borough of Redbridge","http://opendatacommunities.org/doc/london-borough-council/redbridge","1BOTHEROPI&E","Other Operating Income & Expenditure","1CTRADSURDEF","Trading Account Surpluses & Deficits","REV","Revenue","R9460","Human Resources misc","04-SUPPLIES","Supplies And Services","04D","Printing, stationery and general office expenses","5710","Stationery","3435018","201703",02/06/2016 00:00:00,1.16,"53770","Office Stationery Supplies","REDACTED DATA","OFFICE DEPOT UK LTD (EX-GUILBERT UK)","2654682","http://opencorporates.com/companies/gb/2654682","673478594"
"London Borough of Redbridge","http://opendatacommunities.org/doc/london-borough-council/redbridge","1BOTHEROPI&E","Other Operating Income & Expenditure","1CTRADSURDEF","Trading Account Surpluses & Deficits","REV","Revenue","R9460","Human Resources misc","04-SUPPLIES","Supplies And Services","04D","Printing, stationery and general office expenses","5710","Stationery","3435018","201703",02/06/2016 00:00:00,1.75,"53770","Office Stationery Supplies","REDACTED DATA","OFFICE DEPOT UK LTD (EX-GUILBERT UK)","2654682","http://opencorporates.com/companies/gb/2654682","673478594"
"London Borough of Redbridge","http://opendatacommunities.org/doc/london-borough-council/redbridge","1BOTHEROPI&E","Other Operating Income & Expenditure","1CTRADSURDEF","Trading Account Surpluses & Deficits","REV","Revenue","R9460","Human Resources misc","04-SUPPLIES","Supplies And Services","04D","Printing, stationery and general office expenses","5710","Stationery","3435018","201703",03/06/2016 00:00:00,3.15,"53770","Office Stationery Supplies","REDACTED DATA","OFFICE DEPOT UK LTD (EX-GUILBERT UK)","2654682","http://opencorporates.com/companies/gb/2654682","673478594"
"London Borough of Redbridge","http://opendatacommunities.org/doc/london-borough-council/redbridge","1BOTHEROPI&E","Other Operating Income & Expenditure","1CTRADSURDEF","Trading Account Surpluses & Deficits","REV","Revenue","R9460","Human Resources misc","04-SUPPLIES","Supplies And Services","04D","Printing, stationery and general office expenses","5710","Stationery","3435018","201703",03/06/2016 00:00:00,2.86,"53770","Office Stationery Supplies","REDACTED DATA","OFFICE DEPOT UK LTD (EX-GUILBERT UK)","2654682","http://opencorporates.com/companies/gb/2654682","673478594"
"London Borough of Redbridge","http://opendatacommunities.org/doc/london-borough-council/redbridge","1BOTHEROPI&E","Other Operating Income & Expenditure","1CTRADSURDEF","Trading Account Surpluses & Deficits","REV","Revenue","R9460","Human Resources misc","04-SUPPLIES","Supplies And Services","04D","Printing, stationery and general office expenses","5710","Stationery","3435018","201703",30/06/2016 00:00:00,25.2,"53770","Office Stationery Supplies","REDACTED DATA","OFFICE DEPOT UK LTD (EX-GUILBERT UK)","2654682","http://opencorporates.com/companies/gb/2654682","673478594"
"London Borough of Redbridge","http://opendatacommunities.org/doc/london-borough-council/redbridge","1BCENTRALPUB","Central Services to the Public","1CLOCALTAXCO","Local Tax Collection","REV","Revenue","R5760","Local Tax Collection","01-EMPLOYEES","Employees","01A","Direct employee expenses","4","Agency Staff - Pay","3430066","201703",27/05/2016 00:00:00,2.26,"31230","Employment & Recruitment Agencies","REDACTED DATA","ADECCO UK LIMITED","593232","http://opencorporates.com/companies/gb/593232","232347975"
"London Borough of Redbridge","http://opendatacommunities.org/doc/london-borough-council/redbridge","1BCENTRALPUB","Central Services to the Public","1CLOCALTAXCO","Local Tax Collection","REV","Revenue","R5760","Local Tax Collection","01-EMPLOYEES","Employees","01A","Direct employee expenses","4","Agency Staff - Pay","3430065","201703",31/05/2016 00:00:00,299.93,"31230","Employment & Recruitment Agencies","REDACTED DATA","ADECCO UK LIMITED","593232","http://opencorporates.com/companies/gb/593232","232347975"
"London Borough of Redbridge","http://opendatacommunities.org/doc/london-borough-council/redbridge","1BCENTRALPUB","Central Services to the Public","1CLOCALTAXCO","Local Tax Collection","REV","Revenue","R5760","Local Tax Collection","01-EMPLOYEES","Employees","01A","Direct employee expenses","4","Agency Staff - Pay","3431237","201703",26/05/2016 00:00:00,804.24,"31230","Employment & Recruitment Agencies","REDACTED DATA","ADECCO UK LIMITED","593232","http://opencorporates.com/companies/gb/593232","232347975"
"London Borough of Redbridge","http://opendatacommunities.org/doc/london-borough-council/redbridge","1BCENTRALPUB","Central Services to the Public","1CLOCALTAXCO","Local Tax Collection","REV","Revenue","R5760","Local Tax Collection","01-EMPLOYEES","Employees","01A","Direct employee expenses","4","Agency Staff - Pay","3431237","201703",26/05/2016 00:00:00,0,"31230","Employment & Recruitment Agencies","REDACTED DATA","ADECCO UK LIMITED","593232","http://opencorporates.com/companies/gb/593232","232347975"
"London Borough of Redbridge","http://opendatacommunities.org/doc/london-borough-council/redbridge","1BCENTRALPUB","Central Services to the Public","1CLOCALTAXCO","Local Tax Collection","REV","Revenue","R5760","Local Tax Collection","01-EMPLOYEES","Employees","01A","Direct employee expenses","4","Agency Staff - Pay","3431762","201703",08/06/2016 00:00:00,401.99,"31230","Employment & Recruitment Agencies","REDACTED DATA","ADECCO UK LIMITED","593232","http://opencorporates.com/companies/gb/593232","232347975"
"London Borough of Redbridge","http://opendatacommunities.org/doc/london-borough-council/redbridge","1BCENTRALPUB","Central Services to the Public","1CLOCALTAXCO","Local Tax Collection","REV","Revenue","R5760","Local Tax Collection","01-EMPLOYEES","Employees","01A","Direct employee expenses","4","Agency Staff - Pay","3432177","201703",15/06/2016 00:00:00,804.24,"31230","Employment & Recruitment Agencies","REDACTED DATA","ADECCO UK LIMITED","593232","http://opencorporates.com/companies/gb/593232","232347975"
"London Borough of Redbridge","http://opendatacommunities.org/doc/london-borough-council/redbridge","1BCENTRALPUB","Central Services to the Public","1CLOCALTAXCO","Local Tax Collection","REV","Revenue","R5760","Local Tax Collection","01-EMPLOYEES","Employees","01A","Direct employee expenses","4","Agency Staff - Pay","3431237","201703",26/05/2016 00:00:00,335.1,"31230","Employment & Recruitment Agencies","REDACTED DATA","ADECCO UK LIMITED","593232","http://opencorporates.com/companies/gb/593232","232347975"
"London Borough of Redbridge","http://opendatacommunities.org/doc/london-borough-council/redbridge","1BCENTRALPUB","Central Services to the Public","1CLOCALTAXCO","Local Tax Collection","REV","Revenue","R5760","Local Tax Collection","01-EMPLOYEES","Employees","01A","Direct employee expenses","4","Agency Staff - Pay","3432177","201703",15/06/2016 00:00:00,474.48,"31230","Employment & Recruitment Agencies","REDACTED DATA","ADECCO UK LIMITED","593232","http://opencorporates.com/companies/gb/593232","232347975"
"London Borough of Redbridge","http://opendatacommunities.org/doc/london-borough-council/redbridge","1BCENTRALPUB","Central Services to the Public","1CLOCALTAXCO","Local Tax Collection","REV","Revenue","R5760","Local Tax Collection","01-EMPLOYEES","Employees","01A","Direct employee expenses","4","Agency Staff - Pay","3430065","201703",31/05/2016 00:00:00,888.05,"31230","Employment & Recruitment Agencies","REDACTED DATA","ADECCO UK LIMITED","593232","http://opencorporates.com/companies/gb/593232","232347975"
"London Borough of Redbridge","http://opendatacommunities.org/doc/london-borough-council/redbridge","1BCENTRALPUB","Central Services to the Public","1CLOCALTAXCO","Local Tax Collection","REV","Revenue","R5760","Local Tax Collection","01-EMPLOYEES","Employees","01A","Direct employee expenses","4","Agency Staff - Pay","3431237","201703",26/05/2016 00:00:00,845.64,"31230","Employment & Recruitment Agencies","REDACTED DATA","ADECCO UK LIMITED","593232","http://opencorporates.com/companies/gb/593232","232347975"
"London Borough of Redbridge","http://opendatacommunities.org/doc/london-borough-council/redbridge","1BCENTRALPUB","Central Services to the Public","1CLOCALTAXCO","Local Tax Collection","REV","Revenue","R5760","Local Tax Collection","01-EMPLOYEES","Employees","01A","Direct employee expenses","4","Agency Staff - Pay","3432177","201703",15/06/2016 00:00:00,918.75,"31230","Employment & Recruitment Agencies","REDACTED DATA","ADECCO UK LIMITED","593232","http://opencorporates.com/companies/gb/593232","232347975"
"London Borough of Redbridge","http://opendatacommunities.org/doc/london-borough-council/redbridge","1BOTHEROPI&E","Other Operating Income & Expenditure","1CTRADSURDEF","Trading Account Surpluses & Deficits","REV","Revenue","R9460","Human Resources misc","04-SUPPLIES","Supplies And Services","04D","Printing, stationery and general office expenses","5710","Stationery","3435018","201703",02/06/2016 00:00:00,24.2,"53770","Office Stationery Supplies","REDACTED DATA","OFFICE DEPOT UK LTD (EX-GUILBERT UK)","2654682","http://opencorporates.com/companies/gb/2654682","673478594"
"London Borough of Redbridge","http://opendatacommunities.org/doc/london-borough-council/redbridge","1BOTHEROPI&E","Other Operating Income & Expenditure","1CTRADSURDEF","Trading Account Surpluses & Deficits","REV","Revenue","R9460","Human Resources misc","04-SUPPLIES","Supplies And Services","04D","Printing, stationery and general office expenses","5710","Stationery","3435018","201703",22/06/2016 00:00:00,-19.66,"53770","Office Stationery Supplies","REDACTED DATA","OFFICE DEPOT UK LTD (EX-GUILBERT UK)","2654682","http://opencorporates.com/companies/gb/2654682","673478594"
"London Borough of Redbridge","http://opendatacommunities.org/doc/london-borough-council/redbridge","1BOTHEROPI&E","Other Operating Income & Expenditure","1CTRADSURDEF","Trading Account Surpluses & Deficits","REV","Revenue","R9460","Human Resources misc","04-SUPPLIES","Supplies And Services","04D","Printing, stationery and general office expenses","5710","Stationery","3435018","201703",03/06/2016 00:00:00,2.86,"53770","Office Stationery Supplies","REDACTED DATA","OFFICE DEPOT UK LTD (EX-GUILBERT UK)","2654682","http://opencorporates.com/companies/gb/2654682","673478594"
"London Borough of Redbridge","http://opendatacommunities.org/doc/london-borough-council/redbridge","1BOTHEROPI&E","Other Operating Income & Expenditure","1CTRADSURDEF","Trading Account Surpluses & Deficits","REV","Revenue","R9460","Human Resources misc","04-SUPPLIES","Supplies And Services","04D","Printing, stationery and general office expenses","5710","Stationery","3435018","201703",02/06/2016 00:00:00,1.16,"53770","Office Stationery Supplies","REDACTED DATA","OFFICE DEPOT UK LTD (EX-GUILBERT UK)","2654682","http://opencorporates.com/companies/gb/2654682","673478594"
"London Borough of Redbridge","http://opendatacommunities.org/doc/london-borough-council/redbridge","1BOTHEROPI&E","Other Operating Income & Expenditure","1CTRADSURDEF","Trading Account Surpluses & Deficits","REV","Revenue","R9460","Human Resources misc","04-SUPPLIES","Supplies And Services","04D","Printing, stationery and general office expenses","5710","Stationery","3435018","201703",02/06/2016 00:00:00,2.76,"53770","Office Stationery Supplies","REDACTED DATA","OFFICE DEPOT UK LTD (EX-GUILBERT UK)","2654682","http://opencorporates.com/companies/gb/2654682","673478594"
"London Borough of Redbridge","http://opendatacommunities.org/doc/london-borough-council/redbridge","1BOTHEROPI&E","Other Operating Income & Expenditure","1CTRADSURDEF","Trading Account Surpluses & Deficits","REV","Revenue","R9460","Human Resources misc","04-SUPPLIES","Supplies And Services","04D","Printing, stationery and general office expenses","5710","Stationery","3435018","201703",02/06/2016 00:00:00,7.37,"53770","Office Stationery Supplies","REDACTED DATA","OFFICE DEPOT UK LTD (EX-GUILBERT UK)","2654682","http://opencorporates.com/companies/gb/2654682","673478594"
"London Borough of Redbridge","http://opendatacommunities.org/doc/london-borough-council/redbridge","1BOTHEROPI&E","Other Operating Income & Expenditure","1CTRADSURDEF","Trading Account Surpluses & Deficits","REV","Revenue","R9460","Human Resources misc","04-SUPPLIES","Supplies And Services","04D","Printing, stationery and general office expenses","5710","Stationery","3435018","201703",15/06/2016 00:00:00,14.27,"53770","Office Stationery Supplies","REDACTED DATA","OFFICE DEPOT UK LTD (EX-GUILBERT UK)","2654682","http://opencorporates.com/companies/gb/2654682","673478594"
"London Borough of Redbridge","http://opendatacommunities.org/doc/london-borough-council/redbridge","1BOTHEROPI&E","Other Operating Income & Expenditure","1CTRADSURDEF","Trading Account Surpluses & Deficits","REV","Revenue","R9460","Human Resources misc","04-SUPPLIES","Supplies And Services","04D","Printing, stationery and general office expenses","5710","Stationery","3435018","201703",30/06/2016 00:00:00,16.8,"53770","Office Stationery Supplies","REDACTED DATA","OFFICE DEPOT UK LTD (EX-GUILBERT UK)","2654682","http://opencorporates.com/companies/gb/2654682","673478594"
"London Borough of Redbridge","http://opendatacommunities.org/doc/london-borough-council/redbridge","1BOTHEROPI&E","Other Operating Income & Expenditure","1CTRADSURDEF","Trading Account Surpluses & Deficits","REV","Revenue","R9460","Human Resources misc","04-SUPPLIES","Supplies And Services","04D","Printing, stationery and general office expenses","5710","Stationery","3435018","201703",30/06/2016 00:00:00,26.44,"53770","Office Stationery Supplies","REDACTED DATA","OFFICE DEPOT UK LTD (EX-GUILBERT UK)","2654682","http://opencorporates.com/companies/gb/2654682","673478594"
"London Borough of Redbridge","http://opendatacommunities.org/doc/london-borough-council/redbridge","1BOTHEROPI&E","Other Operating Income & Expenditure","1CTRADSURDEF","Trading Account Surpluses & Deficits","REV","Revenue","R9460","Human Resources misc","04-SUPPLIES","Supplies And Services","04D","Printing, stationery and general office expenses","5710","Stationery","3435018","201703",30/06/2016 00:00:00,10.65,"53770","Office Stationery Supplies","REDACTED DATA","OFFICE DEPOT UK LTD (EX-GUILBERT UK)","2654682","http://opencorporates.com/companies/gb/2654682","673478594"
"London Borough of Redbridge","http://opendatacommunities.org/doc/london-borough-council/redbridge","1BCENTRALPUB","Central Services to the Public","1CLOCALTAXCO","Local Tax Collection","REV","Revenue","R5760","Local Tax Collection","01-EMPLOYEES","Employees","01A","Direct employee expenses","4","Agency Staff - Pay","3431762","201703",08/06/2016 00:00:00,855.36,"31230","Employment & Recruitment Agencies","REDACTED DATA","ADECCO UK LIMITED","593232","http://opencorporates.com/companies/gb/593232","232347975"
"London Borough of Redbridge","http://opendatacommunities.org/doc/london-borough-council/redbridge","1BCENTRALPUB","Central Services to the Public","1CLOCALTAXCO","Local Tax Collection","REV","Revenue","R5760","Local Tax Collection","01-EMPLOYEES","Employees","01A","Direct employee expenses","4","Agency Staff - Pay","3432177","201703",15/06/2016 00:00:00,930.62,"31230","Employment & Recruitment Agencies","REDACTED DATA","ADECCO UK LIMITED","593232","http://opencorporates.com/companies/gb/593232","232347975"
"London Borough of Redbridge","http://opendatacommunities.org/doc/london-borough-council/redbridge","1BCENTRALPUB","Central Services to the Public","1CLOCALTAXCO","Local Tax Collection","REV","Revenue","R5760","Local Tax Collection","01-EMPLOYEES","Employees","01A","Direct employee expenses","4","Agency Staff - Pay","3431762","201703",08/06/2016 00:00:00,804.24,"31230","Employment & Recruitment Agencies","REDACTED DATA","ADECCO UK LIMITED","593232","http://opencorporates.com/companies/gb/593232","232347975"
"London Borough of Redbridge","http://opendatacommunities.org/doc/london-borough-council/redbridge","1BCENTRALPUB","Central Services to the Public","1CLOCALTAXCO","Local Tax Collection","REV","Revenue","R5760","Local Tax Collection","01-EMPLOYEES","Employees","01A","Direct employee expenses","4","Agency Staff - Pay","3431762","201703",08/06/2016 00:00:00,583.92,"31230","Employment & Recruitment Agencies","REDACTED DATA","ADECCO UK LIMITED","593232","http://opencorporates.com/companies/gb/593232","232347975"
"London Borough of Redbridge","http://opendatacommunities.org/doc/london-borough-council/redbridge","1BCENTRALPUB","Central Services to the Public","1CLOCALTAXCO","Local Tax Collection","REV","Revenue","R5760","Local Tax Collection","01-EMPLOYEES","Employees","01A","Direct employee expenses","4","Agency Staff - Pay","3430065","201703",31/05/2016 00:00:00,822.15,"31230","Employment & Recruitment Agencies","REDACTED DATA","ADECCO UK LIMITED","593232","http://opencorporates.com/companies/gb/593232","232347975"
"London Borough of Redbridge","http://opendatacommunities.org/doc/london-borough-council/redbridge","1BCENTRALPUB","Central Services to the Public","1CLOCALTAXCO","Local Tax Collection","REV","Revenue","R5760","Local Tax Collection","01-EMPLOYEES","Employees","01A","Direct employee expenses","4","Agency Staff - Pay","3431237","201703",26/05/2016 00:00:00,283.37,"31230","Employment & Recruitment Agencies","REDACTED DATA","ADECCO UK LIMITED","593232","http://opencorporates.com/companies/gb/593232","232347975"
"London Borough of Redbridge","http://opendatacommunities.org/doc/london-borough-council/redbridge","1BCENTRALPUB","Central Services to the Public","1CLOCALTAXCO","Local Tax Collection","REV","Revenue","R5760","Local Tax Collection","01-EMPLOYEES","Employees","01A","Direct employee expenses","4","Agency Staff - Pay","3431762","201703",08/06/2016 00:00:00,761.25,"31230","Employment & Recruitment Agencies","REDACTED DATA","ADECCO UK LIMITED","593232","http://opencorporates.com/companies/gb/593232","232347975"
"London Borough of Redbridge","http://opendatacommunities.org/doc/london-borough-council/redbridge","1BCENTRALPUB","Central Services to the Public","1CLOCALTAXCO","Local Tax Collection","REV","Revenue","R5760","Local Tax Collection","01-EMPLOYEES","Employees","01A","Direct employee expenses","4","Agency Staff - Pay","3431237","201703",26/05/2016 00:00:00,855.36,"31230","Employment & Recruitment Agencies","REDACTED DATA","ADECCO UK LIMITED","593232","http://opencorporates.com/companies/gb/593232","232347975"
"London Borough of Redbridge","http://opendatacommunities.org/doc/london-borough-council/redbridge","1BCENTRALPUB","Central Services to the Public","1CLOCALTAXCO","Local Tax Collection","REV","Revenue","R5760","Local Tax Collection","01-EMPLOYEES","Employees","01A","Direct employee expenses","4","Agency Staff - Pay","3431762","201703",08/06/2016 00:00:00,669.47,"31230","Employment & Recruitment Agencies","REDACTED DATA","ADECCO UK LIMITED","593232","http://opencorporates.com/companies/gb/593232","232347975"
"London Borough of Redbridge","http://opendatacommunities.org/doc/london-borough-council/redbridge","1BCENTRALPUB","Central Services to the Public","1CLOCALTAXCO","Local Tax Collection","REV","Revenue","R5760","Local Tax Collection","01-EMPLOYEES","Employees","01A","Direct employee expenses","4","Agency Staff - Pay","3430065","201703",31/05/2016 00:00:00,643.13,"31230","Employment & Recruitment Agencies","REDACTED DATA","ADECCO UK LIMITED","593232","http://opencorporates.com/companies/gb/593232","232347975"
"London Borough of Redbridge","http://opendatacommunities.org/doc/london-borough-council/redbridge","1BCENTRALPUB","Central Services to the Public","1CLOCALTAXCO","Local Tax Collection","REV","Revenue","R5760","Local Tax Collection","01-EMPLOYEES","Employees","01A","Direct employee expenses","4","Agency Staff - Pay","3431237","201703",26/05/2016 00:00:00,608.25,"31230","Employment & Recruitment Agencies","REDACTED DATA","ADECCO UK LIMITED","593232","http://opencorporates.com/companies/gb/593232","232347975"
"London Borough of Redbridge","http://opendatacommunities.org/doc/london-borough-council/redbridge","1BOTHEROPI&E","Other Operating Income & Expenditure","1CTRADSURDEF","Trading Account Surpluses & Deficits","REV","Revenue","R9460","Human Resources misc","04-SUPPLIES","Supplies And Services","04D","Printing, stationery and general office expenses","5710","Stationery","3435018","201703",30/06/2016 00:00:00,24.2,"53770","Office Stationery Supplies","REDACTED DATA","OFFICE DEPOT UK LTD (EX-GUILBERT UK)","2654682","http://opencorporates.com/companies/gb/2654682","673478594"
"London Borough of Redbridge","http://opendatacommunities.org/doc/london-borough-council/redbridge","1BOTHEROPI&E","Other Operating Income & Expenditure","1CTRADSURDEF","Trading Account Surpluses & Deficits","REV","Revenue","R9460","Human Resources misc","04-SUPPLIES","Supplies And Services","04D","Printing, stationery and general office expenses","5710","Stationery","3435018","201703",03/06/2016 00:00:00,2.86,"53770","Office Stationery Supplies","REDACTED DATA","OFFICE DEPOT UK LTD (EX-GUILBERT UK)","2654682","http://opencorporates.com/companies/gb/2654682","673478594"
"London Borough of Redbridge","http://opendatacommunities.org/doc/london-borough-council/redbridge","1BOTHEROPI&E","Other Operating Income & Expenditure","1CTRADSURDEF","Trading Account Surpluses & Deficits","REV","Revenue","R9460","Human Resources misc","04-SUPPLIES","Supplies And Services","04D","Printing, stationery and general office expenses","5710","Stationery","3435018","201703",03/06/2016 00:00:00,14.2,"53770","Office Stationery Supplies","REDACTED DATA","OFFICE DEPOT UK LTD (EX-GUILBERT UK)","2654682","http://opencorporates.com/companies/gb/2654682","673478594"
"London Borough of Redbridge","http://opendatacommunities.org/doc/london-borough-council/redbridge","1BOTHEROPI&E","Other Operating Income & Expenditure","1CTRADSURDEF","Trading Account Surpluses & Deficits","REV","Revenue","R9460","Human Resources misc","04-SUPPLIES","Supplies And Services","04D","Printing, stationery and general office expenses","5710","Stationery","3435018","201703",15/06/2016 00:00:00,25.2,"53770","Office Stationery Supplies","REDACTED DATA","OFFICE DEPOT UK LTD (EX-GUILBERT UK)","2654682","http://opencorporates.com/companies/gb/2654682","673478594"
"London Borough of Redbridge","http://opendatacommunities.org/doc/london-borough-council/redbridge","1BOTHEROPI&E","Other Operating Income & Expenditure","1CTRADSURDEF","Trading Account Surpluses & Deficits","REV","Revenue","R9460","Human Resources misc","04-SUPPLIES","Supplies And Services","04D","Printing, stationery and general office expenses","5710","Stationery","3435018","201703",03/06/2016 00:00:00,2.86,"53770","Office Stationery Supplies","REDACTED DATA","OFFICE DEPOT UK LTD (EX-GUILBERT UK)","2654682","http://opencorporates.com/companies/gb/2654682","673478594"
"London Borough of Redbridge","http://opendatacommunities.org/doc/london-borough-council/redbridge","1BOTHEROPI&E","Other Operating Income & Expenditure","1CTRADSURDEF","Trading Account Surpluses & Deficits","REV","Revenue","R9460","Human Resources misc","04-SUPPLIES","Supplies And Services","04D","Printing, stationery and general office expenses","5710","Stationery","3435018","201703",15/06/2016 00:00:00,11.72,"53770","Office Stationery Supplies","REDACTED DATA","OFFICE DEPOT UK LTD (EX-GUILBERT UK)","2654682","http://opencorporates.com/companies/gb/2654682","673478594"
"London Borough of Redbridge","http://opendatacommunities.org/doc/london-borough-council/redbridge","1BOTHEROPI&E","Other Operating Income & Expenditure","1CTRADSURDEF","Trading Account Surpluses & Deficits","REV","Revenue","R9460","Human Resources misc","04-SUPPLIES","Supplies And Services","04D","Printing, stationery and general office expenses","5710","Stationery","3435018","201703",30/06/2016 00:00:00,3.2,"53770","Office Stationery Supplies","REDACTED DATA","OFFICE DEPOT UK LTD (EX-GUILBERT UK)","2654682","http://opencorporates.com/companies/gb/2654682","673478594"
"London Borough of Redbridge","http://opendatacommunities.org/doc/london-borough-council/redbridge","1BOTHEROPI&E","Other Operating Income & Expenditure","1CTRADSURDEF","Trading Account Surpluses & Deficits","REV","Revenue","R9460","Human Resources misc","04-SUPPLIES","Supplies And Services","04D","Printing, stationery and general office expenses","5710","Stationery","3435018","201703",02/06/2016 00:00:00,25.2,"53770","Office Stationery Supplies","REDACTED DATA","OFFICE DEPOT UK LTD (EX-GUILBERT UK)","2654682","http://opencorporates.com/companies/gb/2654682","673478594"
"London Borough of Redbridge","http://opendatacommunities.org/doc/london-borough-council/redbridge","1BOTHEROPI&E","Other Operating Income & Expenditure","1CTRADSURDEF","Trading Account Surpluses & Deficits","REV","Revenue","R9460","Human Resources misc","04-SUPPLIES","Supplies And Services","04D","Printing, stationery and general office expenses","5710","Stationery","3435018","201703",15/06/2016 00:00:00,0.6,"53770","Office Stationery Supplies","REDACTED DATA","OFFICE DEPOT UK LTD (EX-GUILBERT UK)","2654682","http://opencorporates.com/companies/gb/2654682","673478594"
"London Borough of Redbridge","http://opendatacommunities.org/doc/london-borough-council/redbridge","1BOTHEROPI&E","Other Operating Income & Expenditure","1CTRADSURDEF","Trading Account Surpluses & Deficits","REV","Revenue","R9460","Human Resources misc","04-SUPPLIES","Supplies And Services","04D","Printing, stationery and general office expenses","5710","Stationery","3435018","201703",03/06/2016 00:00:00,26.45,"53770","Office Stationery Supplies","REDACTED DATA","OFFICE DEPOT UK LTD (EX-GUILBERT UK)","2654682","http://opencorporates.com/companies/gb/2654682","673478594"
"London Borough of Redbridge","http://opendatacommunities.org/doc/london-borough-council/redbridge","1BOTHEROPI&E","Other Operating Income & Expenditure","1CTRADSURDEF","Trading Account Surpluses & Deficits","REV","Revenue","R9460","Human Resources misc","04-SUPPLIES","Supplies And Services","04D","Printing, stationery and general office expenses","5710","Stationery","3435018","201703",16/06/2016 00:00:00,19.66,"53770","Office Stationery Supplies","REDACTED DATA","OFFICE DEPOT UK LTD (EX-GUILBERT UK)","2654682","http://opencorporates.com/companies/gb/2654682","673478594"
"London Borough of Redbridge","http://opendatacommunities.org/doc/london-borough-council/redbridge","1BOTHEROPI&E","Other Operating Income & Expenditure","1CTRADSURDEF","Trading Account Surpluses & Deficits","REV","Revenue","R9460","Human Resources misc","04-SUPPLIES","Supplies And Services","04D","Printing, stationery and general office expenses","5710","Stationery","3435018","201703",15/06/2016 00:00:00,36.31,"53770","Office Stationery Supplies","REDACTED DATA","OFFICE DEPOT UK LTD (EX-GUILBERT UK)","2654682","http://opencorporates.com/companies/gb/2654682","673478594"
"London Borough of Redbridge","http://opendatacommunities.org/doc/london-borough-council/redbridge","1BOTHEROPI&E","Other Operating Income & Expenditure","1CTRADSURDEF","Trading Account Surpluses & Deficits","REV","Revenue","R9460","Human Resources misc","04-SUPPLIES","Supplies And Services","04D","Printing, stationery and general office expenses","5710","Stationery","3435018","201703",30/06/2016 00:00:00,3.66,"53770","Office Stationery Supplies","REDACTED DATA","OFFICE DEPOT UK LTD (EX-GUILBERT UK)","2654682","http://opencorporates.com/companies/gb/2654682","673478594"
"London Borough of Redbridge","http://opendatacommunities.org/doc/london-borough-council/redbridge","1BOTHEROPI&E","Other Operating Income & Expenditure","1CTRADSURDEF","Trading Account Surpluses & Deficits","REV","Revenue","R9460","Human Resources misc","04-SUPPLIES","Supplies And Services","04D","Printing, stationery and general office expenses","5710","Stationery","3435018","201703",30/06/2016 00:00:00,1.84,"53770","Office Stationery Supplies","REDACTED DATA","OFFICE DEPOT UK LTD (EX-GUILBERT UK)","2654682","http://opencorporates.com/companies/gb/2654682","673478594"
"London Borough of Redbridge","http://opendatacommunities.org/doc/london-borough-council/redbridge","1BOTHEROPI&E","Other Operating Income & Expenditure","1CTRADSURDEF","Trading Account Surpluses & Deficits","REV","Revenue","R9460","Human Resources misc","04-SUPPLIES","Supplies And Services","04D","Printing, stationery and general office expenses","5710","Stationery","3435018","201703",30/06/2016 00:00:00,1.84,"53770","Office Stationery Supplies","REDACTED DATA","OFFICE DEPOT UK LTD (EX-GUILBERT UK)","2654682","http://opencorporates.com/companies/gb/2654682","673478594"
"London Borough of Redbridge","http://opendatacommunities.org/doc/london-borough-council/redbridge","1BOTHEROPI&E","Other Operating Income & Expenditure","1CTRADSURDEF","Trading Account Surpluses & Deficits","REV","Revenue","R9460","Human Resources misc","04-SUPPLIES","Supplies And Services","04D","Printing, stationery and general office expenses","5710","Stationery","3435018","201703",30/06/2016 00:00:00,7.17,"53770","Office Stationery Supplies","REDACTED DATA","OFFICE DEPOT UK LTD (EX-GUILBERT UK)","2654682","http://opencorporates.com/companies/gb/2654682","673478594"
"London Borough of Redbridge","http://opendatacommunities.org/doc/london-borough-council/redbridge","1BOTHEROPI&E","Other Operating Income & Expenditure","1CTRADSURDEF","Trading Account Surpluses & Deficits","REV","Revenue","R9460","Human Resources misc","04-SUPPLIES","Supplies And Services","04D","Printing, stationery and general office expenses","5710","Stationery","3435018","201703",30/06/2016 00:00:00,10.2,"53770","Office Stationery Supplies","REDACTED DATA","OFFICE DEPOT UK LTD (EX-GUILBERT UK)","2654682","http://opencorporates.com/companies/gb/2654682","673478594"
"London Borough of Redbridge","http://opendatacommunities.org/doc/london-borough-council/redbridge","1BOTHEROPI&E","Other Operating Income & Expenditure","1CTRADSURDEF","Trading Account Surpluses & Deficits","REV","Revenue","R9460","Human Resources misc","04-SUPPLIES","Supplies And Services","04D","Printing, stationery and general office expenses","5710","Stationery","3435018","201703",30/06/2016 00:00:00,0.29,"53770","Office Stationery Supplies","REDACTED DATA","OFFICE DEPOT UK LTD (EX-GUILBERT UK)","2654682","http://opencorporates.com/companies/gb/2654682","673478594"
"London Borough of Redbridge","http://opendatacommunities.org/doc/london-borough-council/redbridge","1BOTHEROPI&E","Other Operating Income & Expenditure","1CTRADSURDEF","Trading Account Surpluses & Deficits","REV","Revenue","R9460","Human Resources misc","04-SUPPLIES","Supplies And Services","04D","Printing, stationery and general office expenses","5710","Stationery","3435018","201703",02/06/2016 00:00:00,1.84,"53770","Office Stationery Supplies","REDACTED DATA","OFFICE DEPOT UK LTD (EX-GUILBERT UK)","2654682","http://opencorporates.com/companies/gb/2654682","673478594"
"London Borough of Redbridge","http://opendatacommunities.org/doc/london-borough-council/redbridge","1BOTHEROPI&E","Other Operating Income & Expenditure","1CTRADSURDEF","Trading Account Surpluses & Deficits","REV","Revenue","R9460","Human Resources misc","04-SUPPLIES","Supplies And Services","04D","Printing, stationery and general office expenses","5710","Stationery","3435018","201703",15/06/2016 00:00:00,10.11,"53770","Office Stationery Supplies","REDACTED DATA","OFFICE DEPOT UK LTD (EX-GUILBERT UK)","2654682","http://opencorporates.com/companies/gb/2654682","673478594"
"London Borough of Redbridge","http://opendatacommunities.org/doc/london-borough-council/redbridge","1BOTHEROPI&E","Other Operating Income & Expenditure","1CTRADSURDEF","Trading Account Surpluses & Deficits","REV","Revenue","R9460","Human Resources misc","04-SUPPLIES","Supplies And Services","04D","Printing, stationery and general office expenses","5710","Stationery","3435018","201703",02/06/2016 00:00:00,26.4,"53770","Office Stationery Supplies","REDACTED DATA","OFFICE DEPOT UK LTD (EX-GUILBERT UK)","2654682","http://opencorporates.com/companies/gb/2654682","673478594"
"London Borough of Redbridge","http://opendatacommunities.org/doc/london-borough-council/redbridge","1BOTHEROPI&E","Other Operating Income & Expenditure","1CTRADSURDEF","Trading Account Surpluses & Deficits","REV","Revenue","R9460","Human Resources misc","04-SUPPLIES","Supplies And Services","04D","Printing, stationery and general office expenses","5710","Stationery","3435018","201703",30/06/2016 00:00:00,24.2,"53770","Office Stationery Supplies","REDACTED DATA","OFFICE DEPOT UK LTD (EX-GUILBERT UK)","2654682","http://opencorporates.com/companies/gb/2654682","673478594"
"London Borough of Redbridge","http://opendatacommunities.org/doc/london-borough-council/redbridge","1BOTHEROPI&E","Other Operating Income & Expenditure","1CTRADSURDEF","Trading Account Surpluses & Deficits","REV","Revenue","R9460","Human Resources misc","04-SUPPLIES","Supplies And Services","04D","Printing, stationery and general office expenses","5710","Stationery","3435018","201703",15/06/2016 00:00:00,11.16,"53770","Office Stationery Supplies","REDACTED DATA","OFFICE DEPOT UK LTD (EX-GUILBERT UK)","2654682","http://opencorporates.com/companies/gb/2654682","673478594"
"London Borough of Redbridge","http://opendatacommunities.org/doc/london-borough-council/redbridge","1BOTHEROPI&E","Other Operating Income & Expenditure","1CTRADSURDEF","Trading Account Surpluses & Deficits","REV","Revenue","R9460","Human Resources misc","04-SUPPLIES","Supplies And Services","04D","Printing, stationery and general office expenses","5710","Stationery","3435018","201703",15/06/2016 00:00:00,19.66,"53770","Office Stationery Supplies","REDACTED DATA","OFFICE DEPOT UK LTD (EX-GUILBERT UK)","2654682","http://opencorporates.com/companies/gb/2654682","673478594"
"London Borough of Redbridge","http://opendatacommunities.org/doc/london-borough-council/redbridge","1BOTHEROPI&E","Other Operating Income & Expenditure","1CTRADSURDEF","Trading Account Surpluses & Deficits","REV","Revenue","R9460","Human Resources misc","04-SUPPLIES","Supplies And Services","04E","Services","5755","Counselling","60311999","201703",08/06/2016 00:00:00,1297,"79980","Training Services","REDACTED DATA","EDENDYNAMICS LTD","4375929","http://opencorporates.com/companies/gb/4375929","937532310"
"London Borough of Redbridge","http://opendatacommunities.org/doc/london-borough-council/redbridge","1BOTHEROPI&E","Other Operating Income & Expenditure","1CTRADSURDEF","Trading Account Surpluses & Deficits","REV","Revenue","R9460","Human Resources misc","04-SUPPLIES","Supplies And Services","04E","Services","5759","Hire Of Venues","60312293","201703",13/06/2016 00:00:00,49.5,"48583","Local Government","REDACTED DATA","VISION REDBRIDGE CULTURE AND LEISURE","6032714","http://opencorporates.com/companies/gb/6032714","906429031"
"London Borough of Redbridge","http://opendatacommunities.org/doc/london-borough-council/redbridge","1BOTHEROPI&E","Other Operating Income & Expenditure","1CTRADSURDEF","Trading Account Surpluses & Deficits","REV","Revenue","R9460","Human Resources misc","04-SUPPLIES","Supplies And Services","04F","Communications and computing","5853","Computer Software","60313436","201703",25/05/2016 00:00:00,21874.96,"20703","Computer Systems and Software","REDACTED DATA","MIDLAND SOFTWARE LTD - MIDLAND HR & PAYROLL SOLUTIONS","1852206","http://opencorporates.com/companies/gb/1852206","705850636"
"London Borough of Redbridge","http://opendatacommunities.org/doc/london-borough-council/redbridge","1BOTHEROPI&E","Other Operating Income & Expenditure","1CTRADSURDEF","Trading Account Surpluses & Deficits","REV","Revenue","R9460","Human Resources misc","04-SUPPLIES","Supplies And Services","04F","Communications and computing","5853","Computer Software","60313436","201703",25/05/2016 00:00:00,3182.78,"20703","Computer Systems and Software","REDACTED DATA","MIDLAND SOFTWARE LTD - MIDLAND HR & PAYROLL SOLUTIONS","1852206","http://opencorporates.com/companies/gb/1852206","705850636"
"London Borough of Redbridge","http://opendatacommunities.org/doc/london-borough-council/redbridge","1BOTHEROPI&E","Other Operating Income & Expenditure","1CTRADSURDEF","Trading Account Surpluses & Deficits","REV","Revenue","R9460","Human Resources misc","04-SUPPLIES","Supplies And Services","04F","Communications and computing","5853","Computer Software","60313404","201703",25/05/2016 00:00:00,900,"20703","Computer Systems and Software","REDACTED DATA","MIDLAND SOFTWARE LTD - MIDLAND HR & PAYROLL SOLUTIONS","1852206","http://opencorporates.com/companies/gb/1852206","705850636"
"London Borough of Redbridge","http://opendatacommunities.org/doc/london-borough-council/redbridge","1BOTHEROPI&E","Other Operating Income & Expenditure","1CTRADSURDEF","Trading Account Surpluses & Deficits","REV","Revenue","R9460","Human Resources misc","04-SUPPLIES","Supplies And Services","04F","Communications and computing","5853","Computer Software","60313406","201703",25/05/2016 00:00:00,3095.89,"20703","Computer Systems and Software","REDACTED DATA","MIDLAND SOFTWARE LTD - MIDLAND HR & PAYROLL SOLUTIONS","1852206","http://opencorporates.com/companies/gb/1852206","705850636"
"London Borough of Redbridge","http://opendatacommunities.org/doc/london-borough-council/redbridge","1BOTHEROPI&E","Other Operating Income & Expenditure","1CTRADSURDEF","Trading Account Surpluses & Deficits","REV","Revenue","R9460","Human Resources misc","04-SUPPLIES","Supplies And Services","04F","Communications and computing","5858","Phones","3431725","201703",03/05/2016 00:00:00,12.5,"51500","Mobile Phones - Personal Numbers","REDACTED DATA","ORANGE PERSONAL COMMUNICATIONS SERVICES LIMITED","2178917","http://opencorporates.com/companies/gb/2178917","771592016"
"London Borough of Redbridge","http://opendatacommunities.org/doc/london-borough-council/redbridge","1BOTHEROPI&E","Other Operating Income & Expenditure","1CTRADSURDEF","Trading Account Surpluses & Deficits","REV","Revenue","R9460","Human Resources misc","04-SUPPLIES","Supplies And Services","04F","Communications and computing","5858","Phones","3431718","201703",03/04/2016 00:00:00,12.5,"51500","Mobile Phones - Personal Numbers","REDACTED DATA","ORANGE PERSONAL COMMUNICATIONS SERVICES LIMITED","2178917","http://opencorporates.com/companies/gb/2178917","771592016"
"London Borough of Redbridge","http://opendatacommunities.org/doc/london-borough-council/redbridge","1BOTHEROPI&E","Other Operating Income & Expenditure","1CTRADSURDEF","Trading Account Surpluses & Deficits","REV","Revenue","R9460","Human Resources misc","04-SUPPLIES","Supplies And Services","04F","Communications and computing","5858","Phones","3431718","201703",03/04/2016 00:00:00,12.5,"51500","Mobile Phones - Personal Numbers","REDACTED DATA","ORANGE PERSONAL COMMUNICATIONS SERVICES LIMITED","2178917","http://opencorporates.com/companies/gb/2178917","771592016"
"London Borough of Redbridge","http://opendatacommunities.org/doc/london-borough-council/redbridge","1BOTHEROPI&E","Other Operating Income & Expenditure","1CTRADSURDEF","Trading Account Surpluses & Deficits","REV","Revenue","R9460","Human Resources misc","04-SUPPLIES","Supplies And Services","04F","Communications and computing","5858","Phones","3431725","201703",03/05/2016 00:00:00,12.5,"51500","Mobile Phones - Personal Numbers","REDACTED DATA","ORANGE PERSONAL COMMUNICATIONS SERVICES LIMITED","2178917","http://opencorporates.com/companies/gb/2178917","771592016"
"London Borough of Redbridge","http://opendatacommunities.org/doc/london-borough-council/redbridge","1BOTHEROPI&E","Other Operating Income & Expenditure","1CTRADSURDEF","Trading Account Surpluses & Deficits","REV","Revenue","R9460","Human Resources misc","04-SUPPLIES","Supplies And Services","04F","Communications and computing","5858","Phones","3431724","201703",03/05/2016 00:00:00,11,"51500","Mobile Phones - Personal Numbers","REDACTED DATA","ORANGE PERSONAL COMMUNICATIONS SERVICES LIMITED","2178917","http://opencorporates.com/companies/gb/2178917","771592016"
"London Borough of Redbridge","http://opendatacommunities.org/doc/london-borough-council/redbridge","1BOTHEROPI&E","Other Operating Income & Expenditure","1CTRADSURDEF","Trading Account Surpluses & Deficits","REV","Revenue","R9460","Human Resources misc","04-SUPPLIES","Supplies And Services","04F","Communications and computing","5858","Phones","3431724","201703",03/05/2016 00:00:00,11,"51500","Mobile Phones - Personal Numbers","REDACTED DATA","ORANGE PERSONAL COMMUNICATIONS SERVICES LIMITED","2178917","http://opencorporates.com/companies/gb/2178917","771592016"
"London Borough of Redbridge","http://opendatacommunities.org/doc/london-borough-council/redbridge","1BOTHEROPI&E","Other Operating Income & Expenditure","1CTRADSURDEF","Trading Account Surpluses & Deficits","REV","Revenue","R9460","Human Resources misc","04-SUPPLIES","Supplies And Services","04F","Communications and computing","5858","Phones","3431724","201703",03/05/2016 00:00:00,11,"51500","Mobile Phones - Personal Numbers","REDACTED DATA","ORANGE PERSONAL COMMUNICATIONS SERVICES LIMITED","2178917","http://opencorporates.com/companies/gb/2178917","771592016"
"London Borough of Redbridge","http://opendatacommunities.org/doc/london-borough-council/redbridge","1BOTHEROPI&E","Other Operating Income & Expenditure","1CTRADSURDEF","Trading Account Surpluses & Deficits","REV","Revenue","R9460","Human Resources misc","04-SUPPLIES","Supplies And Services","04F","Communications and computing","5858","Phones","3431724","201703",03/05/2016 00:00:00,10,"51500","Mobile Phones - Personal Numbers","REDACTED DATA","ORANGE PERSONAL COMMUNICATIONS SERVICES LIMITED","2178917","http://opencorporates.com/companies/gb/2178917","771592016"
"London Borough of Redbridge","http://opendatacommunities.org/doc/london-borough-council/redbridge","1BOTHEROPI&E","Other Operating Income & Expenditure","1CTRADSURDEF","Trading Account Surpluses & Deficits","REV","Revenue","R9460","Human Resources misc","04-SUPPLIES","Supplies And Services","04F","Communications and computing","5858","Phones","3431724","201703",03/05/2016 00:00:00,12.75,"51500","Mobile Phones - Personal Numbers","REDACTED DATA","ORANGE PERSONAL COMMUNICATIONS SERVICES LIMITED","2178917","http://opencorporates.com/companies/gb/2178917","771592016"
"London Borough of Redbridge","http://opendatacommunities.org/doc/london-borough-council/redbridge","1BOTHEROPI&E","Other Operating Income & Expenditure","1CTRADSURDEF","Trading Account Surpluses & Deficits","REV","Revenue","R9460","Human Resources misc","04-SUPPLIES","Supplies And Services","04F","Communications and computing","5858","Phones","3431724","201703",03/05/2016 00:00:00,13.01,"51500","Mobile Phones - Personal Numbers","REDACTED DATA","ORANGE PERSONAL COMMUNICATIONS SERVICES LIMITED","2178917","http://opencorporates.com/companies/gb/2178917","771592016"
"London Borough of Redbridge","http://opendatacommunities.org/doc/london-borough-council/redbridge","1BOTHEROPI&E","Other Operating Income & Expenditure","1CTRADSURDEF","Trading Account Surpluses & Deficits","REV","Revenue","R9460","Human Resources misc","04-SUPPLIES","Supplies And Services","04F","Communications and computing","5858","Phones","3431724","201703",03/05/2016 00:00:00,11,"51500","Mobile Phones - Personal Numbers","REDACTED DATA","ORANGE PERSONAL COMMUNICATIONS SERVICES LIMITED","2178917","http://opencorporates.com/companies/gb/2178917","771592016"
"London Borough of Redbridge","http://opendatacommunities.org/doc/london-borough-council/redbridge","1BOTHEROPI&E","Other Operating Income & Expenditure","1CTRADSURDEF","Trading Account Surpluses & Deficits","REV","Revenue","R9460","Human Resources misc","04-SUPPLIES","Supplies And Services","04F","Communications and computing","5858","Phones","3431724","201703",03/05/2016 00:00:00,11,"51500","Mobile Phones - Personal Numbers","REDACTED DATA","ORANGE PERSONAL COMMUNICATIONS SERVICES LIMITED","2178917","http://opencorporates.com/companies/gb/2178917","771592016"
"London Borough of Redbridge","http://opendatacommunities.org/doc/london-borough-council/redbridge","1BOTHEROPI&E","Other Operating Income & Expenditure","1CTRADSURDEF","Trading Account Surpluses & Deficits","REV","Revenue","R9460","Human Resources misc","04-SUPPLIES","Supplies And Services","04H","Grants and subscriptions","5954","Professional Fees","60311886","201703",10/06/2016 00:00:00,5500,"53385","Occupational Therapists","REDACTED DATA","DR F M KENNEDY","",,""
"London Borough of Redbridge","http://opendatacommunities.org/doc/london-borough-council/redbridge","1BOTHEROPI&E","Other Operating Income & Expenditure","1CTRADSURDEF","Trading Account Surpluses & Deficits","REV","Revenue","R9460","Human Resources misc","04-SUPPLIES","Supplies And Services","04H","Grants and subscriptions","5954","Professional Fees","60312017","201703",25/05/2016 00:00:00,949.2,"31230","Employment & Recruitment Agencies","REDACTED DATA","HAYS SPECIALIST RECRUITMENT LTD - HAYS EDUCATION PERSONNEL","975677","http://opencorporates.com/companies/gb/975677","773695871"
"London Borough of Redbridge","http://opendatacommunities.org/doc/london-borough-council/redbridge","1BOTHEROPI&E","Other Operating Income & Expenditure","1CTRADSURDEF","Trading Account Surpluses & Deficits","REV","Revenue","R9460","Human Resources misc","04-SUPPLIES","Supplies And Services","04H","Grants and subscriptions","5954","Professional Fees","60311322","201703",31/03/2016 00:00:00,949.2,"31230","Employment & Recruitment Agencies","REDACTED DATA","HAYS SPECIALIST RECRUITMENT LTD - HAYS EDUCATION PERSONNEL","975677","http://opencorporates.com/companies/gb/975677","773695871"
"London Borough of Redbridge","http://opendatacommunities.org/doc/london-borough-council/redbridge","1BOTHEROPI&E","Other Operating Income & Expenditure","1CTRADSURDEF","Trading Account Surpluses & Deficits","REV","Revenue","R9460","Human Resources misc","04-SUPPLIES","Supplies And Services","04H","Grants and subscriptions","5954","Professional Fees","60311321","201703",23/03/2016 00:00:00,1186.5,"31230","Employment & Recruitment Agencies","REDACTED DATA","HAYS SPECIALIST RECRUITMENT LTD - HAYS EDUCATION PERSONNEL","975677","http://opencorporates.com/companies/gb/975677","773695871"
"London Borough of Redbridge","http://opendatacommunities.org/doc/london-borough-council/redbridge","1BOTHEROPI&E","Other Operating Income & Expenditure","1CTRADSURDEF","Trading Account Surpluses & Deficits","REV","Revenue","R9460","Human Resources misc","04-SUPPLIES","Supplies And Services","04H","Grants and subscriptions","5954","Professional Fees","60312883","201703",22/06/2016 00:00:00,1186.5,"31230","Employment & Recruitment Agencies","REDACTED DATA","HAYS SPECIALIST RECRUITMENT LTD - HAYS EDUCATION PERSONNEL","975677","http://opencorporates.com/companies/gb/975677","773695871"
"London Borough of Redbridge","http://opendatacommunities.org/doc/london-borough-council/redbridge","1BOTHEROPI&E","Other Operating Income & Expenditure","1CTRADSURDEF","Trading Account Surpluses & Deficits","REV","Revenue","R9460","Human Resources misc","04-SUPPLIES","Supplies And Services","04H","Grants and subscriptions","5954","Professional Fees","60311022","201703",31/05/2016 00:00:00,8000,"79623","Human Resources","REDACTED DATA","UMBRELLA-COMPANY LTD","6969639","http://opencorporates.com/companies/gb/6969639","940522545"
"London Borough of Redbridge","http://opendatacommunities.org/doc/london-borough-council/redbridge","1BOTHEROPI&E","Other Operating Income & Expenditure","1CTRADSURDEF","Trading Account Surpluses & Deficits","REV","Revenue","R9460","Human Resources misc","04-SUPPLIES","Supplies And Services","04H","Grants and subscriptions","5954","Professional Fees","60311236","201703",02/06/2016 00:00:00,2206.93,"81491","Universities & Medical Schools","REDACTED DATA","UNIVERSITY OF LONDON","",,"233903085"
"London Borough of Redbridge","http://opendatacommunities.org/doc/london-borough-council/redbridge","1BOTHEROPI&E","Other Operating Income & Expenditure","1CTRADSURDEF","Trading Account Surpluses & Deficits","REV","Revenue","R9460","Human Resources misc","04-SUPPLIES","Supplies And Services","04H","Grants and subscriptions","5954","Professional Fees","60310991","201703",01/06/2016 00:00:00,2750,"26710","Doctors","REDACTED DATA","DR JOHN GRATION","",,""
"London Borough of Redbridge","http://opendatacommunities.org/doc/london-borough-council/redbridge","1BOTHEROPI&E","Other Operating Income & Expenditure","1CTRADSURDEF","Trading Account Surpluses & Deficits","REV","Revenue","R9460","Human Resources misc","04-SUPPLIES","Supplies And Services","04H","Grants and subscriptions","5954","Professional Fees","60311328","201703",11/05/2016 00:00:00,949.2,"31230","Employment & Recruitment Agencies","REDACTED DATA","HAYS SPECIALIST RECRUITMENT LTD - HAYS EDUCATION PERSONNEL","975677","http://opencorporates.com/companies/gb/975677","773695871"
"London Borough of Redbridge","http://opendatacommunities.org/doc/london-borough-council/redbridge","1BOTHEROPI&E","Other Operating Income & Expenditure","1CTRADSURDEF","Trading Account Surpluses & Deficits","REV","Revenue","R9460","Human Resources misc","04-SUPPLIES","Supplies And Services","04H","Grants and subscriptions","5954","Professional Fees","60311327","201703",05/05/2016 00:00:00,1186.5,"31230","Employment & Recruitment Agencies","REDACTED DATA","HAYS SPECIALIST RECRUITMENT LTD - HAYS EDUCATION PERSONNEL","975677","http://opencorporates.com/companies/gb/975677","773695871"
"London Borough of Redbridge","http://opendatacommunities.org/doc/london-borough-council/redbridge","1BOTHEROPI&E","Other Operating Income & Expenditure","1CTRADSURDEF","Trading Account Surpluses & Deficits","REV","Revenue","R9460","Human Resources misc","04-SUPPLIES","Supplies And Services","04H","Grants and subscriptions","5954","Professional Fees","60313407","201703",29/06/2016 00:00:00,1186.5,"31230","Employment & Recruitment Agencies","REDACTED DATA","HAYS SPECIALIST RECRUITMENT LTD - HAYS EDUCATION PERSONNEL","975677","http://opencorporates.com/companies/gb/975677","773695871"
"London Borough of Redbridge","http://opendatacommunities.org/doc/london-borough-council/redbridge","1BOTHEROPI&E","Other Operating Income & Expenditure","1CTRADSURDEF","Trading Account Surpluses & Deficits","REV","Revenue","R9460","Human Resources misc","04-SUPPLIES","Supplies And Services","04H","Grants and subscriptions","5954","Professional Fees","60311326","201703",28/04/2016 00:00:00,1186.5,"31230","Employment & Recruitment Agencies","REDACTED DATA","HAYS SPECIALIST RECRUITMENT LTD - HAYS EDUCATION PERSONNEL","975677","http://opencorporates.com/companies/gb/975677","773695871"
"London Borough of Redbridge","http://opendatacommunities.org/doc/london-borough-council/redbridge","1BOTHEROPI&E","Other Operating Income & Expenditure","1CTRADSURDEF","Trading Account Surpluses & Deficits","REV","Revenue","R9460","Human Resources misc","04-SUPPLIES","Supplies And Services","04H","Grants and subscriptions","5954","Professional Fees","60311324","201703",15/04/2016 00:00:00,1186.5,"31230","Employment & Recruitment Agencies","REDACTED DATA","HAYS SPECIALIST RECRUITMENT LTD - HAYS EDUCATION PERSONNEL","975677","http://opencorporates.com/companies/gb/975677","773695871"
"London Borough of Redbridge","http://opendatacommunities.org/doc/london-borough-council/redbridge","1BOTHEROPI&E","Other Operating Income & Expenditure","1CTRADSURDEF","Trading Account Surpluses & Deficits","REV","Revenue","R9460","Human Resources misc","04-SUPPLIES","Supplies And Services","04H","Grants and subscriptions","5954","Professional Fees","60311325","201703",21/04/2016 00:00:00,1186.5,"31230","Employment & Recruitment Agencies","REDACTED DATA","HAYS SPECIALIST RECRUITMENT LTD - HAYS EDUCATION PERSONNEL","975677","http://opencorporates.com/companies/gb/975677","773695871"
"London Borough of Redbridge","http://opendatacommunities.org/doc/london-borough-council/redbridge","1BOTHEROPI&E","Other Operating Income & Expenditure","1CTRADSURDEF","Trading Account Surpluses & Deficits","REV","Revenue","R9460","Human Resources misc","04-SUPPLIES","Supplies And Services","04H","Grants and subscriptions","5954","Professional Fees","60311323","201703",07/04/2016 00:00:00,949.2,"31230","Employment & Recruitment Agencies","REDACTED DATA","HAYS SPECIALIST RECRUITMENT LTD - HAYS EDUCATION PERSONNEL","975677","http://opencorporates.com/companies/gb/975677","773695871"
"London Borough of Redbridge","http://opendatacommunities.org/doc/london-borough-council/redbridge","1BOTHEROPI&E","Other Operating Income & Expenditure","1CTRADSURDEF","Trading Account Surpluses & Deficits","REV","Revenue","R9460","Human Resources misc","04-SUPPLIES","Supplies And Services","04H","Grants and subscriptions","5954","Professional Fees","60313357","201703",27/06/2016 00:00:00,544.18,"81491","Universities & Medical Schools","REDACTED DATA","UNIVERSITY OF LONDON","",,"233903085"
"London Borough of Redbridge","http://opendatacommunities.org/doc/london-borough-council/redbridge","1BOTHEROPI&E","Other Operating Income & Expenditure","1CTRADSURDEF","Trading Account Surpluses & Deficits","REV","Revenue","R9460","Human Resources misc","04-SUPPLIES","Supplies And Services","04H","Grants and subscriptions","5954","Professional Fees","60312649","201703",31/05/2016 00:00:00,4675,"20690","Computer Support & Services","REDACTED DATA","AMBER LEIGH UK LTD","6283793","http://opencorporates.com/companies/gb/6283793","923355726"
"London Borough of Redbridge","http://opendatacommunities.org/doc/london-borough-council/redbridge","1BOTHEROPI&E","Other Operating Income & Expenditure","1CTRADSURDEF","Trading Account Surpluses & Deficits","REV","Revenue","R9460","Human Resources misc","04-SUPPLIES","Supplies And Services","04H","Grants and subscriptions","5954","Professional Fees","60312625","201703",20/06/2016 00:00:00,900,"79980","Training Services","REDACTED DATA","MAUREEN E PERKINS","3077339571","http://opencorporates.com/companies/gb/3077339571",""
"London Borough of Redbridge","http://opendatacommunities.org/doc/london-borough-council/redbridge","1BOTHEROPI&E","Other Operating Income & Expenditure","1CTRADSURDEF","Trading Account Surpluses & Deficits","REV","Revenue","R9460","Human Resources misc","04-SUPPLIES","Supplies And Services","04H","Grants and subscriptions","5954","Professional Fees","60312019","201703",01/06/2016 00:00:00,1186.5,"31230","Employment & Recruitment Agencies","REDACTED DATA","HAYS SPECIALIST RECRUITMENT LTD - HAYS EDUCATION PERSONNEL","975677","http://opencorporates.com/companies/gb/975677","773695871"
"London Borough of Redbridge","http://opendatacommunities.org/doc/london-borough-council/redbridge","1BOTHEROPI&E","Other Operating Income & Expenditure","1CTRADSURDEF","Trading Account Surpluses & Deficits","REV","Revenue","R9460","Human Resources misc","04-SUPPLIES","Supplies And Services","04H","Grants and subscriptions","5954","Professional Fees","60312029","201703",18/05/2016 00:00:00,1186.5,"31230","Employment & Recruitment Agencies","REDACTED DATA","HAYS SPECIALIST RECRUITMENT LTD - HAYS EDUCATION PERSONNEL","975677","http://opencorporates.com/companies/gb/975677","773695871"
"London Borough of Redbridge","http://opendatacommunities.org/doc/london-borough-council/redbridge","1BOTHEROPI&E","Other Operating Income & Expenditure","1CTRADSURDEF","Trading Account Surpluses & Deficits","REV","Revenue","R9460","Human Resources misc","04-SUPPLIES","Supplies And Services","04H","Grants and subscriptions","5954","Professional Fees","60312256","201703",15/06/2016 00:00:00,711.9,"31230","Employment & Recruitment Agencies","REDACTED DATA","HAYS SPECIALIST RECRUITMENT LTD - HAYS EDUCATION PERSONNEL","975677","http://opencorporates.com/companies/gb/975677","773695871"
"London Borough of Redbridge","http://opendatacommunities.org/doc/london-borough-council/redbridge","1BOTHEROPI&E","Other Operating Income & Expenditure","1CTRADSURDEF","Trading Account Surpluses & Deficits","REV","Revenue","R9460","Human Resources misc","04-SUPPLIES","Supplies And Services","04H","Grants and subscriptions","5954","Professional Fees","60312257","201703",15/06/2016 00:00:00,711.9,"31230","Employment & Recruitment Agencies","REDACTED DATA","HAYS SPECIALIST RECRUITMENT LTD - HAYS EDUCATION PERSONNEL","975677","http://opencorporates.com/companies/gb/975677","773695871"
"London Borough of Redbridge","http://opendatacommunities.org/doc/london-borough-council/redbridge","1BOTHEROPI&E","Other Operating Income & Expenditure","1CTRADSURDEF","Trading Account Surpluses & Deficits","REV","Revenue","R9460","Human Resources misc","04-SUPPLIES","Supplies And Services","04H","Grants and subscriptions","5954","Professional Fees","60311319","201703",17/03/2016 00:00:00,1186.5,"31230","Employment & Recruitment Agencies","REDACTED DATA","HAYS SPECIALIST RECRUITMENT LTD - HAYS EDUCATION PERSONNEL","975677","http://opencorporates.com/companies/gb/975677","773695871"
"London Borough of Redbridge","http://opendatacommunities.org/doc/london-borough-council/redbridge","1BOTHEROPI&E","Other Operating Income & Expenditure","1CTRADSURDEF","Trading Account Surpluses & Deficits","REV","Revenue","R9460","Human Resources misc","04-SUPPLIES","Supplies And Services","04H","Grants and subscriptions","5954","Professional Fees","60311320","201703",17/03/2016 00:00:00,1186.5,"31230","Employment & Recruitment Agencies","REDACTED DATA","HAYS SPECIALIST RECRUITMENT LTD - HAYS EDUCATION PERSONNEL","975677","http://opencorporates.com/companies/gb/975677","773695871"
"London Borough of Redbridge","http://opendatacommunities.org/doc/london-borough-council/redbridge","1BOTHEROPI&E","Other Operating Income & Expenditure","1CTRADSURDEF","Trading Account Surpluses & Deficits","REV","Revenue","R9460","Human Resources misc","04-SUPPLIES","Supplies And Services","04H","Grants and subscriptions","5954","Professional Fees","60311232","201703",02/06/2016 00:00:00,1168.93,"81491","Universities & Medical Schools","REDACTED DATA","UNIVERSITY OF LONDON","",,"233903085"
"London Borough of Redbridge","http://opendatacommunities.org/doc/london-borough-council/redbridge","1BOTHEROPI&E","Other Operating Income & Expenditure","1CTRADSURDEF","Trading Account Surpluses & Deficits","REV","Revenue","R9460","Human Resources misc","04-SUPPLIES","Supplies And Services","04H","Grants and subscriptions","5956","Subscriptions","60311034","201703",16/05/2016 00:00:00,1980,"45170","Information Services","REDACTED DATA","WOLTERS KLUWER (UK) LTD","450650","http://opencorporates.com/companies/gb/450650","710935745"
"London Borough of Redbridge","http://opendatacommunities.org/doc/london-borough-council/redbridge","1BOTHEROPI&E","Other Operating Income & Expenditure","1CTRADSURDEF","Trading Account Surpluses & Deficits","REV","Revenue","R9460","Human Resources misc","04-SUPPLIES","Supplies And Services","04K","Miscellaneous expenses","6233","Licences","60311917","201703",13/06/2016 00:00:00,2.75,"24080","Database Services","REDACTED DATA","ATLANTIC DATA LTD","4085856","http://opencorporates.com/companies/gb/4085856","755878078"
"London Borough of Redbridge","http://opendatacommunities.org/doc/london-borough-council/redbridge","1BOTHEROPI&E","Other Operating Income & Expenditure","1CTRADSURDEF","Trading Account Surpluses & Deficits","REV","Revenue","R9460","Human Resources misc","04-SUPPLIES","Supplies And Services","04K","Miscellaneous expenses","6233","Licences","60311916","201703",13/06/2016 00:00:00,592.1,"24080","Database Services","REDACTED DATA","ATLANTIC DATA LTD","4085856","http://opencorporates.com/companies/gb/4085856","755878078"
"London Borough of Redbridge","http://opendatacommunities.org/doc/london-borough-council/redbridge","1BOTHEROPI&E","Other Operating Income & Expenditure","1CTRADSURDEF","Trading Account Surpluses & Deficits","REV","Revenue","R9460","Human Resources misc","05-THIRD","Third Party Payments","05A","Independent units within the council","6513","Agency & Contracted Services","60311982","201703",31/05/2016 00:00:00,6204,"16580","Central Government","REDACTED DATA","DISCLOSURE AND BARRING SERVICE(DBS)","",,""
"London Borough of Redbridge","http://opendatacommunities.org/doc/london-borough-council/redbridge","1BOTHEROPI&E","Other Operating Income & Expenditure","1CTRADSURDEF","Trading Account Surpluses & Deficits","REV","Revenue","R9460","Human Resources misc","09-INCOME","Income","09C","Customer and Client Receipts","8560","Fees & Charges","70085855","201703",01/06/2016 00:00:00,-0.28,"42295","Health Insurance","REDACTED DATA","SIMPLYHEALTH","",,""
"London Borough of Redbridge","http://opendatacommunities.org/doc/london-borough-council/redbridge","1BOTHEROPI&E","Other Operating Income & Expenditure","1CTRADSURDEF","Trading Account Surpluses & Deficits","REV","Revenue","R9460","Human Resources misc","09-INCOME","Income","09C","Customer and Client Receipts","8560","Fees & Charges","70085831","201703",01/06/2016 00:00:00,-16.44,"42295","Health Insurance","REDACTED DATA","SIMPLYHEALTH","",,""
"London Borough of Redbridge","http://opendatacommunities.org/doc/london-borough-council/redbridge","1BOTHEROPI&E","Other Operating Income & Expenditure","1CTRADSURDEF","Trading Account Surpluses & Deficits","REV","Revenue","R9560","Facilities Management","01-EMPLOYEES","Employees","01B","Indirect employee expenses","2403","External Training","60312205","201703",15/06/2016 00:00:00,195,"79980","Training Services","REDACTED DATA","FRINTON TRAINING SERVICES LTD","6473800","http://opencorporates.com/companies/gb/6473800","925433723"
"London Borough of Redbridge","http://opendatacommunities.org/doc/london-borough-council/redbridge","1BOTHEROPI&E","Other Operating Income & Expenditure","1CTRADSURDEF","Trading Account Surpluses & Deficits","REV","Revenue","R9560","Facilities Management","04-SUPPLIES","Supplies And Services","04A","Equipment, furniture and materials","5502","Equipment Purchase","60311133","201703",02/06/2016 00:00:00,480,"53400","Office Equipment Servicing & Maintenance","REDACTED DATA","UNITED TECHNOLOGIES UK LTD(UTL)","3805286","http://opencorporates.com/companies/gb/3805286","740173460"
"London Borough of Redbridge","http://opendatacommunities.org/doc/london-borough-council/redbridge","1BOTHEROPI&E","Other Operating Income & Expenditure","1CTRADSURDEF","Trading Account Surpluses & Deficits","REV","Revenue","R9560","Facilities Management","04-SUPPLIES","Supplies And Services","04F","Communications and computing","5858","Phones","3431724","201703",03/05/2016 00:00:00,11,"51500","Mobile Phones - Personal Numbers","REDACTED DATA","ORANGE PERSONAL COMMUNICATIONS SERVICES LIMITED","2178917","http://opencorporates.com/companies/gb/2178917","771592016"
"London Borough of Redbridge","http://opendatacommunities.org/doc/london-borough-council/redbridge","1BOTHEROPI&E","Other Operating Income & Expenditure","1CTRADSURDEF","Trading Account Surpluses & Deficits","REV","Revenue","R9560","Facilities Management","04-SUPPLIES","Supplies And Services","04F","Communications and computing","5858","Phones","3431724","201703",03/05/2016 00:00:00,0.04,"51500","Mobile Phones - Personal Numbers","REDACTED DATA","ORANGE PERSONAL COMMUNICATIONS SERVICES LIMITED","2178917","http://opencorporates.com/companies/gb/2178917","771592016"
"London Borough of Redbridge","http://opendatacommunities.org/doc/london-borough-council/redbridge","1BOTHEROPI&E","Other Operating Income & Expenditure","1CTRADSURDEF","Trading Account Surpluses & Deficits","REV","Revenue","R9565","Property Management","01-EMPLOYEES","Employees","01A","Direct employee expenses","4","Agency Staff - Pay","3431762","201703",08/06/2016 00:00:00,6.5,"31230","Employment & Recruitment Agencies","REDACTED DATA","ADECCO UK LIMITED","593232","http://opencorporates.com/companies/gb/593232","232347975"
"London Borough of Redbridge","http://opendatacommunities.org/doc/london-borough-council/redbridge","1BOTHEROPI&E","Other Operating Income & Expenditure","1CTRADSURDEF","Trading Account Surpluses & Deficits","REV","Revenue","R9565","Property Management","01-EMPLOYEES","Employees","01A","Direct employee expenses","4","Agency Staff - Pay","3431762","201703",08/06/2016 00:00:00,933.02,"31230","Employment & Recruitment Agencies","REDACTED DATA","ADECCO UK LIMITED","593232","http://opencorporates.com/companies/gb/593232","232347975"
"London Borough of Redbridge","http://opendatacommunities.org/doc/london-borough-council/redbridge","1BOTHEROPI&E","Other Operating Income & Expenditure","1CTRADSURDEF","Trading Account Surpluses & Deficits","REV","Revenue","R9565","Property Management","01-EMPLOYEES","Employees","01A","Direct employee expenses","4","Agency Staff - Pay","3431762","201703",08/06/2016 00:00:00,1134.47,"31230","Employment & Recruitment Agencies","REDACTED DATA","ADECCO UK LIMITED","593232","http://opencorporates.com/companies/gb/593232","232347975"
"London Borough of Redbridge","http://opendatacommunities.org/doc/london-borough-council/redbridge","1BOTHEROPI&E","Other Operating Income & Expenditure","1CTRADSURDEF","Trading Account Surpluses & Deficits","REV","Revenue","R9565","Property Management","01-EMPLOYEES","Employees","01A","Direct employee expenses","4","Agency Staff - Pay","3431762","201703",08/06/2016 00:00:00,6.5,"31230","Employment & Recruitment Agencies","REDACTED DATA","ADECCO UK LIMITED","593232","http://opencorporates.com/companies/gb/593232","232347975"
"London Borough of Redbridge","http://opendatacommunities.org/doc/london-borough-council/redbridge","1BOTHEROPI&E","Other Operating Income & Expenditure","1CTRADSURDEF","Trading Account Surpluses & Deficits","REV","Revenue","R9565","Property Management","01-EMPLOYEES","Employees","01A","Direct employee expenses","4","Agency Staff - Pay","3431237","201703",26/05/2016 00:00:00,568.52,"31230","Employment & Recruitment Agencies","REDACTED DATA","ADECCO UK LIMITED","593232","http://opencorporates.com/companies/gb/593232","232347975"
"London Borough of Redbridge","http://opendatacommunities.org/doc/london-borough-council/redbridge","1BOTHEROPI&E","Other Operating Income & Expenditure","1CTRADSURDEF","Trading Account Surpluses & Deficits","REV","Revenue","R9565","Property Management","01-EMPLOYEES","Employees","01A","Direct employee expenses","4","Agency Staff - Pay","3432177","201703",15/06/2016 00:00:00,6.6,"31230","Employment & Recruitment Agencies","REDACTED DATA","ADECCO UK LIMITED","593232","http://opencorporates.com/companies/gb/593232","232347975"
"London Borough of Redbridge","http://opendatacommunities.org/doc/london-borough-council/redbridge","1BOTHEROPI&E","Other Operating Income & Expenditure","1CTRADSURDEF","Trading Account Surpluses & Deficits","REV","Revenue","R9565","Property Management","01-EMPLOYEES","Employees","01A","Direct employee expenses","4","Agency Staff - Pay","3432177","201703",15/06/2016 00:00:00,81,"31230","Employment & Recruitment Agencies","REDACTED DATA","ADECCO UK LIMITED","593232","http://opencorporates.com/companies/gb/593232","232347975"
"London Borough of Redbridge","http://opendatacommunities.org/doc/london-borough-council/redbridge","1BOTHEROPI&E","Other Operating Income & Expenditure","1CTRADSURDEF","Trading Account Surpluses & Deficits","REV","Revenue","R9565","Property Management","01-EMPLOYEES","Employees","01A","Direct employee expenses","4","Agency Staff - Pay","3432177","201703",15/06/2016 00:00:00,6.5,"31230","Employment & Recruitment Agencies","REDACTED DATA","ADECCO UK LIMITED","593232","http://opencorporates.com/companies/gb/593232","232347975"
"London Borough of Redbridge","http://opendatacommunities.org/doc/london-borough-council/redbridge","1BOTHEROPI&E","Other Operating Income & Expenditure","1CTRADSURDEF","Trading Account Surpluses & Deficits","REV","Revenue","R9565","Property Management","01-EMPLOYEES","Employees","01A","Direct employee expenses","4","Agency Staff - Pay","3432177","201703",15/06/2016 00:00:00,6.5,"31230","Employment & Recruitment Agencies","REDACTED DATA","ADECCO UK LIMITED","593232","http://opencorporates.com/companies/gb/593232","232347975"
"London Borough of Redbridge","http://opendatacommunities.org/doc/london-borough-council/redbridge","1BOTHEROPI&E","Other Operating Income & Expenditure","1CTRADSURDEF","Trading Account Surpluses & Deficits","REV","Revenue","R9565","Property Management","01-EMPLOYEES","Employees","01A","Direct employee expenses","4","Agency Staff - Pay","3432177","201703",15/06/2016 00:00:00,1187.48,"31230","Employment & Recruitment Agencies","REDACTED DATA","ADECCO UK LIMITED","593232","http://opencorporates.com/companies/gb/593232","232347975"
"London Borough of Redbridge","http://opendatacommunities.org/doc/london-borough-council/redbridge","1BOTHEROPI&E","Other Operating Income & Expenditure","1CTRADSURDEF","Trading Account Surpluses & Deficits","REV","Revenue","R9565","Property Management","01-EMPLOYEES","Employees","01A","Direct employee expenses","4","Agency Staff - Pay","3431762","201703",08/06/2016 00:00:00,6.5,"31230","Employment & Recruitment Agencies","REDACTED DATA","ADECCO UK LIMITED","593232","http://opencorporates.com/companies/gb/593232","232347975"
"London Borough of Redbridge","http://opendatacommunities.org/doc/london-borough-council/redbridge","1BOTHEROPI&E","Other Operating Income & Expenditure","1CTRADSURDEF","Trading Account Surpluses & Deficits","REV","Revenue","R9565","Property Management","01-EMPLOYEES","Employees","01A","Direct employee expenses","4","Agency Staff - Pay","3431762","201703",08/06/2016 00:00:00,6.5,"31230","Employment & Recruitment Agencies","REDACTED DATA","ADECCO UK LIMITED","593232","http://opencorporates.com/companies/gb/593232","232347975"
"London Borough of Redbridge","http://opendatacommunities.org/doc/london-borough-council/redbridge","1BOTHEROPI&E","Other Operating Income & Expenditure","1CTRADSURDEF","Trading Account Surpluses & Deficits","REV","Revenue","R9565","Property Management","01-EMPLOYEES","Employees","01A","Direct employee expenses","4","Agency Staff - Pay","3431237","201703",26/05/2016 00:00:00,0,"31230","Employment & Recruitment Agencies","REDACTED DATA","ADECCO UK LIMITED","593232","http://opencorporates.com/companies/gb/593232","232347975"
"London Borough of Redbridge","http://opendatacommunities.org/doc/london-borough-council/redbridge","1BOTHEROPI&E","Other Operating Income & Expenditure","1CTRADSURDEF","Trading Account Surpluses & Deficits","REV","Revenue","R9565","Property Management","01-EMPLOYEES","Employees","01A","Direct employee expenses","4","Agency Staff - Pay","3431237","201703",26/05/2016 00:00:00,577.84,"31230","Employment & Recruitment Agencies","REDACTED DATA","ADECCO UK LIMITED","593232","http://opencorporates.com/companies/gb/593232","232347975"
"London Borough of Redbridge","http://opendatacommunities.org/doc/london-borough-council/redbridge","1BOTHEROPI&E","Other Operating Income & Expenditure","1CTRADSURDEF","Trading Account Surpluses & Deficits","REV","Revenue","R9565","Property Management","01-EMPLOYEES","Employees","01A","Direct employee expenses","4","Agency Staff - Pay","3431237","201703",26/05/2016 00:00:00,652.4,"31230","Employment & Recruitment Agencies","REDACTED DATA","ADECCO UK LIMITED","593232","http://opencorporates.com/companies/gb/593232","232347975"
"London Borough of Redbridge","http://opendatacommunities.org/doc/london-borough-council/redbridge","1BOTHEROPI&E","Other Operating Income & Expenditure","1CTRADSURDEF","Trading Account Surpluses & Deficits","REV","Revenue","R9565","Property Management","01-EMPLOYEES","Employees","01A","Direct employee expenses","4","Agency Staff - Pay","3431237","201703",26/05/2016 00:00:00,801.52,"31230","Employment & Recruitment Agencies","REDACTED DATA","ADECCO UK LIMITED","593232","http://opencorporates.com/companies/gb/593232","232347975"
"London Borough of Redbridge","http://opendatacommunities.org/doc/london-borough-council/redbridge","1BOTHEROPI&E","Other Operating Income & Expenditure","1CTRADSURDEF","Trading Account Surpluses & Deficits","REV","Revenue","R9565","Property Management","01-EMPLOYEES","Employees","01A","Direct employee expenses","4","Agency Staff - Pay","3431237","201703",26/05/2016 00:00:00,279.6,"31230","Employment & Recruitment Agencies","REDACTED DATA","ADECCO UK LIMITED","593232","http://opencorporates.com/companies/gb/593232","232347975"
"London Borough of Redbridge","http://opendatacommunities.org/doc/london-borough-council/redbridge","1BOTHEROPI&E","Other Operating Income & Expenditure","1CTRADSURDEF","Trading Account Surpluses & Deficits","REV","Revenue","R9565","Property Management","01-EMPLOYEES","Employees","01A","Direct employee expenses","4","Agency Staff - Pay","3431237","201703",26/05/2016 00:00:00,643.08,"31230","Employment & Recruitment Agencies","REDACTED DATA","ADECCO UK LIMITED","593232","http://opencorporates.com/companies/gb/593232","232347975"
"London Borough of Redbridge","http://opendatacommunities.org/doc/london-borough-council/redbridge","1BOTHEROPI&E","Other Operating Income & Expenditure","1CTRADSURDEF","Trading Account Surpluses & Deficits","REV","Revenue","R9565","Property Management","01-EMPLOYEES","Employees","01A","Direct employee expenses","4","Agency Staff - Pay","3431237","201703",26/05/2016 00:00:00,568.52,"31230","Employment & Recruitment Agencies","REDACTED DATA","ADECCO UK LIMITED","593232","http://opencorporates.com/companies/gb/593232","232347975"
"London Borough of Redbridge","http://opendatacommunities.org/doc/london-borough-council/redbridge","1BOTHEROPI&E","Other Operating Income & Expenditure","1CTRADSURDEF","Trading Account Surpluses & Deficits","REV","Revenue","R9565","Property Management","01-EMPLOYEES","Employees","01A","Direct employee expenses","4","Agency Staff - Pay","3431237","201703",26/05/2016 00:00:00,0,"31230","Employment & Recruitment Agencies","REDACTED DATA","ADECCO UK LIMITED","593232","http://opencorporates.com/companies/gb/593232","232347975"
"London Borough of Redbridge","http://opendatacommunities.org/doc/london-borough-council/redbridge","1BOTHEROPI&E","Other Operating Income & Expenditure","1CTRADSURDEF","Trading Account Surpluses & Deficits","REV","Revenue","R9565","Property Management","04-SUPPLIES","Supplies And Services","04H","Grants and subscriptions","5954","Professional Fees","60312010","201703",03/06/2016 00:00:00,1200,"74700","Surveyors & Valuers","REDACTED DATA","WILKS HEAD AND EVE LLP","OC315743","http://opencorporates.com/companies/gb/OC315743","239360064"
"London Borough of Redbridge","http://opendatacommunities.org/doc/london-borough-council/redbridge","1BOTHEROPI&E","Other Operating Income & Expenditure","1CTRADSURDEF","Trading Account Surpluses & Deficits","REV","Revenue","R9565","Property Management","04-SUPPLIES","Supplies And Services","04H","Grants and subscriptions","5954","Professional Fees","60311549","201703",31/05/2016 00:00:00,250,"61896","Property & Estate Management","REDACTED DATA","RONA","",,"246779318"
"London Borough of Redbridge","http://opendatacommunities.org/doc/london-borough-council/redbridge","1BOTHEROPI&E","Other Operating Income & Expenditure","1CTRADSURDEF","Trading Account Surpluses & Deficits","REV","Revenue","R9571","98-100 Ilford Lane","02-PREMISES","Premises","02A","Repairs, alteration and maintenance of buildings","3037","Service Contracts","3434406","201703",22/06/2016 00:00:00,47.14,"35290","Fire Alarm Systems","REDACTED DATA","MULTI-ALARM SYSTEMS (GB) LTD","1020755","http://opencorporates.com/companies/gb/1020755","358056637"
"London Borough of Redbridge","http://opendatacommunities.org/doc/london-borough-council/redbridge","1BOTHEROPI&E","Other Operating Income & Expenditure","1CTRADSURDEF","Trading Account Surpluses & Deficits","REV","Revenue","R9571","98-100 Ilford Lane","02-PREMISES","Premises","02A","Repairs, alteration and maintenance of buildings","3037","Service Contracts","3432056","201703",16/05/2016 00:00:00,37.89,"76510","Telecommunication Services","REDACTED DATA","BRITISH TELECOM (DURHAM)","4190816","http://opencorporates.com/companies/gb/4190816","245719348"
"London Borough of Redbridge","http://opendatacommunities.org/doc/london-borough-council/redbridge","1BOTHEROPI&E","Other Operating Income & Expenditure","1CTRADSURDEF","Trading Account Surpluses & Deficits","REV","Revenue","R9571","98-100 Ilford Lane","02-PREMISES","Premises","02A","Repairs, alteration and maintenance of buildings","3037","Service Contracts","3432056","201703",16/05/2016 00:00:00,96.9,"76510","Telecommunication Services","REDACTED DATA","BRITISH TELECOM (DURHAM)","4190816","http://opencorporates.com/companies/gb/4190816","245719348"
"London Borough of Redbridge","http://opendatacommunities.org/doc/london-borough-council/redbridge","1BOTHEROPI&E","Other Operating Income & Expenditure","1CTRADSURDEF","Trading Account Surpluses & Deficits","REV","Revenue","R9571","98-100 Ilford Lane","02-PREMISES","Premises","02B","Energy costs","4002","Gas","80021818","201703",13/06/2016 00:00:00,112.01,"39564","Gas Companies","REDACTED DATA","KENT COUNTY COUNCIL (GAS & ELECTRIC)","",,"204269191"
"London Borough of Redbridge","http://opendatacommunities.org/doc/london-borough-council/redbridge","1BOTHEROPI&E","Other Operating Income & Expenditure","1CTRADSURDEF","Trading Account Surpluses & Deficits","REV","Revenue","R9571","98-100 Ilford Lane","02-PREMISES","Premises","02C","Rents","4120","Rents","60312015","201703",13/06/2016 00:00:00,8812.5,"47846","Letting Agents","REDACTED DATA","STEROSMAG","",,""
"London Borough of Redbridge","http://opendatacommunities.org/doc/london-borough-council/redbridge","1BOTHEROPI&E","Other Operating Income & Expenditure","1CTRADSURDEF","Trading Account Surpluses & Deficits","REV","Revenue","R9571","98-100 Ilford Lane","02-PREMISES","Premises","02E","Water services","4320","Water Charges & Sewerage","70086570","201703",22/06/2016 00:00:00,172.16,"83682","Water Companies","REDACTED DATA","ESSEX & SUFFOLK WATER PLC","",,"499980359"
"London Borough of Redbridge","http://opendatacommunities.org/doc/london-borough-council/redbridge","1BOTHEROPI&E","Other Operating Income & Expenditure","1CTRADSURDEF","Trading Account Surpluses & Deficits","REV","Revenue","R9573","Fairlop Farms","02-PREMISES","Premises","02A","Repairs, alteration and maintenance of buildings","3026","Minor Maintenance","60311550","201703",03/06/2016 00:00:00,48.71,"61896","Property & Estate Management","REDACTED DATA","SPENCER CRAIG PARTNERSHIP","5500269","http://opencorporates.com/companies/gb/5500269","863664200"
"London Borough of Redbridge","http://opendatacommunities.org/doc/london-borough-council/redbridge","1BOTHEROPI&E","Other Operating Income & Expenditure","1CTRADSURDEF","Trading Account Surpluses & Deficits","REV","Revenue","R9575","Ilford Chambers Service Charge Account","02-PREMISES","Premises","02A","Repairs, alteration and maintenance of buildings","3037","Service Contracts","60311507","201703",31/05/2016 00:00:00,217.62,"35290","Fire Alarm Systems","REDACTED DATA","METRO INSPECTION SERVICES LTD","3357802","http://opencorporates.com/companies/gb/3357802","730674831"
"London Borough of Redbridge","http://opendatacommunities.org/doc/london-borough-council/redbridge","1BOTHEROPI&E","Other Operating Income & Expenditure","1CTRADSURDEF","Trading Account Surpluses & Deficits","REV","Revenue","R9575","Ilford Chambers Service Charge Account","02-PREMISES","Premises","02A","Repairs, alteration and maintenance of buildings","3037","Service Contracts","3434414","201703",22/06/2016 00:00:00,70.5,"35290","Fire Alarm Systems","REDACTED DATA","MULTI-ALARM SYSTEMS (GB) LTD","1020755","http://opencorporates.com/companies/gb/1020755","358056637"
"London Borough of Redbridge","http://opendatacommunities.org/doc/london-borough-council/redbridge","1BOTHEROPI&E","Other Operating Income & Expenditure","1CTRADSURDEF","Trading Account Surpluses & Deficits","REV","Revenue","R9575","Ilford Chambers Service Charge Account","02-PREMISES","Premises","02A","Repairs, alteration and maintenance of buildings","3037","Service Contracts","3432056","201703",16/05/2016 00:00:00,38.72,"76510","Telecommunication Services","REDACTED DATA","BRITISH TELECOM (DURHAM)","4190816","http://opencorporates.com/companies/gb/4190816","245719348"
"London Borough of Redbridge","http://opendatacommunities.org/doc/london-borough-council/redbridge","1BOTHEROPI&E","Other Operating Income & Expenditure","1CTRADSURDEF","Trading Account Surpluses & Deficits","REV","Revenue","R9575","Ilford Chambers Service Charge Account","02-PREMISES","Premises","02A","Repairs, alteration and maintenance of buildings","3037","Service Contracts","3431836","201703",02/06/2016 00:00:00,46.25,"35290","Fire Alarm Systems","REDACTED DATA","MULTI-ALARM SYSTEMS (GB) LTD","1020755","http://opencorporates.com/companies/gb/1020755","358056637"
"London Borough of Redbridge","http://opendatacommunities.org/doc/london-borough-council/redbridge","1BOTHEROPI&E","Other Operating Income & Expenditure","1CTRADSURDEF","Trading Account Surpluses & Deficits","REV","Revenue","R9575","Ilford Chambers Service Charge Account","02-PREMISES","Premises","02A","Repairs, alteration and maintenance of buildings","3037","Service Contracts","3432025","201703",02/06/2016 00:00:00,1084.8,"50275","Mechanical Engineers","REDACTED DATA","REAM CONTRACTS LTD","6246918","http://opencorporates.com/companies/gb/6246918","919210929"
"London Borough of Redbridge","http://opendatacommunities.org/doc/london-borough-council/redbridge","1BOTHEROPI&E","Other Operating Income & Expenditure","1CTRADSURDEF","Trading Account Surpluses & Deficits","REV","Revenue","R9575","Ilford Chambers Service Charge Account","02-PREMISES","Premises","02B","Energy costs","4002","Gas","80021813","201703",13/06/2016 00:00:00,333.28,"39564","Gas Companies","REDACTED DATA","KENT COUNTY COUNCIL (GAS & ELECTRIC)","",,"204269191"
"London Borough of Redbridge","http://opendatacommunities.org/doc/london-borough-council/redbridge","1BOTHEROPI&E","Other Operating Income & Expenditure","1CTRADSURDEF","Trading Account Surpluses & Deficits","REV","Revenue","R9575","Ilford Chambers Service Charge Account","02-PREMISES","Premises","02E","Water services","4320","Water Charges & Sewerage","70086571","201703",22/06/2016 00:00:00,1262.48,"83682","Water Companies","REDACTED DATA","ESSEX & SUFFOLK WATER PLC","",,"499980359"
"London Borough of Redbridge","http://opendatacommunities.org/doc/london-borough-council/redbridge","1BOTHEROPI&E","Other Operating Income & Expenditure","1CTRADSURDEF","Trading Account Surpluses & Deficits","REV","Revenue","R9575","Ilford Chambers Service Charge Account","02-PREMISES","Premises","02H","Cleaning and domestic supplies","4620","Cleaning Contract Payments","60311332","201703",26/05/2016 00:00:00,25,"15269","Cleaning Services - Commercial","REDACTED DATA","LEWIS & GRAVES PARTNERSHIP LLP","8953594","http://opencorporates.com/companies/gb/8953594","135553810"
"London Borough of Redbridge","http://opendatacommunities.org/doc/london-borough-council/redbridge","1BOTHEROPI&E","Other Operating Income & Expenditure","1CTRADSURDEF","Trading Account Surpluses & Deficits","REV","Revenue","R9576","Broadway Chambers Service Charge Account","01-EMPLOYEES","Employees","01A","Direct employee expenses","4","Agency Staff - Pay","60309183","201703",30/04/2016 00:00:00,1433.14,"69240","Security Services","REDACTED DATA","CHARTER SECURITY PLC","1530957","http://opencorporates.com/companies/gb/1530957","342117968"
"London Borough of Redbridge","http://opendatacommunities.org/doc/london-borough-council/redbridge","1BOTHEROPI&E","Other Operating Income & Expenditure","1CTRADSURDEF","Trading Account Surpluses & Deficits","REV","Revenue","R9576","Broadway Chambers Service Charge Account","01-EMPLOYEES","Employees","01A","Direct employee expenses","4","Agency Staff - Pay","60312026","201703",31/05/2016 00:00:00,92.99,"69240","Security Services","REDACTED DATA","CHARTER SECURITY PLC","1530957","http://opencorporates.com/companies/gb/1530957","342117968"
"London Borough of Redbridge","http://opendatacommunities.org/doc/london-borough-council/redbridge","1BOTHEROPI&E","Other Operating Income & Expenditure","1CTRADSURDEF","Trading Account Surpluses & Deficits","REV","Revenue","R9576","Broadway Chambers Service Charge Account","01-EMPLOYEES","Employees","01A","Direct employee expenses","4","Agency Staff - Pay","60312026","201703",31/05/2016 00:00:00,836.91,"69240","Security Services","REDACTED DATA","CHARTER SECURITY PLC","1530957","http://opencorporates.com/companies/gb/1530957","342117968"
"London Borough of Redbridge","http://opendatacommunities.org/doc/london-borough-council/redbridge","1BOTHEROPI&E","Other Operating Income & Expenditure","1CTRADSURDEF","Trading Account Surpluses & Deficits","REV","Revenue","R9576","Broadway Chambers Service Charge Account","01-EMPLOYEES","Employees","01A","Direct employee expenses","4","Agency Staff - Pay","60312026","201703",31/05/2016 00:00:00,437.6,"69240","Security Services","REDACTED DATA","CHARTER SECURITY PLC","1530957","http://opencorporates.com/companies/gb/1530957","342117968"
